Workbook

Sheet Resumo do Orçamento
A1: LOGO DA EMPRESA
D4: Obra | E4: Bancos | F4: B.D.I. | I4: Encargos Sociais
D5: Espaço Multiuso - Tipo 01 | E5: SINAPI - 08/2024 - Sergipe ORSE - 06/2024 - Sergipe | F5: 23,54% | I5: Não Desonerado: Horista: 112,54% Mensalista: 70,11%
K7: Desconto
K8: 0 | L8: Inserir o desconto aqui
A9: Planilha Orçamentária Resumida
A10: Item | D10: Descrição | J10: Total | K10: Peso (%)
A11: 1 | D11: SERVIÇOS PRELIMINARES | J11: =SUM('Orçamento Sintético'!I13:I21) -> 52911.37 | K11: =J11/$I$17 -> 0.09157961679
A12: 2 | D12: ESPAÇO MULTIEVENTOS | J12: =SUM('Orçamento Sintético'!I24:I65) -> 421354.92 | K12: =J12/$I$17 -> 0.7292860137
A13: 3 | D13: BANHEIROS | J13: =SUM('Orçamento Sintético'!I68:I125) -> 71714.45 | K13: =J13/$I$17 -> 0.1241242071
A14: 4 | D14: INSTALAÇÕES ELÉTRICA (GERAL) | J14: =SUM('Orçamento Sintético'!I128:I152) -> 27813.39 | K14: =J14/$I$17 -> 0.04813974006
A15: 5 | D15: DIVERSOS | J15: =SUM('Orçamento Sintético'!I154:I155) -> 3969.49 | K15: =J15/$I$17 -> 0.006870439625
G17: Total Geral | I17: =TRUNC(577763.61*(1-K8),2) -> 577763.61

Sheet Orçamento Sintético
A1: LOGO DA EMPRESA
D4: Obra | E4: Bancos | G4: B.D.I. | I4: Encargos Sociais
D5: Espaço Multiuso - Tipo 01 | E5: SINAPI - 08/2024 - Sergipe ORSE - 06/2024 - Sergipe | G5: 23,54% | I5: Não Desonerado: Horista: 112,54% Mensalista: 70,11%
I7: Desconto
I8: ='Resumo do Orçamento'!K8 -> 0 | J8: Inserir o desconto na aba Resumo, não aqui!
A9: Orçamento Sintético
A10: Item | B10: Código | C10: Banco | D10: Descrição | E10: Und | F10: Quant. | G10: Valor Unit | H10: Valor Unit com BDI e Desconto | I10: Total
A11: 1 | D11: SERVIÇOS PRELIMINARES
A12: 1.1 | D12: MOBILIZAÇÃO/DESMOBILIZAÇÃO
A13: 1.1.1 | B13: 00000003 | C13: Próprio | D13: Mobilização de equipamentos e pessoal (pequenas obras) | E13: un | F13: 1 | G13: 1309.8 | H13: =TRUNC(G13*(1+$G$5)*(1-$I$8),2) -> 1618.12 | I13: =TRUNC(F13*H13,2) -> 1618.12
A14: 1.1.2 | B14: 00000004 | C14: Próprio | D14: Desmobilização de equipamentos e pessoal (pequenas obras) | E14: un | F14: 1 | G14: 746.34 | H14: =TRUNC(G14*(1+$G$5)*(1-$I$8),2) -> 922.02 | I14: =TRUNC(F14*H14,2) -> 922.02
A15: 1.2 | D15: CANTEIRO DE OBRA
A16: 1.2.1 | B16: 51 | C16: ORSE | D16: Placa de obra em chapa aço galvanizado, instalada - Rev 02_01/2022 | E16: m² | F16: 6.4 | G16: 375.59 | H16: =TRUNC(G16*(1+$G$5)*(1-$I$8),2) -> 464 | I16: =TRUNC(F16*H16,2) -> 2969.6
A17: 1.2.2 | B17: 10528 | C17: ORSE | D17: Aluguel mensal de área | E17: mês | F17: 5 | G17: 604.79 | H17: =TRUNC(G17*(1+$G$5)*(1-$I$8),2) -> 747.15 | I17: =TRUNC(F17*H17,2) -> 3735.75
A18: 1.3 | D18: ADMINISTRAÇÃO LOCAL
A19: 1.3.1 | B19: CODEVASF 122 | C19: Próprio | D19: Administração local de pequenas obras | E19: und | F19: 1 | G19: =TRUNC(5*3399.12,2) -> 16995.6 | H19: =TRUNC(G19*(1+$G$5)*(1-$I$8),2) -> 20996.36 | I19: =TRUNC(F19*H19,2) -> 20996.36
A20: 1.4 | D20: PROJETO EXECUTIVO
A21: 1.4.1 | B21: CODEVASF 322 | C21: Próprio | D21: Projeto Executivo (Multiuso) | E21: und | F21: 1 | G21: 18349.95 | H21: =TRUNC(G21*(1+$G$5)*(1-$I$8),2) -> 22669.52 | I21: =TRUNC(F21*H21,2) -> 22669.52
A22: 2 | D22: ESPAÇO MULTIEVENTOS
A23: 2.1 | D23: SERVIÇOS PRELIMINARES
A24: 2.1.1 | B24: 98524 | C24: SINAPI | D24: LIMPEZA MANUAL DE VEGETAÇÃO EM TERRENO COM ENXADA. AF_03/2024 | E24: m² | F24: 1056.97 | G24: 4.35 | H24: =TRUNC(G24*(1+$G$5)*(1-$I$8),2) -> 5.37 | I24: =TRUNC(F24*H24,2) -> 5675.92
A25: 2.2 | D25: MOVIMENTAÇÃO DE TERRA
A26: 2.2.1 | B26: 00006079 | C26: SINAPI | D26: ARGILA, ARGILA VERMELHA OU ARGILA ARENOSA (RETIRADA NA JAZIDA, SEM TRANSPORTE) | E26: m³ | F26: 118.08 | G26: 37.35 | H26: =TRUNC(G26*(1+$G$5)*(1-$I$8),2) -> 46.14 | I26: =TRUNC(F26*H26,2) -> 5448.21
A27: 2.2.2 | B27: 3426 | C27: ORSE | D27: Escavação e carga com escavadeira hidráulica de material de 1ª categoria ou de jazida | E27: m³ | F27: 118.08 | G27: 0.99 | H27: =TRUNC(G27*(1+$G$5)*(1-$I$8),2) -> 1.22 | I27: =TRUNC(F27*H27,2) -> 144.05
A28: 2.2.3 | B28: 4986 | C28: ORSE | D28: Carga mecânica de material de 1ª categoria | E28: m³ | F28: 118.08 | G28: 0.77 | H28: =TRUNC(G28*(1+$G$5)*(1-$I$8),2) -> 0.95 | I28: =TRUNC(F28*H28,2) -> 112.17
A29: 2.2.4 | B29: 97914 | C29: SINAPI | D29: TRANSPORTE COM CAMINHÃO BASCULANTE DE 6 M³, EM VIA URBANA PAVIMENTADA, DMT ATÉ 30 KM (UNIDADE: M3XKM). AF_07/2020 | E29: M3XKM | F29: 2125.47 | G29: 2.79 | H29: =TRUNC(G29*(1+$G$5)*(1-$I$8),2) -> 3.44 | I29: =TRUNC(F29*H29,2) -> 7311.61
A30: 2.2.5 | B30: 71 | C30: ORSE | D30: Aterro manual de áreas, sem aquisição de material, com espalhamento e compactação | E30: m³ | F30: 107.35 | G30: 52.32 | H30: =TRUNC(G30*(1+$G$5)*(1-$I$8),2) -> 64.63 | I30: =TRUNC(F30*H30,2) -> 6938.03
A31: 2.3 | D31: INFRAESTRUTURAS (MURETA E ARQUIBANCADA)
A32: 2.3.1 | B32: 4177 | C32: ORSE | D32: Locação de construção de edificação acima de 1000 m2, inclusive execução de gabarito de madeira | E32: m² | F32: 170 | G32: 5.47 | H32: =TRUNC(G32*(1+$G$5)*(1-$I$8),2) -> 6.75 | I32: =TRUNC(F32*H32,2) -> 1147.5
A33: 2.3.2 | B33: 93358 | C33: SINAPI | D33: ESCAVAÇÃO MANUAL DE VALA COM PROFUNDIDADE MENOR OU IGUAL A 1,30 M. AF_02/2021 | E33: m³ | F33: 38.34 | G33: 80.78 | H33: 99.79 | I33: 3825.94
A34: 2.3.3 | B34: 94962 | C34: SINAPI | D34: CONCRETO MAGRO PARA LASTRO, TRAÇO 1:4,5:4,5 (EM MASSA SECA DE CIMENTO/ AREIA MÉDIA/ BRITA 1) - PREPARO MECÂNICO COM BETONEIRA 400 L. AF_05/2021 | E34: m³ | F34: 1.37 | G34: 406.18 | H34: 501.79 | I34: 687.45
A35: 2.3.4 | B35: 97086 | C35: SINAPI | D35: FABRICAÇÃO, MONTAGEM E DESMONTAGEM DE FORMA PARA RADIER, PISO DE CONCRETO OU LAJE SOBRE SOLO, EM MADEIRA SERRADA, 4 UTILIZAÇÕES. AF_09/2021 | E35: m² | F35: 298.32 | G35: 121.46 | H35: 150.05 | I35: 44762.91
A36: 2.3.5 | B36: 96543 | C36: SINAPI | D36: ARMAÇÃO DE BLOCO UTILIZANDO AÇO CA-60 DE 5 MM - MONTAGEM. AF_01/2024 | E36: KG | F36: 198.19 | G36: 20.68 | H36: 25.54 | I36: 5061.77
A37: 2.3.6 | B37: 96544 | C37: SINAPI | D37: ARMAÇÃO DE BLOCO UTILIZANDO AÇO CA-50 DE 6,3 MM - MONTAGEM. AF_01/2024 | E37: KG | F37: 233.92 | G37: 19.03 | H37: 23.5 | I37: 5497.12
A38: 2.3.7 | B38: 96546 | C38: SINAPI | D38: ARMAÇÃO DE BLOCO UTILIZANDO AÇO CA-50 DE 10 MM - MONTAGEM. AF_01/2024 | E38: KG | F38: 29.62 | G38: 15.39 | H38: 19.01 | I38: 563.07
A39: 2.3.8 | B39: 9399 | C39: ORSE | D39: Concreto simples fabricado na obra, fck=25 mpa, lançado e adensado | E39: m³ | F39: 27.12 | G39: 626.77 | H39: 774.31 | I39: 20999.28
A40: 2.3.9 | B40: 93382 | C40: SINAPI | D40: REATERRO MANUAL DE VALAS, COM COMPACTADOR DE SOLOS DE PERCUSSÃO. AF_08/2023 | E40: m³ | F40: 25.26 | G40: 25.09 | H40: 30.99 | I40: 782.8
A41: 2.4 | D41: ALVENARIA (MURETA E ARQUIBANCADA)
A42: 2.4.1 | B42: 103330 | C42: SINAPI | D42: ALVENARIA DE VEDAÇÃO DE BLOCOS CERÂMICOS FURADOS NA HORIZONTAL DE 11,5X19X19 CM (ESPESSURA 11,5 CM) E ARGAMASSA DE ASSENTAMENTO COM PREPARO EM BETONEIRA. AF_12/2021 | E42: m² | F42: 94.08 | G42: 69.54 | H42: =TRUNC(G42*(1+$G$5)*(1-$I$8),2) -> 85.9 | I42: =TRUNC(F42*H42,2) -> 8081.47
A43: 2.4.2 | B43: 89799 | C43: SINAPI | D43: TUBO PVC, SERIE NORMAL, ESGOTO PREDIAL, DN 75 MM, FORNECIDO E INSTALADO EM PRUMADA DE ESGOTO SANITÁRIO OU VENTILAÇÃO. AF_08/2022 | E43: M | F43: 1.35 | G43: 18.61 | H43: =TRUNC(G43*(1+$G$5)*(1-$I$8),2) -> 22.99 | I43: =TRUNC(F43*H43,2) -> 31.03
A44: 2.4.3 | B44: 101963 | C44: SINAPI | D44: LAJE PRÉ-MOLDADA UNIDIRECIONAL, BIAPOIADA, PARA PISO, ENCHIMENTO EM CERÂMICA, VIGOTA CONVENCIONAL, ALTURA TOTAL DA LAJE (ENCHIMENTO+CAPA) = (8+4). AF_11/2020_PA | E44: m² | F44: 17.83 | G44: 180.79 | H44: =TRUNC(G44*(1+$G$5)*(1-$I$8),2) -> 223.34 | I44: =TRUNC(F44*H44,2) -> 3982.15
A45: 2.4.4 | B45: 87894 | C45: SINAPI | D45: CHAPISCO APLICADO EM ALVENARIA (SEM PRESENÇA DE VÃOS) E ESTRUTURAS DE CONCRETO DE FACHADA, COM COLHER DE PEDREIRO. ARGAMASSA TRAÇO 1:3 COM PREPARO EM BETONEIRA 400L. AF_10/2022 | E45: m² | F45: 150.85 | G45: 6.56 | H45: =TRUNC(G45*(1+$G$5)*(1-$I$8),2) -> 8.1 | I45: =TRUNC(F45*H45,2) -> 1221.88
A46: 2.4.5 | B46: 87529 | C46: SINAPI | D46: MASSA ÚNICA, EM ARGAMASSA TRAÇO 1:2:8, PREPARO MECÂNICO, APLICADA MANUALMENTE EM PAREDES INTERNAS DE AMBIENTES COM ÁREA ENTRE 5M² E 10M², E = 17,5MM, COM TALISCAS. AF_03/2024 | E46: m² | F46: 150.85 | G46: 35.45 | H46: =TRUNC(G46*(1+$G$5)*(1-$I$8),2) -> 43.79 | I46: =TRUNC(F46*H46,2) -> 6605.72
A47: 2.5 | D47: PISO
A48: 2.5.1 | B48: 96622 | C48: SINAPI | D48: LASTRO COM MATERIAL GRANULAR, APLICADO EM PISOS OU LAJES SOBRE SOLO, ESPESSURA DE *5 CM*. AF_01/2024 | E48: m³ | F48: 31.55 | G48: 232.84 | H48: =TRUNC(G48*(1+$G$5)*(1-$I$8),2) -> 287.65 | I48: =TRUNC(F48*H48,2) -> 9075.35
A49: 2.5.2 | B49: 94994 | C49: SINAPI | D49: EXECUÇÃO DE PASSEIO (CALÇADA) OU PISO DE CONCRETO COM CONCRETO MOLDADO IN LOCO, FEITO EM OBRA, ACABAMENTO CONVENCIONAL, ESPESSURA 8 CM, ARMADO. AF_08/2022 | E49: m² | F49: 631.01 | G49: 92.7 | H49: =TRUNC(G49*(1+$G$5)*(1-$I$8),2) -> 114.52 | I49: =TRUNC(F49*H49,2) -> 72263.26
A50: 2.5.3 | B50: 3641 | C50: ORSE | D50: Acabamento de superfície de piso de concreto com polimento mecânico com acabadora simples - Rev 02 | E50: m² | F50: 631.01 | G50: 3.93 | H50: =TRUNC(G50*(1+$G$5)*(1-$I$8),2) -> 4.85 | I50: =TRUNC(F50*H50,2) -> 3060.39
A51: 2.6 | D51: CALÇADA
A52: 2.6.1 | B52: 4555 | C52: ORSE | D52: Meio-fio pré moldado de concreto simples (0,12 x 0,30 x 1,00m), rejuntado comargamassa de cimento e areia no traço 1:3 | E52: m | F52: 135.68 | G52: 44.35 | H52: =TRUNC(G52*(1+$G$5)*(1-$I$8),2) -> 54.78 | I52: =TRUNC(F52*H52,2) -> 7432.55
A53: 2.6.2 | B53: 94991 | C53: SINAPI | D53: EXECUÇÃO DE PASSEIO (CALÇADA) OU PISO DE CONCRETO COM CONCRETO MOLDADO IN LOCO, USINADO C20, ACABAMENTO CONVENCIONAL, NÃO ARMADO. AF_08/2022 | E53: m³ | F53: 18.7 | G53: 693.61 | H53: =TRUNC(G53*(1+$G$5)*(1-$I$8),2) -> 856.88 | I53: =TRUNC(F53*H53,2) -> 16023.65
A54: 2.7 | D54: EQUIPAMENTOS
A55: 2.7.1 | B55: CODEVASF 234 | C55: Próprio | D55: BICICLETÁRIO EM TUBO DE AÇO GALVANIZADO DN 50mm | E55: UND | F55: 10 | G55: 591.76 | H55: =TRUNC(G55*(1+$G$5)*(1-$I$8),2) -> 731.06 | I55: =TRUNC(F55*H55,2) -> 7310.6
A56: 2.7.2 | B56: 9222 | C56: ORSE | D56: Guarda-corpo em tubos de aço galvanizado (altura = 0,90), com barras verticais a cada 2,00m (2"), barra horizontal intermediária (2") e barra horizontal superior (2") | E56: m | F56: 20.68 | G56: 283.68 | H56: =TRUNC(G56*(1+$G$5)*(1-$I$8),2) -> 350.45 | I56: =TRUNC(F56*H56,2) -> 7247.3
A57: 2.8 | D57: ALAMBRADO
A58: 2.8.1 | B58: 102364 | C58: SINAPI | D58: ALAMBRADO PARA QUADRA POLIESPORTIVA, ESTRUTURADO POR TUBOS DE ACO GALVANIZADO, (MONTANTES COM DIAMETRO 2", TRAVESSAS E ESCORAS COM DIÂMETRO 1 ¼"), COM TELA DE ARAME GALVANIZADO, FIO 10 BWG E MALHA QUADRADA 5X5CM (EXCETO MURETA). AF_03/2021 | E58: m² | F58: 211.75 | G58: 192.59 | H58: =TRUNC(G58*(1+$G$5)*(1-$I$8),2) -> 237.92 | I58: =TRUNC(F58*H58,2) -> 50379.56
A59: 2.8.2 | B59: 11532 | C59: ORSE | D59: Portao em tela arame galvanizado n.12 malha 2" e moldura em tubos de aco com duas folhas de abrir, incluso ferragens | E59: m² | F59: 12.6 | G59: 749.9 | H59: =TRUNC(G59*(1+$G$5)*(1-$I$8),2) -> 926.42 | I59: =TRUNC(F59*H59,2) -> 11672.89
A60: 2.9 | D60: PINTURA
A61: 2.9.1 | B61: 88489 | C61: SINAPI | D61: PINTURA LÁTEX ACRÍLICA PREMIUM, APLICAÇÃO MANUAL EM PAREDES, DUAS DEMÃOS. AF_04/2023 | E61: m² | F61: 154.81 | G61: 13.12 | H61: =TRUNC(G61*(1+$G$5)*(1-$I$8),2) -> 16.2 | I61: =TRUNC(F61*H61,2) -> 2507.92
A62: 2.9.2 | B62: 100758 | C62: SINAPI | D62: PINTURA COM TINTA ALQUÍDICA DE ACABAMENTO (ESMALTE SINTÉTICO ACETINADO) APLICADA A ROLO OU PINCEL SOBRE SUPERFÍCIES METÁLICAS (EXCETO PERFIL) EXECUTADO EM OBRA (02 DEMÃOS). AF_01/2020 | E62: m² | F62: 232.45 | G62: 48.23 | H62: =TRUNC(G62*(1+$G$5)*(1-$I$8),2) -> 59.58 | I62: =TRUNC(F62*H62,2) -> 13849.37
A63: 2.10 | D63: COBERTURA METÁLICA
A64: 2.10.1 | B64: 94213 | C64: SINAPI | D64: TELHAMENTO COM TELHA DE AÇO/ALUMÍNIO E = 0,5 MM, COM ATÉ 2 ÁGUAS, INCLUSO IÇAMENTO. AF_07/2019 | E64: m² | F64: 176 | G64: 66.38 | H64: =TRUNC(G64*(1+$G$5)*(1-$I$8),2) -> 82 | I64: =TRUNC(F64*H64,2) -> 14432
A65: 2.10.2 | B65: 100777 | C65: SINAPI | D65: ESTRUTURA TRELIÇADA DE COBERTURA, TIPO SHED, COM LIGAÇÕES PARAFUSADAS, INCLUSOS PERFIS METÁLICOS, CHAPAS METÁLICAS, MÃO DE OBRA E TRANSPORTE COM GUINDASTE - FORNECIMENTO E INSTALAÇÃO. AF_01/2020_PSA | E65: KG | F65: 5500 | G65: 11.37 | H65: =TRUNC(G65*(1+$G$5)*(1-$I$8),2) -> 14.04 | I65: =TRUNC(F65*H65,2) -> 77220
A66: 3 | D66: BANHEIROS
A67: 3.1 | D67: INFRAESTRUTURA (WC)
A68: 3.1.1 | B68: 93358 | C68: SINAPI | D68: ESCAVAÇÃO MANUAL DE VALA COM PROFUNDIDADE MENOR OU IGUAL A 1,30 M. AF_02/2021 | E68: m³ | F68: 4.74 | G68: 80.78 | H68: =TRUNC(G68*(1+$G$5)*(1-$I$8),2) -> 99.79 | I68: =TRUNC(F68*H68,2) -> 473
A69: 3.1.2 | B69: 103800 | C69: SINAPI | D69: PEDRA ARGAMASSADA COM CIMENTO E AREIA 1:3, 40% DE ARGAMASSA EM VOLUME - AREIA E PEDRA DE MÃO COMERCIAIS - FORNECIMENTO E ASSENTAMENTO. AF_08/2022 | E69: m³ | F69: 3.74 | G69: 514.59 | H69: =TRUNC(G69*(1+$G$5)*(1-$I$8),2) -> 635.72 | I69: =TRUNC(F69*H69,2) -> 2377.59
A70: 3.1.3 | B70: 9399 | C70: ORSE | D70: Concreto simples fabricado na obra, fck=25 mpa, lançado e adensado | E70: m³ | F70: 1 | G70: 626.77 | H70: =TRUNC(G70*(1+$G$5)*(1-$I$8),2) -> 774.31 | I70: =TRUNC(F70*H70,2) -> 774.31
A71: 3.2 | D71: ESTRUTURA DE VEDAÇÃO/SUSTENTAÇÃO (WC)
A72: 3.2.1 | B72: 103330 | C72: SINAPI | D72: ALVENARIA DE VEDAÇÃO DE BLOCOS CERÂMICOS FURADOS NA HORIZONTAL DE 11,5X19X19 CM (ESPESSURA 11,5 CM) E ARGAMASSA DE ASSENTAMENTO COM PREPARO EM BETONEIRA. AF_12/2021 | E72: m² | F72: 83.2 | G72: 69.54 | H72: =TRUNC(G72*(1+$G$5)*(1-$I$8),2) -> 85.9 | I72: =TRUNC(F72*H72,2) -> 7146.88
A73: 3.2.2 | B73: 94965 | C73: SINAPI | D73: CONCRETO FCK = 25MPA, TRAÇO 1:2,3:2,7 (EM MASSA SECA DE CIMENTO/ AREIA MÉDIA/ BRITA 1) - PREPARO MECÂNICO COM BETONEIRA 400 L. AF_05/2021 | E73: m³ | F73: 1.74 | G73: 509.97 | H73: =TRUNC(G73*(1+$G$5)*(1-$I$8),2) -> 630.01 | I73: =TRUNC(F73*H73,2) -> 1096.21
A74: 3.2.3 | B74: 92915 | C74: SINAPI | D74: ARMAÇÃO DE ESTRUTURAS DIVERSAS DE CONCRETO ARMADO, EXCETO VIGAS, PILARES, LAJES E FUNDAÇÕES, UTILIZANDO AÇO CA-60 DE 5,0 MM - MONTAGEM. AF_06/2022 | E74: KG | F74: 174 | G74: 17.82 | H74: =TRUNC(G74*(1+$G$5)*(1-$I$8),2) -> 22.01 | I74: =TRUNC(F74*H74,2) -> 3829.74
A75: 3.2.4 | B75: 92263 | C75: SINAPI | D75: FABRICAÇÃO DE FÔRMA PARA PILARES E ESTRUTURAS SIMILARES, EM CHAPA DE MADEIRA COMPENSADA RESINADA, E = 17 MM. AF_09/2020 | E75: m² | F75: 17.2 | G75: 168.88 | H75: =TRUNC(G75*(1+$G$5)*(1-$I$8),2) -> 208.63 | I75: =TRUNC(F75*H75,2) -> 3588.43
A76: 3.2.5 | B76: 92409 | C76: SINAPI | D76: MONTAGEM E DESMONTAGEM DE FÔRMA DE PILARES RETANGULARES E ESTRUTURAS SIMILARES, PÉ-DIREITO SIMPLES, EM MADEIRA SERRADA, 1 UTILIZAÇÃO. AF_09/2020 | E76: m² | F76: 17.4 | G76: 256.83 | H76: =TRUNC(G76*(1+$G$5)*(1-$I$8),2) -> 317.28 | I76: =TRUNC(F76*H76,2) -> 5520.67
A77: 3.3 | D77: REVESTIMENTO DE PAREDES (WC)
A78: 3.3.1 | B78: 87878 | C78: SINAPI | D78: CHAPISCO APLICADO EM ALVENARIAS E ESTRUTURAS DE CONCRETO INTERNAS, COM COLHER DE PEDREIRO. ARGAMASSA TRAÇO 1:3 COM PREPARO MANUAL. AF_10/2022 | E78: m² | F78: 166.4 | G78: 4.7 | H78: =TRUNC(G78*(1+$G$5)*(1-$I$8),2) -> 5.8 | I78: =TRUNC(F78*H78,2) -> 965.12
A79: 3.3.2 | B79: 87548 | C79: SINAPI | D79: MASSA ÚNICA, EM ARGAMASSA TRAÇO 1:2:8, PREPARO MANUAL, APLICADA MANUALMENTE EM PAREDES INTERNAS DE AMBIENTES COM ÁREA ENTRE 5M² E 10M², E = 10MM, COM TALISCAS. AF_03/2024 | E79: m² | F79: 110.57 | G79: 27.51 | H79: =TRUNC(G79*(1+$G$5)*(1-$I$8),2) -> 33.98 | I79: =TRUNC(F79*H79,2) -> 3757.16
A80: 3.3.3 | B80: 87532 | C80: SINAPI | D80: EMBOÇO, EM ARGAMASSA TRAÇO 1:2:8, PREPARO MANUAL, APLICADO MANUALMENTE EM PAREDES INTERNAS DE AMBIENTES COM ÁREA ENTRE 5M² E 10M², E = 17,5MM, COM TALISCAS. AF_03/2024 | E80: m² | F80: 55.83 | G80: 37.54 | H80: =TRUNC(G80*(1+$G$5)*(1-$I$8),2) -> 46.37 | I80: =TRUNC(F80*H80,2) -> 2588.83
A81: 3.3.4 | B81: 87273 | C81: SINAPI | D81: REVESTIMENTO CERÂMICO PARA PAREDES INTERNAS COM PLACAS TIPO ESMALTADA DE DIMENSÕES 33X45 CM APLICADAS NA ALTURA INTEIRA DAS PAREDES. AF_02/2023_PE | E81: m² | F81: 55.83 | G81: 64.19 | H81: =TRUNC(G81*(1+$G$5)*(1-$I$8),2) -> 79.3 | I81: =TRUNC(F81*H81,2) -> 4427.31
A82: 3.4 | D82: PAVIMENTAÇÃO (WC)
A83: 3.4.1 | B83: 87248 | C83: SINAPI | D83: REVESTIMENTO CERÂMICO PARA PISO COM PLACAS TIPO ESMALTADA DE DIMENSÕES 35X35 CM APLICADA EM AMBIENTES DE ÁREA MAIOR QUE 10 M2. AF_02/2023_PE | E83: m² | F83: 13 | G83: 48.5 | H83: =TRUNC(G83*(1+$G$5)*(1-$I$8),2) -> 59.91 | I83: =TRUNC(F83*H83,2) -> 778.83
A84: 3.4.2 | B84: 98689 | C84: SINAPI | D84: SOLEIRA EM GRANITO, LARGURA 15 CM, ESPESSURA 2,0 CM. AF_09/2020 | E84: M | F84: 2.5 | G84: 101.07 | H84: =TRUNC(G84*(1+$G$5)*(1-$I$8),2) -> 124.86 | I84: =TRUNC(F84*H84,2) -> 312.15
A85: 3.5 | D85: COBERTURA (WC)
A86: 3.5.1 | B86: 96109 | C86: SINAPI | D86: FORRO EM PLACAS DE GESSO, PARA AMBIENTES RESIDENCIAIS. AF_08/2023_PS | E86: m² | F86: 16 | G86: 51.37 | H86: =TRUNC(G86*(1+$G$5)*(1-$I$8),2) -> 63.46 | I86: =TRUNC(F86*H86,2) -> 1015.36
A87: 3.5.2 | B87: 101963 | C87: SINAPI | D87: LAJE PRÉ-MOLDADA UNIDIRECIONAL, BIAPOIADA, PARA PISO, ENCHIMENTO EM CERÂMICA, VIGOTA CONVENCIONAL, ALTURA TOTAL DA LAJE (ENCHIMENTO+CAPA) = (8+4). AF_11/2020_PA | E87: m² | F87: 16 | G87: 180.79 | H87: 223.34 | I87: 3573.44
A88: 3.5.3 | B88: 92580 | C88: SINAPI | D88: TRAMA DE AÇO COMPOSTA POR TERÇAS PARA TELHADOS DE ATÉ 2 ÁGUAS PARA TELHA ONDULADA DE FIBROCIMENTO, METÁLICA, PLÁSTICA OU TERMOACÚSTICA, INCLUSO TRANSPORTE VERTICAL. AF_07/2019 | E88: m² | F88: 16 | G88: 46.4 | H88: 57.32 | I88: 917.12
A89: 3.5.4 | B89: 94213 | C89: SINAPI | D89: TELHAMENTO COM TELHA DE AÇO/ALUMÍNIO E = 0,5 MM, COM ATÉ 2 ÁGUAS, INCLUSO IÇAMENTO. AF_07/2019 | E89: m² | F89: 16 | G89: 66.38 | H89: 82 | I89: 1312
A90: 3.5.5 | B90: 94231 | C90: SINAPI | D90: RUFO EM CHAPA DE AÇO GALVANIZADO NÚMERO 24, CORTE DE 25 CM, INCLUSO TRANSPORTE VERTICAL. AF_07/2019 | E90: M | F90: 9.7 | G90: 53.1 | H90: 65.59 | I90: 636.22
A91: 3.5.6 | B91: 94228 | C91: SINAPI | D91: CALHA EM CHAPA DE AÇO GALVANIZADO NÚMERO 24, DESENVOLVIMENTO DE 50 CM, INCLUSO TRANSPORTE VERTICAL. AF_07/2019 | E91: M | F91: 5 | G91: 87.82 | H91: 108.49 | I91: 542.45
A92: 3.6 | D92: PINTURA (WC)
A93: 3.6.1 | B93: 88415 | C93: SINAPI | D93: APLICAÇÃO MANUAL DE FUNDO SELADOR ACRÍLICO EM PAREDES EXTERNAS DE CASAS. AF_03/2024 | E93: m² | F93: 110.57 | G93: 3.8 | H93: =TRUNC(G93*(1+$G$5)*(1-$I$8),2) -> 4.69 | I93: =TRUNC(F93*H93,2) -> 518.57
A94: 3.6.2 | B94: 88423 | C94: SINAPI | D94: APLICAÇÃO MANUAL DE PINTURA COM TINTA TEXTURIZADA ACRÍLICA EM PAREDES EXTERNAS DE CASAS, UMA COR. AF_03/2024 | E94: m² | F94: 110.57 | G94: 22.43 | H94: =TRUNC(G94*(1+$G$5)*(1-$I$8),2) -> 27.71 | I94: =TRUNC(F94*H94,2) -> 3063.89
A95: 3.6.3 | B95: 100758 | C95: SINAPI | D95: PINTURA COM TINTA ALQUÍDICA DE ACABAMENTO (ESMALTE SINTÉTICO ACETINADO) APLICADA A ROLO OU PINCEL SOBRE SUPERFÍCIES METÁLICAS (EXCETO PERFIL) EXECUTADO EM OBRA (02 DEMÃOS). AF_01/2020 | E95: m² | F95: 5.61 | G95: 48.23 | H95: =TRUNC(G95*(1+$G$5)*(1-$I$8),2) -> 59.58 | I95: =TRUNC(F95*H95,2) -> 334.24
A96: 3.7 | D96: INSTALAÇÕES HIDRÁULICAS (WC)
A97: 3.7.1 | B97: 89957 | C97: SINAPI | D97: PONTO DE CONSUMO TERMINAL DE ÁGUA FRIA (SUBRAMAL) COM TUBULAÇÃO DE PVC, DN 25 MM, INSTALADO EM RAMAL DE ÁGUA, INCLUSOS RASGO E CHUMBAMENTO EM ALVENARIA. AF_12/2014 | E97: UN | F97: 7 | G97: 125.72 | H97: =TRUNC(G97*(1+$G$5)*(1-$I$8),2) -> 155.31 | I97: =TRUNC(F97*H97,2) -> 1087.17
A98: 3.7.2 | B98: 86904 | C98: SINAPI | D98: LAVATÓRIO LOUÇA BRANCA SUSPENSO, 29,5 X 39CM OU EQUIVALENTE, PADRÃO POPULAR - FORNECIMENTO E INSTALAÇÃO. AF_01/2020 | E98: UN | F98: 3 | G98: 144.69 | H98: 178.75 | I98: 536.25
A99: 3.7.3 | B99: 86883 | C99: SINAPI | D99: SIFÃO DO TIPO FLEXÍVEL EM PVC 1 X 1.1/2 - FORNECIMENTO E INSTALAÇÃO. AF_01/2020 | E99: UN | F99: 3 | G99: 10.77 | H99: 13.3 | I99: 39.9
A100: 3.7.4 | B100: 95546 | C100: SINAPI | D100: KIT DE ACESSORIOS PARA BANHEIRO EM METAL CROMADO, 5 PECAS, INCLUSO FIXAÇÃO. AF_01/2020 | E100: UN | F100: 1 | G100: 136.68 | H100: 168.85 | I100: 168.85
A101: 3.7.5 | B101: 89984 | C101: SINAPI | D101: REGISTRO DE PRESSÃO BRUTO, LATÃO, ROSCÁVEL, 1/2", COM ACABAMENTO E CANOPLA CROMADOS - FORNECIMENTO E INSTALAÇÃO. AF_08/2021 | E101: UN | F101: 3 | G101: 82.76 | H101: 102.24 | I101: 306.72
A102: 3.7.6 | B102: 88504 | C102: SINAPI | D102: CAIXA D´AGUA EM POLIETILENO, 500 LITROS, COM ACESSÓRIOS | E102: UN | F102: 1 | G102: 788.64 | H102: 974.28 | I102: 974.28
A103: 3.7.7 | B103: 86915 | C103: SINAPI | D103: TORNEIRA CROMADA DE MESA, 1/2" OU 3/4", PARA LAVATÓRIO, PADRÃO MÉDIO - FORNECIMENTO E INSTALAÇÃO. AF_01/2020 | E103: UN | F103: 3 | G103: 132.11 | H103: 163.2 | I103: 489.6
A104: 3.7.8 | B104: 100858 | C104: SINAPI | D104: MICTÓRIO SIFONADO LOUÇA BRANCA - PADRÃO MÉDIO - FORNECIMENTO E INSTALAÇÃO. AF_01/2020 | E104: UN | F104: 1 | G104: 669.54 | H104: 827.14 | I104: 827.14
A105: 3.7.9 | B105: 94649 | C105: SINAPI | D105: TUBO, PVC, SOLDÁVEL, DE 32MM, INSTALADO EM RESERVAÇÃO PREDIAL DE ÁGUA - FORNECIMENTO E INSTALAÇÃO. AF_04/2024 | E105: M | F105: 50 | G105: 10.47 | H105: 12.93 | I105: 646.5
A106: 3.7.10 | B106: 86887 | C106: SINAPI | D106: ENGATE FLEXÍVEL EM INOX, 1/2 X 40CM - FORNECIMENTO E INSTALAÇÃO. AF_01/2020 | E106: UN | F106: 4 | G106: 52.29 | H106: 64.59 | I106: 258.36
A107: 3.8 | D107: INSTALAÇÕES SANITÁRIAS (WC)
A108: 3.8.1 | B108: 1679 | C108: ORSE | D108: Ponto de esgoto com tubo de pvc rígido soldável de Ø 40 mm (lavatórios, mictórios, ralos sifonados, etc...) | E108: un | F108: 4 | G108: 68.46 | H108: =TRUNC(G108*(1+$G$5)*(1-$I$8),2) -> 84.57 | I108: =TRUNC(F108*H108,2) -> 338.28
A109: 3.8.2 | B109: 1683 | C109: ORSE | D109: Ponto de esgoto com tubo de pvc rígido soldável de Ø 100 mm (vaso sanitário) | E109: pt | F109: 3 | G109: 92.26 | H109: 113.97 | I109: 341.91
A110: 3.8.3 | B110: 86931 | C110: SINAPI | D110: VASO SANITÁRIO SIFONADO COM CAIXA ACOPLADA LOUÇA BRANCA, INCLUSO ENGATE FLEXÍVEL EM PLÁSTICO BRANCO, 1/2 X 40CM - FORNECIMENTO E INSTALAÇÃO. AF_01/2020 | E110: UN | F110: 2 | G110: 486.9 | H110: 601.51 | I110: 1203.02
A111: 3.8.4 | B111: 95472 | C111: SINAPI | D111: VASO SANITARIO SIFONADO CONVENCIONAL PARA PCD SEM FURO FRONTAL COM LOUÇA BRANCA SEM ASSENTO, INCLUSO CONJUNTO DE LIGAÇÃO PARA BACIA SANITÁRIA AJUSTÁVEL - FORNECIMENTO E INSTALAÇÃO. AF_01/2020 | E111: UN | F111: 1 | G111: 756.8 | H111: 934.95 | I111: 934.95
A112: 3.8.5 | B112: 89707 | C112: SINAPI | D112: CAIXA SIFONADA, PVC, DN 100 X 100 X 50 MM, JUNTA ELÁSTICA, FORNECIDA E INSTALADA EM RAMAL DE DESCARGA OU EM RAMAL DE ESGOTO SANITÁRIO. AF_08/2022 | E112: UN | F112: 3 | G112: 40.53 | H112: 50.07 | I112: 150.21
A113: 3.8.6 | B113: 98052 | C113: SINAPI | D113: TANQUE SÉPTICO CIRCULAR, EM CONCRETO PRÉ-MOLDADO, DIÂMETRO INTERNO = 1,10 M, ALTURA INTERNA = 2,50 M, VOLUME ÚTIL: 2138,2 L (PARA 5 CONTRIBUINTES). AF_12/2020_PA | E113: UN | F113: 1 | G113: 1973.58 | H113: 2438.16 | I113: 2438.16
A114: 3.8.7 | B114: 98078 | C114: SINAPI | D114: SUMIDOURO RETANGULAR, EM ALVENARIA COM TIJOLOS CERÂMICOS MACIÇOS, DIMENSÕES INTERNAS: 0,8 X 1,4 X H=3,0 M, ÁREA DE INFILTRAÇÃO: 13,2 M² (PARA 5 CONTRIBUINTES). AF_12/2020 | E114: UN | F114: 1 | G114: 3701.85 | H114: 4573.26 | I114: 4573.26
A115: 3.8.8 | B115: 89512 | C115: SINAPI | D115: TUBO PVC, SÉRIE R, ÁGUA PLUVIAL, DN 100 MM, FORNECIDO E INSTALADO EM RAMAL DE ENCAMINHAMENTO. AF_06/2022 | E115: M | F115: 5 | G115: 41.12 | H115: 50.79 | I115: 253.95
A116: 3.8.9 | B116: 89798 | C116: SINAPI | D116: TUBO PVC, SERIE NORMAL, ESGOTO PREDIAL, DN 50 MM, FORNECIDO E INSTALADO EM PRUMADA DE ESGOTO SANITÁRIO OU VENTILAÇÃO. AF_08/2022 | E116: M | F116: 3.5 | G116: 10.82 | H116: 13.36 | I116: 46.76
A117: 3.9 | D117: INSTALAÇÕES ELÉTRICAS (WC)
A118: 3.9.1 | B118: 97591 | C118: SINAPI | D118: LUMINÁRIA TIPO PLAFON REDONDO COM VIDRO FOSCO, DE SOBREPOR, COM 2 LÂMPADAS FLUORESCENTES DE 15 W, SEM REATOR - FORNECIMENTO E INSTALAÇÃO. AF_02/2020 | E118: UN | F118: 3 | G118: 131.29 | H118: =TRUNC(G118*(1+$G$5)*(1-$I$8),2) -> 162.19 | I118: =TRUNC(F118*H118,2) -> 486.57
A119: 3.9.2 | B119: 97590 | C119: SINAPI | D119: LUMINÁRIA TIPO PLAFON REDONDO COM VIDRO FOSCO, DE SOBREPOR, COM 1 LÂMPADA FLUORESCENTE DE 15 W, SEM REATOR - FORNECIMENTO E INSTALAÇÃO. AF_02/2020 | E119: UN | F119: 1 | G119: 99.5 | H119: =TRUNC(G119*(1+$G$5)*(1-$I$8),2) -> 122.92 | I119: =TRUNC(F119*H119,2) -> 122.92
A120: 3.9.3 | B120: 3278 | C120: ORSE | D120: Ponto de interruptor 01 seção (1 s) embutido com eletroduto de pvc flexível sanfonado Ø 3/4" | E120: pt | F120: 4 | G120: 192.48 | H120: =TRUNC(G120*(1+$G$5)*(1-$I$8),2) -> 237.78 | I120: =TRUNC(F120*H120,2) -> 951.12
A121: 3.10 | D121: ESQUADRIAS (WC)
A122: 3.10.1 | B122: 100701 | C122: SINAPI | D122: PORTA DE FERRO, DE ABRIR, TIPO GRADE COM CHAPA, COM GUARNIÇÕES. AF_12/2019 | E122: m² | F122: 5.6 | G122: 553.67 | H122: =TRUNC(G122*(1+$G$5)*(1-$I$8),2) -> 684 | I122: =TRUNC(F122*H122,2) -> 3830.4
A123: 3.10.2 | B123: 101162 | C123: SINAPI | D123: ALVENARIA DE VEDAÇÃO COM ELEMENTO VAZADO DE CERÂMICA (COBOGÓ) DE 7X20X20CM E ARGAMASSA DE ASSENTAMENTO COM PREPARO EM BETONEIRA. AF_05/2020 | E123: m² | F123: 2.16 | G123: 129.57 | H123: =TRUNC(G123*(1+$G$5)*(1-$I$8),2) -> 160.07 | I123: =TRUNC(F123*H123,2) -> 345.75
A124: 3.11 | D124: ACESSIBILIDADE (WC)
A125: 3.11.1 | B125: 100872 | C125: SINAPI | D125: BARRA DE APOIO RETA, EM ALUMINIO, COMPRIMENTO 80 CM, FIXADA NA PAREDE - FORNECIMENTO E INSTALAÇÃO. AF_01/2020 | E125: UN | F125: 2 | G125: 329.01 | H125: =TRUNC(G125*(1+$G$5)*(1-$I$8),2) -> 406.45 | I125: =TRUNC(F125*H125,2) -> 812.9
A126: 4 | D126: INSTALAÇÕES ELÉTRICA (GERAL)
A127: 4.1 | D127: ENTRADA DE SERVIÇO MONOFÁSICA 220V
A128: 4.1.1 | B128: 101496 | C128: SINAPI | D128: ENTRADA DE ENERGIA ELÉTRICA, AÉREA, MONOFÁSICA, COM CAIXA DE EMBUTIR, CABO DE 35 MM2 E DISJUNTOR DIN 50A (NÃO INCLUSO O POSTE DE CONCRETO). AF_07/2020_PS | E128: UN | F128: 1 | G128: 1612.67 | H128: =TRUNC(G128*(1+$G$5)*(1-$I$8),2) -> 1992.29 | I128: =TRUNC(F128*H128,2) -> 1992.29
A129: 4.1.2 | B129: 83446 | C129: SINAPI | D129: CAIXA DE PASSAGEM 30X30X40 COM TAMPA E DRENO BRITA | E129: UN | F129: 1 | G129: 212.59 | H129: =TRUNC(G129*(1+$G$5)*(1-$I$8),2) -> 262.63 | I129: =TRUNC(F129*H129,2) -> 262.63
A130: 4.2 | D130: INSTALAÇÃO DA ILUMINAÇÃO DO ESPAÇO MULTIEVENTOS
A131: 4.2.1 | B131: 331 | C131: ORSE | D131: Poste de concreto duplo T (DT) 9/200 - fornecimento e assentamento | E131: un | F131: 4 | G131: 874.5 | H131: =TRUNC(G131*(1+$G$5)*(1-$I$8),2) -> 1080.35 | I131: =TRUNC(F131*H131,2) -> 4321.4
A132: 4.2.2 | B132: 91863 | C132: SINAPI | D132: ELETRODUTO RÍGIDO ROSCÁVEL, PVC, DN 25 MM (3/4"), PARA CIRCUITOS TERMINAIS, INSTALADO EM FORRO - FORNECIMENTO E INSTALAÇÃO. AF_03/2023 | E132: M | F132: 27 | G132: 9.82 | H132: 12.13 | I132: 327.51
A133: 4.2.3 | B133: 91879 | C133: SINAPI | D133: LUVA PARA ELETRODUTO, PVC, ROSCÁVEL, DN 25 MM (3/4"), PARA CIRCUITOS TERMINAIS, INSTALADA EM LAJE - FORNECIMENTO E INSTALAÇÃO. AF_03/2023 | E133: UN | F133: 14 | G133: 5.79 | H133: 7.15 | I133: 100.1
A134: 4.2.4 | B134: 91890 | C134: SINAPI | D134: CURVA 90 GRAUS PARA ELETRODUTO, PVC, ROSCÁVEL, DN 25 MM (3/4"), PARA CIRCUITOS TERMINAIS, INSTALADA EM FORRO - FORNECIMENTO E INSTALAÇÃO. AF_03/2023 | E134: UN | F134: 7 | G134: 11.31 | H134: 13.97 | I134: 97.79
A135: 4.2.5 | B135: 91892 | C135: SINAPI | D135: CURVA 180 GRAUS PARA ELETRODUTO, PVC, ROSCÁVEL, DN 25 MM (3/4"), PARA CIRCUITOS TERMINAIS, INSTALADA EM FORRO - FORNECIMENTO E INSTALAÇÃO. AF_03/2023 | E135: UN | F135: 4 | G135: 12.39 | H135: 15.3 | I135: 61.2
A136: 4.2.6 | B136: 96985 | C136: SINAPI | D136: HASTE DE ATERRAMENTO, DIÂMETRO 5/8", COM 3 METROS - FORNECIMENTO E INSTALAÇÃO. AF_08/2023 | E136: UN | F136: 4 | G136: 88.94 | H136: 109.87 | I136: 439.48
A137: 4.2.7 | B137: 83446 | C137: SINAPI | D137: CAIXA DE PASSAGEM 30X30X40 COM TAMPA E DRENO BRITA | E137: UN | F137: 6 | G137: 212.59 | H137: 262.63 | I137: 1575.78
A138: 4.2.8 | B138: CODEVASF 235 | C138: Próprio | D138: ENTRADA DE ENERGIA ELÉTRICA AÉREA MONOFÁSICA 40A COM POSTE DE CONCRETO, INCLUSIVE CABEAMENTO, CAIXA DE PROTEÇÃO PARA MEDIDOR E ATERRAMENTO. | E138: und | F138: 1 | G138: 1565.53 | H138: 1934.05 | I138: 1934.05
A139: 4.2.9 | B139: 8349 | C139: ORSE | D139: Refletor para lampada vapor de sódio 400w, Olivo ou similar, inclusive lâmpada e reator | E139: un | F139: 12 | G139: 259.84 | H139: 321 | I139: 3852
A140: 4.2.10 | B140: 4232 | C140: ORSE | D140: Lâmpada vapor metálico 400w, fornecimento. Rev 01_06/2024 | E140: un | F140: 12 | G140: 33.99 | H140: 41.99 | I140: 503.88
A141: 4.2.11 | B141: 103782 | C141: SINAPI | D141: LUMINÁRIA TIPO PLAFON CIRCULAR, DE SOBREPOR, COM LED DE 12/13 W - FORNECIMENTO E INSTALAÇÃO. AF_03/2022 | E141: UN | F141: 12 | G141: 26.76 | H141: 33.05 | I141: 396.6
A142: 4.2.12 | B142: 642 | C142: ORSE | D142: Ponto de luz em teto ou parede, com eletroduto pvc rígido embutido Ø 3/4" | E142: un | F142: 12 | G142: 278.37 | H142: 343.89 | I142: 4126.68
A143: 4.2.13 | B143: 91859 | C143: SINAPI | D143: ELETRODUTO FLEXÍVEL LISO, PEAD, DN 32 MM (1"), PARA CIRCUITOS TERMINAIS, INSTALADO EM PAREDE - FORNECIMENTO E INSTALAÇÃO. AF_03/2023 | E143: M | F143: 80 | G143: 9.78 | H143: 12.08 | I143: 966.4
A144: 4.2.14 | B144: 91871 | C144: SINAPI | D144: ELETRODUTO RÍGIDO ROSCÁVEL, PVC, DN 25 MM (3/4"), PARA CIRCUITOS TERMINAIS, INSTALADO EM PAREDE - FORNECIMENTO E INSTALAÇÃO. AF_03/2023 | E144: M | F144: 80 | G144: 12.59 | H144: 15.55 | I144: 1244
A145: 4.2.15 | B145: 91931 | C145: SINAPI | D145: CABO DE COBRE FLEXÍVEL ISOLADO, 6 MM², ANTI-CHAMA 0,6/1,0 KV, PARA CIRCUITOS TERMINAIS - FORNECIMENTO E INSTALAÇÃO. AF_03/2023 | E145: M | F145: 200 | G145: 9.87 | H145: 12.19 | I145: 2438
A146: 4.2.16 | B146: 91926 | C146: SINAPI | D146: CABO DE COBRE FLEXÍVEL ISOLADO, 2,5 MM², ANTI-CHAMA 450/750 V, PARA CIRCUITOS TERMINAIS - FORNECIMENTO E INSTALAÇÃO. AF_03/2023 | E146: M | F146: 250 | G146: 4.2 | H146: 5.18 | I146: 1295
A147: 4.2.17 | B147: 101878 | C147: SINAPI | D147: QUADRO DE DISTRIBUIÇÃO DE ENERGIA EM CHAPA DE AÇO GALVANIZADO, DE SOBREPOR, COM BARRAMENTO TRIFÁSICO, PARA 18 DISJUNTORES DIN 100A - FORNECIMENTO E INSTALAÇÃO. AF_10/2020 | E147: UN | F147: 2 | G147: 492.63 | H147: 608.59 | I147: 1217.18
A148: 4.2.18 | B148: 93672 | C148: SINAPI | D148: DISJUNTOR TRIPOLAR TIPO DIN, CORRENTE NOMINAL DE 40A - FORNECIMENTO E INSTALAÇÃO. AF_10/2020 | E148: UN | F148: 2 | G148: 78.11 | H148: 96.49 | I148: 192.98
A149: 4.2.19 | B149: 93654 | C149: SINAPI | D149: DISJUNTOR MONOPOLAR TIPO DIN, CORRENTE NOMINAL DE 16A - FORNECIMENTO E INSTALAÇÃO. AF_10/2020 | E149: UN | F149: 4 | G149: 10.89 | H149: 13.45 | I149: 53.8
A150: 4.2.20 | B150: 93660 | C150: SINAPI | D150: DISJUNTOR BIPOLAR TIPO DIN, CORRENTE NOMINAL DE 10A - FORNECIMENTO E INSTALAÇÃO. AF_10/2020 | E150: UN | F150: 4 | G150: 49.42 | H150: 61.05 | I150: 244.2
A151: 4.2.21 | B151: 93653 | C151: SINAPI | D151: DISJUNTOR MONOPOLAR TIPO DIN, CORRENTE NOMINAL DE 10A - FORNECIMENTO E INSTALAÇÃO. AF_10/2020 | E151: UN | F151: 2 | G151: 10.3 | H151: 12.72 | I151: 25.44
A152: 4.2.22 | B152: 92001 | C152: SINAPI | D152: TOMADA BAIXA DE EMBUTIR (1 MÓDULO), 2P+T 20 A, INCLUINDO SUPORTE E PLACA - FORNECIMENTO E INSTALAÇÃO. AF_03/2023 | E152: UN | F152: 4 | G152: 29.35 | H152: 36.25 | I152: 145
A153: 5 | D153: DIVERSOS
A154: 5.1 | B154: CODEVASF 240 | C154: Próprio | D154: LOGOMARCA EM ALTO RELEVO | E154: und | F154: 3 | G154: 375.11 | H154: =TRUNC(G154*(1+$G$5)*(1-$I$8),2) -> 463.41 | I154: =TRUNC(F154*H154,2) -> 1390.23
A155: 5.2 | B155: 5 | C155: ORSE | D155: Placa de inauguração de obra em alumínio 0,50 x 0,70 m | E155: un | F155: 1 | G155: 2087.8 | H155: =TRUNC(G155*(1+$G$5)*(1-$I$8),2) -> 2579.26 | I155: =TRUNC(F155*H155,2) -> 2579.26

Sheet Cronograma
B1: Ministério da Integração e do Desenvolvimento Regional - MIDR
B2: Companhia de Desenvolvimento dos Vales do São Francisco e do Parnaíba
B3: Gerência Regional de Infraestrutura
A5: ='Resumo do Orçamento'!D5 -> Espaço Multiuso - Tipo 01
A7: CRONOGRAMA FÍSICO E FINANCEIRO
A9: ITEM | B9: DESCRIÇÃO DOS SERVIÇOS | C9: R$ | E9: PRAZO (DIAS)
D10: 30 | E10: 60 | F10: 90 | G10: 120 | H10: 150 | I10: 180 | J10: 210
A12: 1 | B12: ='Resumo do Orçamento'!D11 -> SERVIÇOS PRELIMINARES | C12: ='Resumo do Orçamento'!J11 -> 52911.37 | D12: 0.45 | E12: 0.13 | F12: 0.1 | G12: 0.1 | H12: 0.1 | I12: 0.1 | J12: 0.02 | K12: =SUM(D12:J12) -> 1
D13: =ROUND(D12*$C$12,2) -> 23810.12 | E13: 6878.48 | F13: 5291.14 | G13: 5291.14 | H13: 5291.14 | I13: 5291.14 | J13: 1058.23
A14: 2 | B14: ='Resumo do Orçamento'!D12 -> ESPAÇO MULTIEVENTOS | C14: ='Resumo do Orçamento'!J12 -> 421354.92 | D14: 0 | E14: 0 | F14: 0.2 | G14: 0.3 | H14: 0.3 | I14: 0.2 | J14: 0 | K14: =SUM(D14:J14) -> 1
D15: =ROUND(D14*$C$14,2) -> 0 | E15: 0 | F15: 84270.98 | G15: 126406.48 | H15: 126406.48 | I15: 84270.98 | J15: 0
A16: 3 | B16: ='Resumo do Orçamento'!D13 -> BANHEIROS | C16: ='Resumo do Orçamento'!J13 -> 71714.45 | D16: 0 | E16: 0 | F16: 0 | G16: 0 | H16: 0.5 | I16: 0.5 | J16: 0 | K16: =SUM(D16:J16) -> 1
D17: =ROUND(D16*$C$16,2) -> 0 | E17: 0 | F17: 0 | G17: 0 | H17: 35857.23 | I17: 35857.23 | J17: 0
A18: 4 | B18: ='Resumo do Orçamento'!D14 -> INSTALAÇÕES ELÉTRICA (GERAL) | C18: ='Resumo do Orçamento'!J14 -> 27813.39 | D18: 0 | E18: 0 | F18: 0 | G18: 0 | H18: 0 | I18: 0.5 | J18: 0.5 | K18: =SUM(D18:J18) -> 1
D19: =ROUND(D18*$C$20,2) -> 0 | E19: =ROUND(E18*$C$20,2) -> 0 | F19: =ROUND(F18*$C$20,2) -> 0 | G19: =ROUND(G18*$C$20,2) -> 0 | H19: =ROUND(H18*$C$20,2) -> 0 | I19: =ROUND(I18*$C$18,2) -> 13906.7 | J19: =ROUND(J18*$C$18,2) -> 13906.7
A20: 5 | B20: ='Resumo do Orçamento'!D15 -> DIVERSOS | C20: ='Resumo do Orçamento'!J15 -> 3969.49 | D20: 0 | E20: 0 | F20: 0 | G20: 0 | H20: 0 | I20: 0 | J20: 1 | K20: =SUM(D20:J20) -> 1
D21: =ROUND(D20*$C$20,2) -> 0 | E21: 0 | F21: 0 | G21: 0 | H21: 0 | I21: 0 | J21: 3969.49
B24: Total Geral | C24: =C12+C14+C16+C18+C20 -> 577763.62 | D24: =D13+D15+D17+D19+D21 -> 23810.12 | E24: 6878.48 | F24: 89562.12 | G24: 131697.62 | H24: 167554.85 | I24: 139326.05 | J24: 18934.42
D26: =D24/$C$24 -> 0.0412108329 | E26: 0.01190535327 | F26: 0.15501516 | G26: 0.227943774 | H26: 0.2900058851 | I26: 0.2411471494 | J26: 0.03277191458
B27: Total Geral Acumulado | D27: =D24+C27 -> 23810.12 | E27: 30688.6 | F27: 120250.72 | G27: 251948.34 | H27: 419503.19 | I27: 558829.24 | J27: =J24+I27-0.02 -> 577763.64

Sheet BDI
B1: Ministério da Integração e do Desenvolvimento Regional - MIDR
B2: Companhia de Desenvolvimento dos Vales do São Francisco e do Parnaíba
B3: 4ª Gerência Regional de Infraestrutura
D5: Sem Desoneração
A7: DETALHAMENTO DO BDI
A9: ITEM | B9: DESCRIÇÕES DOS ITENS | D9: %
A12: 1 | B12: ADMINISTRAÇÃO CENTRAL ( AC ) | D12: 4
A14: 2 | B14: TRIBUTOS ( I ) | D14: =SUM(D15:D18) -> 6.65
A15: 2.1 | B15: ISS | D15: 3
A16: 2.2 | B16: PIS | D16: 0.65
A17: 2.3 | B17: Cofins | D17: 3
A18: 2.4 | B18: CPRB (Contribuição Previdenciária sobre a Receita Bruta) | D18: 0
A20: 3 | B20: TAXA DE RISCO ( R ) | D20: 1.27
A22: 4 | B22: SEGURO E GARANTIAS (S + G) | D22: 0.8
A24: 5 | B24: DESPESAS FINANCEIRAS ( F ) | D24: 1.23
A26: 6 | B26: LUCRO ( L ) | D26: 7.4
D27: =ROUND((((1+(D12+D20)/100)*(1+(D24/100))*(1+(D26/100)))/((1-(D14/100)))-1),4) -> 0.226
A29: BDI = | B29: (1+AC+R+S+G)*(1+DF)*(1+L) | C29: -1 ====================> | D29: =ROUND((((1+(D12+D20+D22)/100)*(1+(D24/100))*(1+(D26/100)))/((1-(D14/100)))-1),4) -> 0.2354
B30: (1-I)
A31: Lei n°7.983/13 - Estabelace regras e critérios para eleboração dp orçamento de referência de obras e serviços de engenharia, contratados e executados com recusros dos orçamentos da União; Acordão n°2622/2013 - Estabelece os parâmetros de referência para as taxas de BDI por tipo de obra; Lei n° 13.161/15 - Desoneração Fiscal

Sheet Encargos Sociais
B1: Ministério da Integração e do Desenvolvimento Regional - MIDR
B2: Companhia de Desenvovimento dos Vales do São Francisco e do Parnaíba
B3: 4ª Gerência Regional de Infraestrutura
A5: Detalhamento dos Encargos Sociais – Horista e Mensalista – Não Desonerado
A8: DISCRIMINAÇÃO | C8: HORISTA | D8: MENSALISTA
C9: % | D9: %
A10: A | B10: ENCARGOS SOCIAIS BÁSICOS
A11: A1 | B11: INSS | C11: 0.2 | D11: 0.2
A12: A2 | B12: SESI | C12: 0.015 | D12: 0.015
A13: A3 | B13: SENAI | C13: 0.01 | D13: 0.01
A14: A4 | B14: INCRA | C14: 0.002 | D14: 0.002
A15: A5 | B15: SEBRAE | C15: 0.006 | D15: 0.006
A16: A6 | B16: Salário Educação | C16: 0.025 | D16: 0.025
A17: A7 | B17: Seguro Contra Acidente de Trabalho | C17: 0.03 | D17: 0.03
A18: A8 | B18: FGTS | C18: 0.08 | D18: 0.08
A19: A9 | B19: SECONCI | C19: 0 | D19: 0
A20: SUBTOTAL DE “A”: | C20: 0.368 | D20: 36.8
A21: B | B21: ENCARGOS SOCIAIS QUE RECEBEM INCIDÊNCIA DE “A”
A22: B1 | B22: Repouso Semanal Remunerado | C22: 0.1787 | D22: 0
A23: B2 | B23: Feriados | C23: 0.0393 | D23: 0
A24: B3 | B24: Auxílio-Enfermidade | C24: 0.0085 | D24: 0.0064
A25: B4 | B25: 13º Salário | C25: 0.1098 | D25: 0.0833
A26: B5 | B26: Licença Paternidade | C26: 0.0006 | D26: 0.0004
A27: B6 | B27: Faltas Justificadas | C27: 0.0073 | D27: 0.0056
A28: B7 | B28: Dias de Chuva | C28: 0.0151 | D28: 0
A29: B8 | B29: Auxílio Acidente de Trabalho | C29: 0.001 | D29: 0.0008
A30: B9 | B30: Férias Gozadas | C30: 0.1137 | D30: 0.0864
A31: B10 | B31: Salário Maternidade | C31: 0.0004 | D31: 0.0003
A32: SUBTOTAL DE “B”: | C32: 0.4744 | D32: 0.1832
A33: C | B33: ENCARGOS SOCIAIS QUE NÃO RECEBEM INCIDÊNCIA DE “A”
A34: C1 | B34: Aviso Prévio Indenizado | C34: 0.0483 | D34: 0.0367
A35: C2 | B35: Aviso Prévio Trabalhado | C35: 0.0011 | D35: 0.0009
A36: C3 | B36: Férias Indenizadas | C36: 0.0235 | D36: 0.0179
A37: C4 | B37: Depósito Rescisão Sem Justa Causa | C37: 0.0271 | D37: 0.0206
A38: C5 | B38: Indenização Adicional | C38: 0.0041 | D38: 0.0031
A39: SUBTOTAL DE “C”: | C39: 0.1041 | D39: 0.0792
A40: D | B40: REINCIDÊNCIAS DE UM GRUPO SOBRE O OUTRO
A41: D1 | B41: Reincidência de “A” sobre “B” | C41: 0.1746 | D41: 0.0674
A42: D2 | B42: Reincidência de Grupo A sobre Aviso Prévio Trabalhado e Reincidência do FGTS sobre Aviso Prévio Indenizado | C42: 0.0043 | D42: 0.0033
A43: SUBTOTAL DE “D”: | C43: 0.1789 | D43: 0.0707
A44: TOTAIS DE ENCARGOS SOCIAIS: | C44: 1.1254 | D44: 0.7011

Sheet Curva ABC de Serviços
C1: Obra | D1: Bancos | E1: B.D.I. | H1: Encargos Sociais
C2: Espaço Multiuso - Tipo 01 | D2: SINAPI - 08/2024 - Sergipe ORSE - 06/2024 - Sergipe | E2: 23,54% | H2: Não Desonerado: Horista: 112,54% Mensalista: 70,11%
A3: Curva ABC de Serviços
A4: Código | B4: Banco | C4: Descrição | D4: Tipo | E4: Und | F4: Quant. | G4: Valor Unit | H4: Total | I4: Peso (%) | J4: Peso Acumulado (%)
A5: 100777 | B5: SINAPI | C5: ESTRUTURA TRELIÇADA DE COBERTURA, TIPO SHED, COM LIGAÇÕES PARAFUSADAS, INCLUSOS PERFIS METÁLICOS, CHAPAS METÁLICAS, MÃO DE OBRA E TRANSPORTE COM GUINDASTE - FORNECIMENTO E INSTALAÇÃO. AF_01/2020_PSA | D5: FUES - FUNDAÇÕES E ESTRUTURAS | E5: KG | F5: 5.500,0 | G5: =VLOOKUP(A5,'Orçamento Sintético'!$B$13:$H$155,7,FALSE) -> 14.04 | H5: =TRUNC(F5*G5,2) -> 77220 | I5: =H5/$H$112 -> 0.1336532727 | J5: =I5 -> 0.1336532727
A6: 94994 | B6: SINAPI | C6: EXECUÇÃO DE PASSEIO (CALÇADA) OU PISO DE CONCRETO COM CONCRETO MOLDADO IN LOCO, FEITO EM OBRA, ACABAMENTO CONVENCIONAL, ESPESSURA 8 CM, ARMADO. AF_08/2022 | D6: PISO - PISOS | E6: m² | F6: 631,01 | G6: =VLOOKUP(A6,'Orçamento Sintético'!$B$13:$H$155,7,FALSE) -> 114.52 | H6: =TRUNC(F6*G6,2) -> 72263.26 | I6: =H6/$H$112 -> 0.1250740896 | J6: =I6+J5 -> 0.2587273623
A7: 102364 | B7: SINAPI | C7: ALAMBRADO PARA QUADRA POLIESPORTIVA, ESTRUTURADO POR TUBOS DE ACO GALVANIZADO, (MONTANTES COM DIAMETRO 2", TRAVESSAS E ESCORAS COM DIÂMETRO 1 ¼"), COM TELA DE ARAME GALVANIZADO, FIO 10 BWG E MALHA QUADRADA 5X5CM (EXCETO MURETA). AF_03/2021 | D7: URBA - URBANIZAÇÃO | E7: m² | F7: 211,75 | G7: =VLOOKUP(A7,'Orçamento Sintético'!$B$13:$H$155,7,FALSE) -> 237.92 | H7: 50379.56 | I7: =H7/$H$112 -> 0.08719752747 | J7: =I7+J6 -> 0.3459248897
A8: 97086 | B8: SINAPI | C8: FABRICAÇÃO, MONTAGEM E DESMONTAGEM DE FORMA PARA RADIER, PISO DE CONCRETO OU LAJE SOBRE SOLO, EM MADEIRA SERRADA, 4 UTILIZAÇÕES. AF_09/2021 | D8: FUES - FUNDAÇÕES E ESTRUTURAS | E8: m² | F8: 298,32 | G8: =VLOOKUP(A8,'Orçamento Sintético'!$B$13:$H$155,7,FALSE) -> 150.05 | H8: 44762.91 | I8: 0.07747616443 | J8: 0.4234010542
A9: CODEVASF 322 | B9: Próprio | C9: Projeto Executivo (Multiuso) | D9: SERT - SERVIÇOS TÉCNICOS | E9: und | F9: 1,0 | G9: =VLOOKUP(A9,'Orçamento Sintético'!$B$13:$H$155,7,FALSE) -> 22669.52 | H9: 22669.52 | I9: 0.03923666846 | J9: 0.4626377226
A10: 9399 | B10: ORSE | C10: Concreto simples fabricado na obra, fck=25 mpa, lançado e adensado | D10: Concreto Simples | E10: m³ | F10: 28,12 | G10: =VLOOKUP(A10,'Orçamento Sintético'!$B$13:$H$155,7,FALSE) -> 774.31 | H10: 21773.59 | I10: 0.03768598241 | J10: 0.500323705
A11: CODEVASF 122 | B11: Próprio | C11: Administração local de pequenas obras | D11: CANT - CANTEIRO DE OBRAS | E11: und | F11: 1 | G11: =VLOOKUP(A11,'Orçamento Sintético'!$B$13:$H$155,7,FALSE) -> 20996.36 | H11: 20996.36 | I11: 0.03634074371 | J11: 0.5366644487
A12: 94991 | B12: SINAPI | C12: EXECUÇÃO DE PASSEIO (CALÇADA) OU PISO DE CONCRETO COM CONCRETO MOLDADO IN LOCO, USINADO C20, ACABAMENTO CONVENCIONAL, NÃO ARMADO. AF_08/2022 | D12: PISO - PISOS | E12: m³ | F12: 18,7 | G12: =VLOOKUP(A12,'Orçamento Sintético'!$B$13:$H$155,7,FALSE) -> 856.88 | H12: 16023.65 | I12: 0.02773391949 | J12: 0.5643983682
A13: 94213 | B13: SINAPI | C13: TELHAMENTO COM TELHA DE AÇO/ALUMÍNIO E = 0,5 MM, COM ATÉ 2 ÁGUAS, INCLUSO IÇAMENTO. AF_07/2019 | D13: COBE - COBERTURA | E13: m² | F13: 192,0 | G13: =VLOOKUP(A13,'Orçamento Sintético'!$B$13:$H$155,7,FALSE) -> 82 | H13: 15744 | I13: 0.02724989802 | J13: 0.5916482663
A14: 103330 | B14: SINAPI | C14: ALVENARIA DE VEDAÇÃO DE BLOCOS CERÂMICOS FURADOS NA HORIZONTAL DE 11,5X19X19 CM (ESPESSURA 11,5 CM) E ARGAMASSA DE ASSENTAMENTO COM PREPARO EM BETONEIRA. AF_12/2021 | D14: PARE - PAREDES/PAINEIS | E14: m² | F14: 177,28 | G14: =VLOOKUP(A14,'Orçamento Sintético'!$B$13:$H$155,7,FALSE) -> 85.9 | H14: 15228.35 | I14: 0.02635740502 | J14: 0.6180056713
A15: 100758 | B15: SINAPI | C15: PINTURA COM TINTA ALQUÍDICA DE ACABAMENTO (ESMALTE SINTÉTICO ACETINADO) APLICADA A ROLO OU PINCEL SOBRE SUPERFÍCIES METÁLICAS (EXCETO PERFIL) EXECUTADO EM OBRA (02 DEMÃOS). AF_01/2020 | D15: PINT - PINTURAS | E15: m² | F15: 238,06 | G15: =VLOOKUP(A15,'Orçamento Sintético'!$B$13:$H$155,7,FALSE) -> 59.58 | H15: 14183.61 | I15: 0.02454915689 | J15: 0.6425548282
A16: 11532 | B16: ORSE | C16: Portao em tela arame galvanizado n.12 malha 2" e moldura em tubos de aco com duas folhas de abrir, incluso ferragens | D16: 343 | E16: m² | F16: 12,6 | G16: =VLOOKUP(A16,'Orçamento Sintético'!$B$13:$H$155,7,FALSE) -> 926.42 | H16: 11672.89 | I16: 0.02020357356 | J16: 0.6627584017
A17: 96622 | B17: SINAPI | C17: LASTRO COM MATERIAL GRANULAR, APLICADO EM PISOS OU LAJES SOBRE SOLO, ESPESSURA DE *5 CM*. AF_01/2024 | D17: FUES - FUNDAÇÕES E ESTRUTURAS | E17: m³ | F17: 31,55 | G17: =VLOOKUP(A17,'Orçamento Sintético'!$B$13:$H$155,7,FALSE) -> 287.65 | H17: 9075.35 | I17: 0.01570772117 | J17: 0.6784661229
A18: 101963 | B18: SINAPI | C18: LAJE PRÉ-MOLDADA UNIDIRECIONAL, BIAPOIADA, PARA PISO, ENCHIMENTO EM CERÂMICA, VIGOTA CONVENCIONAL, ALTURA TOTAL DA LAJE (ENCHIMENTO+CAPA) = (8+4). AF_11/2020_PA | D18: FUES - FUNDAÇÕES E ESTRUTURAS | E18: m² | F18: 33,83 | G18: =VLOOKUP(A18,'Orçamento Sintético'!$B$13:$H$155,7,FALSE) -> 223.34 | H18: 7555.59 | I18: 0.01307730291 | J18: 0.6915434258
A19: 4555 | B19: ORSE | C19: Meio-fio pré moldado de concreto simples (0,12 x 0,30 x 1,00m), rejuntado comargamassa de cimento e areia no traço 1:3 | D19: Meios-Fios e Guias | E19: m | F19: 135,68 | G19: =VLOOKUP(A19,'Orçamento Sintético'!$B$13:$H$155,7,FALSE) -> 54.78 | H19: 7432.55 | I19: 0.01286434385 | J19: 0.7044077697
A20: 97914 | B20: SINAPI | C20: TRANSPORTE COM CAMINHÃO BASCULANTE DE 6 M³, EM VIA URBANA PAVIMENTADA, DMT ATÉ 30 KM (UNIDADE: M3XKM). AF_07/2020 | D20: TRAN - TRANSPORTES, CARGAS E DESCARGAS | E20: M3XKM | F20: 2.125,47 | G20: =VLOOKUP(A20,'Orçamento Sintético'!$B$13:$H$155,7,FALSE) -> 3.44 | H20: 7311.61 | I20: 0.01265501949 | J20: 0.7170627892
A21: CODEVASF 234 | B21: Próprio | C21: BICICLETÁRIO EM TUBO DE AÇO GALVANIZADO DN 50mm | D21: SEDI - SERVIÇOS DIVERSOS | E21: UND | F21: 10,0 | G21: =VLOOKUP(A21,'Orçamento Sintético'!$B$13:$H$155,7,FALSE) -> 731.06 | H21: 7310.6 | I21: 0.01265327137 | J21: 0.7297160605
A22: 9222 | B22: ORSE | C22: Guarda-corpo em tubos de aço galvanizado (altura = 0,90), com barras verticais a cada 2,00m (2"), barra horizontal intermediária (2") e barra horizontal superior (2") | D22: Esquadrias de Ferro | E22: m | F22: 20,68 | G22: =VLOOKUP(A22,'Orçamento Sintético'!$B$13:$H$155,7,FALSE) -> 350.45 | H22: 7247.3 | I22: 0.012543711 | J22: 0.7422597715
A23: 71 | B23: ORSE | C23: Aterro manual de áreas, sem aquisição de material, com espalhamento e compactação | D23: Aterros / Reaterros / Compactações | E23: m³ | F23: 107,35 | G23: =VLOOKUP(A23,'Orçamento Sintético'!$B$13:$H$155,7,FALSE) -> 64.63 | H23: 6938.03 | I23: 0.01200842289 | J23: 0.7542681944
A24: 87529 | B24: SINAPI | C24: MASSA ÚNICA, EM ARGAMASSA TRAÇO 1:2:8, PREPARO MECÂNICO, APLICADA MANUALMENTE EM PAREDES INTERNAS DE AMBIENTES COM ÁREA ENTRE 5M² E 10M², E = 17,5MM, COM TALISCAS. AF_03/2024 | D24: REVE - REVESTIMENTO E TRATAMENTO DE SUPERFÍCIES | E24: m² | F24: 150,85 | G24: =VLOOKUP(A24,'Orçamento Sintético'!$B$13:$H$155,7,FALSE) -> 43.79 | H24: 6605.72 | I24: 0.01143325688 | J24: 0.7657014513
A25: 98524 | B25: SINAPI | C25: LIMPEZA MANUAL DE VEGETAÇÃO EM TERRENO COM ENXADA. AF_03/2024 | D25: URBA - URBANIZAÇÃO | E25: m² | F25: 1.056,97 | G25: =VLOOKUP(A25,'Orçamento Sintético'!$B$13:$H$155,7,FALSE) -> 5.37 | H25: 5675.92 | I25: 0.009823948247 | J25: 0.7755253995
A26: 92409 | B26: SINAPI | C26: MONTAGEM E DESMONTAGEM DE FÔRMA DE PILARES RETANGULARES E ESTRUTURAS SIMILARES, PÉ-DIREITO SIMPLES, EM MADEIRA SERRADA, 1 UTILIZAÇÃO. AF_09/2020 | D26: FUES - FUNDAÇÕES E ESTRUTURAS | E26: m² | F26: 17,4 | G26: =VLOOKUP(A26,'Orçamento Sintético'!$B$13:$H$155,7,FALSE) -> 317.28 | H26: 5520.67 | I26: 0.009555239744 | J26: 0.7850806393
A27: 96544 | B27: SINAPI | C27: ARMAÇÃO DE BLOCO UTILIZANDO AÇO CA-50 DE 6,3 MM - MONTAGEM. AF_01/2024 | D27: FUES - FUNDAÇÕES E ESTRUTURAS | E27: KG | F27: 233,92 | G27: =VLOOKUP(A27,'Orçamento Sintético'!$B$13:$H$155,7,FALSE) -> 23.5 | H27: 5497.12 | I27: 0.009514479131 | J27: 0.7945951184
A28: 00006079 | B28: SINAPI | C28: ARGILA, ARGILA VERMELHA OU ARGILA ARENOSA (RETIRADA NA JAZIDA, SEM TRANSPORTE) | D28: Material | E28: m³ | F28: 118,08 | G28: =VLOOKUP(A28,'Orçamento Sintético'!$B$13:$H$155,7,FALSE) -> 46.14 | H28: 5448.21 | I28: 0.009429825135 | J28: 0.8040249436
A29: 96543 | B29: SINAPI | C29: ARMAÇÃO DE BLOCO UTILIZANDO AÇO CA-60 DE 5 MM - MONTAGEM. AF_01/2024 | D29: FUES - FUNDAÇÕES E ESTRUTURAS | E29: KG | F29: 198,19 | G29: =VLOOKUP(A29,'Orçamento Sintético'!$B$13:$H$155,7,FALSE) -> 25.54 | H29: 5061.77 | I29: 0.008760970295 | J29: 0.8127859139
A30: 98078 | B30: SINAPI | C30: SUMIDOURO RETANGULAR, EM ALVENARIA COM TIJOLOS CERÂMICOS MACIÇOS, DIMENSÕES INTERNAS: 0,8 X 1,4 X H=3,0 M, ÁREA DE INFILTRAÇÃO: 13,2 M² (PARA 5 CONTRIBUINTES). AF_12/2020 | D30: INHI - INSTALAÇÕES HIDROS SANITÁRIAS | E30: UN | F30: 1,0 | G30: =VLOOKUP(A30,'Orçamento Sintético'!$B$13:$H$155,7,FALSE) -> 4573.26 | H30: 4573.26 | I30: 0.007915451514 | J30: 0.8207013654
A31: 87273 | B31: SINAPI | C31: REVESTIMENTO CERÂMICO PARA PAREDES INTERNAS COM PLACAS TIPO ESMALTADA DE DIMENSÕES 33X45 CM APLICADAS NA ALTURA INTEIRA DAS PAREDES. AF_02/2023_PE | D31: REVE - REVESTIMENTO E TRATAMENTO DE SUPERFÍCIES | E31: m² | F31: 55,83 | G31: =VLOOKUP(A31,'Orçamento Sintético'!$B$13:$H$155,7,FALSE) -> 79.3 | H31: 4427.31 | I31: 0.007662839559 | J31: 0.8283642049
A32: 331 | B32: ORSE | C32: Poste de concreto duplo T (DT) 9/200 - fornecimento e assentamento | D32: Entrada em Baixa Tensão | E32: un | F32: 4,0 | G32: =VLOOKUP(A32,'Orçamento Sintético'!$B$13:$H$155,7,FALSE) -> 1080.35 | H32: 4321.4 | I32: 0.007479529302 | J32: 0.8358437342
A33: 93358 | B33: SINAPI | C33: ESCAVAÇÃO MANUAL DE VALA COM PROFUNDIDADE MENOR OU IGUAL A 1,30 M. AF_02/2021 | D33: MOVT - MOVIMENTO DE TERRA | E33: m³ | F33: 43,08 | G33: =VLOOKUP(A33,'Orçamento Sintético'!$B$13:$H$155,7,FALSE) -> 99.79 | H33: 4298.95 | I33: 0.007440672581 | J33: 0.8432844068
A34: 642 | B34: ORSE | C34: Ponto de luz em teto ou parede, com eletroduto pvc rígido embutido Ø 3/4" | D34: Pontos de Suprimento de Energia Convencionais | E34: un | F34: 12,0 | G34: =VLOOKUP(A34,'Orçamento Sintético'!$B$13:$H$155,7,FALSE) -> 343.89 | H34: 4126.68 | I34: 0.007142505664 | J34: 0.8504269125
A35: 8349 | B35: ORSE | C35: Refletor para lampada vapor de sódio 400w, Olivo ou similar, inclusive lâmpada e reator | D35: Luminárias Externas | E35: un | F35: 12,0 | G35: =VLOOKUP(A35,'Orçamento Sintético'!$B$13:$H$155,7,FALSE) -> 321 | H35: 3852 | I35: 0.006667086331 | J35: 0.8570939988
A36: 100701 | B36: SINAPI | C36: PORTA DE FERRO, DE ABRIR, TIPO GRADE COM CHAPA, COM GUARNIÇÕES. AF_12/2019 | D36: ESQV - ESQUADRIAS/FERRAGENS/VIDROS | E36: m² | F36: 5,6 | G36: =VLOOKUP(A36,'Orçamento Sintético'!$B$13:$H$155,7,FALSE) -> 684 | H36: 3830.4 | I36: 0.0066297008 | J36: 0.8637236996
A37: 92915 | B37: SINAPI | C37: ARMAÇÃO DE ESTRUTURAS DIVERSAS DE CONCRETO ARMADO, EXCETO VIGAS, PILARES, LAJES E FUNDAÇÕES, UTILIZANDO AÇO CA-60 DE 5,0 MM - MONTAGEM. AF_06/2022 | D37: FUES - FUNDAÇÕES E ESTRUTURAS | E37: KG | F37: 174,0 | G37: =VLOOKUP(A37,'Orçamento Sintético'!$B$13:$H$155,7,FALSE) -> 22.01 | H37: 3829.74 | I37: 0.006628558464 | J37: 0.8703522581
A38: 87548 | B38: SINAPI | C38: MASSA ÚNICA, EM ARGAMASSA TRAÇO 1:2:8, PREPARO MANUAL, APLICADA MANUALMENTE EM PAREDES INTERNAS DE AMBIENTES COM ÁREA ENTRE 5M² E 10M², E = 10MM, COM TALISCAS. AF_03/2024 | D38: REVE - REVESTIMENTO E TRATAMENTO DE SUPERFÍCIES | E38: m² | F38: 110,57 | G38: =VLOOKUP(A38,'Orçamento Sintético'!$B$13:$H$155,7,FALSE) -> 33.98 | H38: 3757.16 | I38: 0.006502936157 | J38: 0.8768551942
A39: 10528 | B39: ORSE | C39: Aluguel mensal de área | D39: Serviços | E39: mês | F39: 5,0 | G39: =VLOOKUP(A39,'Orçamento Sintético'!$B$13:$H$155,7,FALSE) -> 747.15 | H39: 3735.75 | I39: 0.006465879481 | J39: 0.8833210737
A40: 92263 | B40: SINAPI | C40: FABRICAÇÃO DE FÔRMA PARA PILARES E ESTRUTURAS SIMILARES, EM CHAPA DE MADEIRA COMPENSADA RESINADA, E = 17 MM. AF_09/2020 | D40: FUES - FUNDAÇÕES E ESTRUTURAS | E40: m² | F40: 17,2 | G40: =VLOOKUP(A40,'Orçamento Sintético'!$B$13:$H$155,7,FALSE) -> 208.63 | H40: 3588.43 | I40: 0.006210896314 | J40: 0.88953197
A41: 88423 | B41: SINAPI | C41: APLICAÇÃO MANUAL DE PINTURA COM TINTA TEXTURIZADA ACRÍLICA EM PAREDES EXTERNAS DE CASAS, UMA COR. AF_03/2024 | D41: PINT - PINTURAS | E41: m² | F41: 110,57 | G41: =VLOOKUP(A41,'Orçamento Sintético'!$B$13:$H$155,7,FALSE) -> 27.71 | H41: 3063.89 | I41: 0.005303016391 | J41: 0.8948349864
A42: 3641 | B42: ORSE | C42: Acabamento de superfície de piso de concreto com polimento mecânico com acabadora simples - Rev 02 | D42: Pavimentações Externas | E42: m² | F42: 631,01 | G42: =VLOOKUP(A42,'Orçamento Sintético'!$B$13:$H$155,7,FALSE) -> 4.85 | H42: 3060.39 | I42: 0.00529695855 | J42: 0.900131945
A43: 51 | B43: ORSE | C43: Placa de obra em chapa aço galvanizado, instalada - Rev 02_01/2022 | D43: Mobilização / Instalações Provisórias / Desmobilização | E43: m² | F43: 6,4 | G43: =VLOOKUP(A43,'Orçamento Sintético'!$B$13:$H$155,7,FALSE) -> 464 | H43: 2969.6 | I43: 0.005139818164 | J43: 0.9052717631
A44: 87532 | B44: SINAPI | C44: EMBOÇO, EM ARGAMASSA TRAÇO 1:2:8, PREPARO MANUAL, APLICADO MANUALMENTE EM PAREDES INTERNAS DE AMBIENTES COM ÁREA ENTRE 5M² E 10M², E = 17,5MM, COM TALISCAS. AF_03/2024 | D44: REVE - REVESTIMENTO E TRATAMENTO DE SUPERFÍCIES | E44: m² | F44: 55,83 | G44: =VLOOKUP(A44,'Orçamento Sintético'!$B$13:$H$155,7,FALSE) -> 46.37 | H44: 2588.83 | I44: 0.004480777026 | J44: 0.9097525402
A45: 5 | B45: ORSE | C45: Placa de inauguração de obra em alumínio 0,50 x 0,70 m | D45: Serviços Iniciais de Obras Civis | E45: un | F45: 1,0 | G45: =VLOOKUP(A45,'Orçamento Sintético'!$B$13:$H$155,7,FALSE) -> 2579.26 | H45: 2579.26 | I45: 0.004464213159 | J45: 0.9142167533
A46: 88489 | B46: SINAPI | C46: PINTURA LÁTEX ACRÍLICA PREMIUM, APLICAÇÃO MANUAL EM PAREDES, DUAS DEMÃOS. AF_04/2023 | D46: PINT - PINTURAS | E46: m² | F46: 154,81 | G46: =VLOOKUP(A46,'Orçamento Sintético'!$B$13:$H$155,7,FALSE) -> 16.2 | H46: 2507.92 | I46: 0.004340737059 | J46: 0.9185574904
A47: 98052 | B47: SINAPI | C47: TANQUE SÉPTICO CIRCULAR, EM CONCRETO PRÉ-MOLDADO, DIÂMETRO INTERNO = 1,10 M, ALTURA INTERNA = 2,50 M, VOLUME ÚTIL: 2138,2 L (PARA 5 CONTRIBUINTES). AF_12/2020_PA | D47: INHI - INSTALAÇÕES HIDROS SANITÁRIAS | E47: UN | F47: 1,0 | G47: =VLOOKUP(A47,'Orçamento Sintético'!$B$13:$H$155,7,FALSE) -> 2438.16 | H47: 2438.16 | I47: 0.004219995641 | J47: 0.922777486
A48: 91931 | B48: SINAPI | C48: CABO DE COBRE FLEXÍVEL ISOLADO, 6 MM², ANTI-CHAMA 0,6/1,0 KV, PARA CIRCUITOS TERMINAIS - FORNECIMENTO E INSTALAÇÃO. AF_03/2023 | D48: INEL - INSTALAÇÃO ELÉTRICA/ELETRIFICAÇÃO E ILUMINAÇÃO EXTERNA | E48: M | F48: 200,0 | G48: =VLOOKUP(A48,'Orçamento Sintético'!$B$13:$H$155,7,FALSE) -> 12.19 | H48: 2438 | I48: 0.004219718711 | J48: 0.9269972047
A49: 103800 | B49: SINAPI | C49: PEDRA ARGAMASSADA COM CIMENTO E AREIA 1:3, 40% DE ARGAMASSA EM VOLUME - AREIA E PEDRA DE MÃO COMERCIAIS - FORNECIMENTO E ASSENTAMENTO. AF_08/2022 | D49: FUES - FUNDAÇÕES E ESTRUTURAS | E49: m³ | F49: 3,74 | G49: =VLOOKUP(A49,'Orçamento Sintético'!$B$13:$H$155,7,FALSE) -> 635.72 | H49: 2377.59 | I49: 0.004115160381 | J49: 0.9311123651
A50: 101496 | B50: SINAPI | C50: ENTRADA DE ENERGIA ELÉTRICA, AÉREA, MONOFÁSICA, COM CAIXA DE EMBUTIR, CABO DE 35 MM2 E DISJUNTOR DIN 50A (NÃO INCLUSO O POSTE DE CONCRETO). AF_07/2020_PS | D50: INEL - INSTALAÇÃO ELÉTRICA/ELETRIFICAÇÃO E ILUMINAÇÃO EXTERNA | E50: UN | F50: 1,0 | G50: =VLOOKUP(A50,'Orçamento Sintético'!$B$13:$H$155,7,FALSE) -> 1992.29 | H50: 1992.29 | I50: 0.003448278667 | J50: 0.9345606438
A51: CODEVASF 235 | B51: Próprio | C51: ENTRADA DE ENERGIA ELÉTRICA AÉREA MONOFÁSICA 40A COM POSTE DE CONCRETO, INCLUSIVE CABEAMENTO, CAIXA DE PROTEÇÃO PARA MEDIDOR E ATERRAMENTO. | D51: INEL - INSTALAÇÃO ELÉTRICA/ELETRIFICAÇÃO E ILUMINAÇÃO EXTERNA | E51: und | F51: 1,0 | G51: =VLOOKUP(A51,'Orçamento Sintético'!$B$13:$H$155,7,FALSE) -> 1934.05 | H51: 1934.05 | I51: 0.003347476199 | J51: 0.93790812
A52: 83446 | B52: SINAPI | C52: CAIXA DE PASSAGEM 30X30X40 COM TAMPA E DRENO BRITA | D52: INEL - INSTALAÇÃO ELÉTRICA/ELETRIFICAÇÃO E ILUMINAÇÃO EXTERNA | E52: UN | F52: 7,0 | G52: =VLOOKUP(A52,'Orçamento Sintético'!$B$13:$H$155,7,FALSE) -> 262.63 | H52: 1838.41 | I52: 0.003181941376 | J52: 0.9410900613
A53: 00000003 | B53: Próprio | C53: Mobilização de equipamentos e pessoal (pequenas obras) | D53: CANT - CANTEIRO DE OBRAS | E53: un | F53: 1,0 | G53: =VLOOKUP(A53,'Orçamento Sintético'!$B$13:$H$155,7,FALSE) -> 1618.12 | H53: 1618.12 | I53: 0.002800660886 | J53: 0.9438907222
A54: CODEVASF 240 | B54: Próprio | C54: LOGOMARCA EM ALTO RELEVO | D54: ASTU - ASSENTAMENTO DE TUBOS E PECAS | E54: und | F54: 3,0 | G54: =VLOOKUP(A54,'Orçamento Sintético'!$B$13:$H$155,7,FALSE) -> 463.41 | H54: 1390.23 | I54: 0.002406226228 | J54: 0.9462969485
A55: 91926 | B55: SINAPI | C55: CABO DE COBRE FLEXÍVEL ISOLADO, 2,5 MM², ANTI-CHAMA 450/750 V, PARA CIRCUITOS TERMINAIS - FORNECIMENTO E INSTALAÇÃO. AF_03/2023 | D55: INEL - INSTALAÇÃO ELÉTRICA/ELETRIFICAÇÃO E ILUMINAÇÃO EXTERNA | E55: M | F55: 250,0 | G55: =VLOOKUP(A55,'Orçamento Sintético'!$B$13:$H$155,7,FALSE) -> 5.18 | H55: 1295 | I55: 0.002241401038 | J55: 0.9485383495
A56: 91871 | B56: SINAPI | C56: ELETRODUTO RÍGIDO ROSCÁVEL, PVC, DN 25 MM (3/4"), PARA CIRCUITOS TERMINAIS, INSTALADO EM PAREDE - FORNECIMENTO E INSTALAÇÃO. AF_03/2023 | D56: INEL - INSTALAÇÃO ELÉTRICA/ELETRIFICAÇÃO E ILUMINAÇÃO EXTERNA | E56: M | F56: 80,0 | G56: =VLOOKUP(A56,'Orçamento Sintético'!$B$13:$H$155,7,FALSE) -> 15.55 | H56: 1244 | I56: 0.002153129646 | J56: 0.9506914791
A57: 87894 | B57: SINAPI | C57: CHAPISCO APLICADO EM ALVENARIA (SEM PRESENÇA DE VÃOS) E ESTRUTURAS DE CONCRETO DE FACHADA, COM COLHER DE PEDREIRO. ARGAMASSA TRAÇO 1:3 COM PREPARO EM BETONEIRA 400L. AF_10/2022 | D57: REVE - REVESTIMENTO E TRATAMENTO DE SUPERFÍCIES | E57: m² | F57: 150,85 | G57: =VLOOKUP(A57,'Orçamento Sintético'!$B$13:$H$155,7,FALSE) -> 8.1 | H57: 1221.88 | I57: 0.002114844093 | J57: 0.9528063232
A58: 101878 | B58: SINAPI | C58: QUADRO DE DISTRIBUIÇÃO DE ENERGIA EM CHAPA DE AÇO GALVANIZADO, DE SOBREPOR, COM BARRAMENTO TRIFÁSICO, PARA 18 DISJUNTORES DIN 100A - FORNECIMENTO E INSTALAÇÃO. AF_10/2020 | D58: INEL - INSTALAÇÃO ELÉTRICA/ELETRIFICAÇÃO E ILUMINAÇÃO EXTERNA | E58: UN | F58: 2,0 | G58: =VLOOKUP(A58,'Orçamento Sintético'!$B$13:$H$155,7,FALSE) -> 608.59 | H58: 1217.18 | I58: 0.002106709278 | J58: 0.9549130325
A59: 86931 | B59: SINAPI | C59: VASO SANITÁRIO SIFONADO COM CAIXA ACOPLADA LOUÇA BRANCA, INCLUSO ENGATE FLEXÍVEL EM PLÁSTICO BRANCO, 1/2 X 40CM - FORNECIMENTO E INSTALAÇÃO. AF_01/2020 | D59: INHI - INSTALAÇÕES HIDROS SANITÁRIAS | E59: UN | F59: 2,0 | G59: =VLOOKUP(A59,'Orçamento Sintético'!$B$13:$H$155,7,FALSE) -> 601.51 | H59: 1203.02 | I59: 0.002082200986 | J59: 0.9569952335
A60: 4177 | B60: ORSE | C60: Locação de construção de edificação acima de 1000 m2, inclusive execução de gabarito de madeira | D60: Locação de Edificações | E60: m² | F60: 170,0 | G60: =VLOOKUP(A60,'Orçamento Sintético'!$B$13:$H$155,7,FALSE) -> 6.75 | H60: 1147.5 | I60: 0.001986106325 | J60: 0.9589813398
A61: 94965 | B61: SINAPI | C61: CONCRETO FCK = 25MPA, TRAÇO 1:2,3:2,7 (EM MASSA SECA DE CIMENTO/ AREIA MÉDIA/ BRITA 1) - PREPARO MECÂNICO COM BETONEIRA 400 L. AF_05/2021 | D61: FUES - FUNDAÇÕES E ESTRUTURAS | E61: m³ | F61: 1,74 | G61: =VLOOKUP(A61,'Orçamento Sintético'!$B$13:$H$155,7,FALSE) -> 630.01 | H61: 1096.21 | I61: 0.001897332998 | J61: 0.9608786728
A62: 89957 | B62: SINAPI | C62: PONTO DE CONSUMO TERMINAL DE ÁGUA FRIA (SUBRAMAL) COM TUBULAÇÃO DE PVC, DN 25 MM, INSTALADO EM RAMAL DE ÁGUA, INCLUSOS RASGO E CHUMBAMENTO EM ALVENARIA. AF_12/2014 | D62: INHI - INSTALAÇÕES HIDROS SANITÁRIAS | E62: UN | F62: 7,0 | G62: =VLOOKUP(A62,'Orçamento Sintético'!$B$13:$H$155,7,FALSE) -> 155.31 | H62: 1087.17 | I62: 0.001881686461 | J62: 0.9627603593
A63: 96109 | B63: SINAPI | C63: FORRO EM PLACAS DE GESSO, PARA AMBIENTES RESIDENCIAIS. AF_08/2023_PS | D63: REVE - REVESTIMENTO E TRATAMENTO DE SUPERFÍCIES | E63: m² | F63: 16,0 | G63: =VLOOKUP(A63,'Orçamento Sintético'!$B$13:$H$155,7,FALSE) -> 63.46 | H63: 1015.36 | I63: 0.001757396879 | J63: 0.9645177562
A64: 88504 | B64: SINAPI | C64: CAIXA D´AGUA EM POLIETILENO, 500 LITROS, COM ACESSÓRIOS | D64: INHI - INSTALAÇÕES HIDROS SANITÁRIAS | E64: UN | F64: 1,0 | G64: =VLOOKUP(A64,'Orçamento Sintético'!$B$13:$H$155,7,FALSE) -> 974.28 | H64: 974.28 | I64: 0.001686295138 | J64: 0.9662040513
A65: 91859 | B65: SINAPI | C65: ELETRODUTO FLEXÍVEL LISO, PEAD, DN 32 MM (1"), PARA CIRCUITOS TERMINAIS, INSTALADO EM PAREDE - FORNECIMENTO E INSTALAÇÃO. AF_03/2023 | D65: INEL - INSTALAÇÃO ELÉTRICA/ELETRIFICAÇÃO E ILUMINAÇÃO EXTERNA | E65: M | F65: 80,0 | G65: =VLOOKUP(A65,'Orçamento Sintético'!$B$13:$H$155,7,FALSE) -> 12.08 | H65: 966.4 | I65: 0.001672656342 | J65: 0.9678767076
A66: 87878 | B66: SINAPI | C66: CHAPISCO APLICADO EM ALVENARIAS E ESTRUTURAS DE CONCRETO INTERNAS, COM COLHER DE PEDREIRO. ARGAMASSA TRAÇO 1:3 COM PREPARO MANUAL. AF_10/2022 | D66: REVE - REVESTIMENTO E TRATAMENTO DE SUPERFÍCIES | E66: m² | F66: 166,4 | G66: =VLOOKUP(A66,'Orçamento Sintético'!$B$13:$H$155,7,FALSE) -> 5.8 | H66: 965.12 | I66: 0.001670440903 | J66: 0.9695471485
A67: 3278 | B67: ORSE | C67: Ponto de interruptor 01 seção (1 s) embutido com eletroduto de pvc flexível sanfonado Ø 3/4" | D67: Conversão InfoWOrca | E67: pt | F67: 4,0 | G67: =VLOOKUP(A67,'Orçamento Sintético'!$B$13:$H$155,7,FALSE) -> 237.78 | H67: 951.12 | I67: 0.001646209541 | J67: 0.9711933581
A68: 95472 | B68: SINAPI | C68: VASO SANITARIO SIFONADO CONVENCIONAL PARA PCD SEM FURO FRONTAL COM LOUÇA BRANCA SEM ASSENTO, INCLUSO CONJUNTO DE LIGAÇÃO PARA BACIA SANITÁRIA AJUSTÁVEL - FORNECIMENTO E INSTALAÇÃO. AF_01/2020 | D68: INHI - INSTALAÇÕES HIDROS SANITÁRIAS | E68: UN | F68: 1,0 | G68: =VLOOKUP(A68,'Orçamento Sintético'!$B$13:$H$155,7,FALSE) -> 934.95 | H68: 934.95 | I68: 0.001618222317 | J68: 0.9728115804
A69: 00000004 | B69: Próprio | C69: Desmobilização de equipamentos e pessoal (pequenas obras) | D69: CANT - CANTEIRO DE OBRAS | E69: un | F69: 1,0 | G69: =VLOOKUP(A69,'Orçamento Sintético'!$B$13:$H$155,7,FALSE) -> 922.02 | H69: 922.02 | I69: 0.001595842923 | J69: 0.9744074233
A70: 92580 | B70: SINAPI | C70: TRAMA DE AÇO COMPOSTA POR TERÇAS PARA TELHADOS DE ATÉ 2 ÁGUAS PARA TELHA ONDULADA DE FIBROCIMENTO, METÁLICA, PLÁSTICA OU TERMOACÚSTICA, INCLUSO TRANSPORTE VERTICAL. AF_07/2019 | D70: COBE - COBERTURA | E70: m² | F70: 16,0 | G70: =VLOOKUP(A70,'Orçamento Sintético'!$B$13:$H$155,7,FALSE) -> 57.32 | H70: =TRUNC(F70*G70,2) -> 917.12 | I70: 0.001587361946 | J70: 0.9759947853
A71: 100858 | B71: SINAPI | C71: MICTÓRIO SIFONADO LOUÇA BRANCA - PADRÃO MÉDIO - FORNECIMENTO E INSTALAÇÃO. AF_01/2020 | D71: INHI - INSTALAÇÕES HIDROS SANITÁRIAS | E71: UN | F71: 1,0 | G71: =VLOOKUP(A71,'Orçamento Sintético'!$B$13:$H$155,7,FALSE) -> 827.14 | H71: 827.14 | I71: =H71/$H$112 -> 0.001431623517 | J71: =I71+J70 -> 0.9774264088
A72: 100872 | B72: SINAPI | C72: BARRA DE APOIO RETA, EM ALUMINIO, COMPRIMENTO 80 CM, FIXADA NA PAREDE - FORNECIMENTO E INSTALAÇÃO. AF_01/2020 | D72: INHI - INSTALAÇÕES HIDROS SANITÁRIAS | E72: UN | F72: 2,0 | G72: =VLOOKUP(A72,'Orçamento Sintético'!$B$13:$H$155,7,FALSE) -> 406.45 | H72: 812.9 | I72: 0.00140697676 | J72: 0.9788333855
A73: 93382 | B73: SINAPI | C73: REATERRO MANUAL DE VALAS, COM COMPACTADOR DE SOLOS DE PERCUSSÃO. AF_08/2023 | D73: MOVT - MOVIMENTO DE TERRA | E73: m³ | F73: 25,26 | G73: =VLOOKUP(A73,'Orçamento Sintético'!$B$13:$H$155,7,FALSE) -> 30.99 | H73: 782.8 | I73: 0.00135487933 | J73: 0.9801882649
A74: 87248 | B74: SINAPI | C74: REVESTIMENTO CERÂMICO PARA PISO COM PLACAS TIPO ESMALTADA DE DIMENSÕES 35X35 CM APLICADA EM AMBIENTES DE ÁREA MAIOR QUE 10 M2. AF_02/2023_PE | D74: PISO - PISOS | E74: m² | F74: 13,0 | G74: =VLOOKUP(A74,'Orçamento Sintético'!$B$13:$H$155,7,FALSE) -> 59.91 | H74: 778.83 | I74: 0.001348008008 | J74: 0.9815362729
A75: 94962 | B75: SINAPI | C75: CONCRETO MAGRO PARA LASTRO, TRAÇO 1:4,5:4,5 (EM MASSA SECA DE CIMENTO/ AREIA MÉDIA/ BRITA 1) - PREPARO MECÂNICO COM BETONEIRA 400 L. AF_05/2021 | D75: FUES - FUNDAÇÕES E ESTRUTURAS | E75: m³ | F75: 1,37 | G75: =VLOOKUP(A75,'Orçamento Sintético'!$B$13:$H$155,7,FALSE) -> 501.79 | H75: 687.45 | I75: 0.001189846443 | J75: 0.9827261193
A76: 94649 | B76: SINAPI | C76: TUBO, PVC, SOLDÁVEL, DE 32MM, INSTALADO EM RESERVAÇÃO PREDIAL DE ÁGUA - FORNECIMENTO E INSTALAÇÃO. AF_04/2024 | D76: INHI - INSTALAÇÕES HIDROS SANITÁRIAS | E76: M | F76: 50,0 | G76: =VLOOKUP(A76,'Orçamento Sintético'!$B$13:$H$155,7,FALSE) -> 12.93 | H76: 646.5 | I76: 0.001118969707 | J76: 0.983845089
A77: 94231 | B77: SINAPI | C77: RUFO EM CHAPA DE AÇO GALVANIZADO NÚMERO 24, CORTE DE 25 CM, INCLUSO TRANSPORTE VERTICAL. AF_07/2019 | D77: COBE - COBERTURA | E77: M | F77: 9,7 | G77: =VLOOKUP(A77,'Orçamento Sintético'!$B$13:$H$155,7,FALSE) -> 65.59 | H77: 636.22 | I77: 0.001101176964 | J77: 0.984946266
A78: 96546 | B78: SINAPI | C78: ARMAÇÃO DE BLOCO UTILIZANDO AÇO CA-50 DE 10 MM - MONTAGEM. AF_01/2024 | D78: FUES - FUNDAÇÕES E ESTRUTURAS | E78: KG | F78: 29,62 | G78: =VLOOKUP(A78,'Orçamento Sintético'!$B$13:$H$155,7,FALSE) -> 19.01 | H78: 563.07 | I78: 0.0009745680946 | J78: 0.9859208341
A79: 94228 | B79: SINAPI | C79: CALHA EM CHAPA DE AÇO GALVANIZADO NÚMERO 24, DESENVOLVIMENTO DE 50 CM, INCLUSO TRANSPORTE VERTICAL. AF_07/2019 | D79: COBE - COBERTURA | E79: M | F79: 5,0 | G79: =VLOOKUP(A79,'Orçamento Sintético'!$B$13:$H$155,7,FALSE) -> 108.49 | H79: 542.45 | I79: 0.0009388787591 | J79: 0.9868597129
A80: 86904 | B80: SINAPI | C80: LAVATÓRIO LOUÇA BRANCA SUSPENSO, 29,5 X 39CM OU EQUIVALENTE, PADRÃO POPULAR - FORNECIMENTO E INSTALAÇÃO. AF_01/2020 | D80: INHI - INSTALAÇÕES HIDROS SANITÁRIAS | E80: UN | F80: 3,0 | G80: =VLOOKUP(A80,'Orçamento Sintético'!$B$13:$H$155,7,FALSE) -> 178.75 | H80: 536.25 | I80: 0.0009281477271 | J80: 0.9877878606
A81: 88415 | B81: SINAPI | C81: APLICAÇÃO MANUAL DE FUNDO SELADOR ACRÍLICO EM PAREDES EXTERNAS DE CASAS. AF_03/2024 | D81: PINT - PINTURAS | E81: m² | F81: 110,57 | G81: =VLOOKUP(A81,'Orçamento Sintético'!$B$13:$H$155,7,FALSE) -> 4.69 | H81: 518.57 | I81: 0.0008975469778 | J81: 0.9886854076
A82: 4232 | B82: ORSE | C82: Lâmpada vapor metálico 400w, fornecimento. Rev 01_06/2024 | D82: Subestação Transformadora em Poste | E82: un | F82: 12,0 | G82: =VLOOKUP(A82,'Orçamento Sintético'!$B$13:$H$155,7,FALSE) -> 41.99 | H82: 503.88 | I82: 0.0008721213552 | J82: 0.9895575289
A83: 86915 | B83: SINAPI | C83: TORNEIRA CROMADA DE MESA, 1/2" OU 3/4", PARA LAVATÓRIO, PADRÃO MÉDIO - FORNECIMENTO E INSTALAÇÃO. AF_01/2020 | D83: INHI - INSTALAÇÕES HIDROS SANITÁRIAS | E83: UN | F83: 3,0 | G83: =VLOOKUP(A83,'Orçamento Sintético'!$B$13:$H$155,7,FALSE) -> 163.2 | H83: 489.6 | I83: 0.0008474053654 | J83: 0.9904049343
A84: 97591 | B84: SINAPI | C84: LUMINÁRIA TIPO PLAFON REDONDO COM VIDRO FOSCO, DE SOBREPOR, COM 2 LÂMPADAS FLUORESCENTES DE 15 W, SEM REATOR - FORNECIMENTO E INSTALAÇÃO. AF_02/2020 | D84: INEL - INSTALAÇÃO ELÉTRICA/ELETRIFICAÇÃO E ILUMINAÇÃO EXTERNA | E84: UN | F84: 3,0 | G84: =VLOOKUP(A84,'Orçamento Sintético'!$B$13:$H$155,7,FALSE) -> 162.19 | H84: 486.57 | I84: 0.0008421610062 | J84: 0.9912470953
A85: 96985 | B85: SINAPI | C85: HASTE DE ATERRAMENTO, DIÂMETRO 5/8", COM 3 METROS - FORNECIMENTO E INSTALAÇÃO. AF_08/2023 | D85: INEL - INSTALAÇÃO ELÉTRICA/ELETRIFICAÇÃO E ILUMINAÇÃO EXTERNA | E85: UN | F85: 4,0 | G85: =VLOOKUP(A85,'Orçamento Sintético'!$B$13:$H$155,7,FALSE) -> 109.87 | H85: 439.48 | I85: 0.0007606570874 | J85: 0.9920077524
A86: 103782 | B86: SINAPI | C86: LUMINÁRIA TIPO PLAFON CIRCULAR, DE SOBREPOR, COM LED DE 12/13 W - FORNECIMENTO E INSTALAÇÃO. AF_03/2022 | D86: INEL - INSTALAÇÃO ELÉTRICA/ELETRIFICAÇÃO E ILUMINAÇÃO EXTERNA | E86: UN | F86: 12,0 | G86: =VLOOKUP(A86,'Orçamento Sintético'!$B$13:$H$155,7,FALSE) -> 33.05 | H86: 396.6 | I86: 0.0006864398855 | J86: 0.9926941923
A87: 101162 | B87: SINAPI | C87: ALVENARIA DE VEDAÇÃO COM ELEMENTO VAZADO DE CERÂMICA (COBOGÓ) DE 7X20X20CM E ARGAMASSA DE ASSENTAMENTO COM PREPARO EM BETONEIRA. AF_05/2020 | D87: PARE - PAREDES/PAINEIS | E87: m² | F87: 2,16 | G87: =VLOOKUP(A87,'Orçamento Sintético'!$B$13:$H$155,7,FALSE) -> 160.07 | H87: 345.75 | I87: 0.000598428115 | J87: 0.9932926204
A88: 1683 | B88: ORSE | C88: Ponto de esgoto com tubo de pvc rígido soldável de Ø 100 mm (vaso sanitário) | D88: Tubos e Conexões de PVC Rígido Soldável para Esgoto | E88: pt | F88: 3,0 | G88: =VLOOKUP(A88,'Orçamento Sintético'!$B$13:$H$155,7,FALSE) -> 113.97 | H88: 341.91 | I88: 0.0005917817984 | J88: 0.9938844022
A89: 1679 | B89: ORSE | C89: Ponto de esgoto com tubo de pvc rígido soldável de Ø 40 mm (lavatórios, mictórios, ralos sifonados, etc...) | D89: Tubos e Conexões de PVC Rígido Soldável para Esgoto | E89: un | F89: 4,0 | G89: =VLOOKUP(A89,'Orçamento Sintético'!$B$13:$H$155,7,FALSE) -> 84.57 | H89: 338.28 | I89: 0.0005854989522 | J89: 0.9944699011
A90: 91863 | B90: SINAPI | C90: ELETRODUTO RÍGIDO ROSCÁVEL, PVC, DN 25 MM (3/4"), PARA CIRCUITOS TERMINAIS, INSTALADO EM FORRO - FORNECIMENTO E INSTALAÇÃO. AF_03/2023 | D90: INEL - INSTALAÇÃO ELÉTRICA/ELETRIFICAÇÃO E ILUMINAÇÃO EXTERNA | E90: M | F90: 27,0 | G90: =VLOOKUP(A90,'Orçamento Sintético'!$B$13:$H$155,7,FALSE) -> 12.13 | H90: 327.51 | I90: 0.0005668581112 | J90: 0.9950367592
A91: 98689 | B91: SINAPI | C91: SOLEIRA EM GRANITO, LARGURA 15 CM, ESPESSURA 2,0 CM. AF_09/2020 | D91: PISO - PISOS | E91: M | F91: 2,5 | G91: =VLOOKUP(A91,'Orçamento Sintético'!$B$13:$H$155,7,FALSE) -> 124.86 | H91: 312.15 | I91: 0.0005402728448 | J91: 0.9955770321
A92: 89984 | B92: SINAPI | C92: REGISTRO DE PRESSÃO BRUTO, LATÃO, ROSCÁVEL, 1/2", COM ACABAMENTO E CANOPLA CROMADOS - FORNECIMENTO E INSTALAÇÃO. AF_08/2021 | D92: INHI - INSTALAÇÕES HIDROS SANITÁRIAS | E92: UN | F92: 3,0 | G92: =VLOOKUP(A92,'Orçamento Sintético'!$B$13:$H$155,7,FALSE) -> 102.24 | H92: 306.72 | I92: 0.0005308745377 | J92: 0.9961079066
A93: 86887 | B93: SINAPI | C93: ENGATE FLEXÍVEL EM INOX, 1/2 X 40CM - FORNECIMENTO E INSTALAÇÃO. AF_01/2020 | D93: INHI - INSTALAÇÕES HIDROS SANITÁRIAS | E93: UN | F93: 4,0 | G93: =VLOOKUP(A93,'Orçamento Sintético'!$B$13:$H$155,7,FALSE) -> 64.59 | H93: 258.36 | I93: 0.0004471724882 | J93: 0.9965550791
A94: 89512 | B94: SINAPI | C94: TUBO PVC, SÉRIE R, ÁGUA PLUVIAL, DN 100 MM, FORNECIDO E INSTALADO EM RAMAL DE ENCAMINHAMENTO. AF_06/2022 | D94: INHI - INSTALAÇÕES HIDROS SANITÁRIAS | E94: M | F94: 5,0 | G94: =VLOOKUP(A94,'Orçamento Sintético'!$B$13:$H$155,7,FALSE) -> 50.79 | H94: 253.95 | I94: 0.000439539609 | J94: 0.9969946187
A95: 93660 | B95: SINAPI | C95: DISJUNTOR BIPOLAR TIPO DIN, CORRENTE NOMINAL DE 10A - FORNECIMENTO E INSTALAÇÃO. AF_10/2020 | D95: INEL - INSTALAÇÃO ELÉTRICA/ELETRIFICAÇÃO E ILUMINAÇÃO EXTERNA | E95: UN | F95: 4,0 | G95: =VLOOKUP(A95,'Orçamento Sintético'!$B$13:$H$155,7,FALSE) -> 61.05 | H95: 244.2 | I95: 0.0004226641957 | J95: 0.9974172829
A96: 93672 | B96: SINAPI | C96: DISJUNTOR TRIPOLAR TIPO DIN, CORRENTE NOMINAL DE 40A - FORNECIMENTO E INSTALAÇÃO. AF_10/2020 | D96: INEL - INSTALAÇÃO ELÉTRICA/ELETRIFICAÇÃO E ILUMINAÇÃO EXTERNA | E96: UN | F96: 2,0 | G96: =VLOOKUP(A96,'Orçamento Sintético'!$B$13:$H$155,7,FALSE) -> 96.49 | H96: 192.98 | I96: 0.000334012025 | J96: 0.9977512949
A97: 95546 | B97: SINAPI | C97: KIT DE ACESSORIOS PARA BANHEIRO EM METAL CROMADO, 5 PECAS, INCLUSO FIXAÇÃO. AF_01/2020 | D97: INHI - INSTALAÇÕES HIDROS SANITÁRIAS | E97: UN | F97: 1,0 | G97: =VLOOKUP(A97,'Orçamento Sintético'!$B$13:$H$155,7,FALSE) -> 168.85 | H97: 168.85 | I97: 0.0002922475407 | J97: 0.9980435425
A98: 89707 | B98: SINAPI | C98: CAIXA SIFONADA, PVC, DN 100 X 100 X 50 MM, JUNTA ELÁSTICA, FORNECIDA E INSTALADA EM RAMAL DE DESCARGA OU EM RAMAL DE ESGOTO SANITÁRIO. AF_08/2022 | D98: INHI - INSTALAÇÕES HIDROS SANITÁRIAS | E98: UN | F98: 3,0 | G98: =VLOOKUP(A98,'Orçamento Sintético'!$B$13:$H$155,7,FALSE) -> 50.07 | H98: 150.21 | I98: 0.0002599852123 | J98: 0.9983035277
A99: 92001 | B99: SINAPI | C99: TOMADA BAIXA DE EMBUTIR (1 MÓDULO), 2P+T 20 A, INCLUINDO SUPORTE E PLACA - FORNECIMENTO E INSTALAÇÃO. AF_03/2023 | D99: INEL - INSTALAÇÃO ELÉTRICA/ELETRIFICAÇÃO E ILUMINAÇÃO EXTERNA | E99: UN | F99: 4,0 | G99: =VLOOKUP(A99,'Orçamento Sintético'!$B$13:$H$155,7,FALSE) -> 36.25 | H99: 145 | I99: 0.0002509676838 | J99: 0.9985544954
A100: 3426 | B100: ORSE | C100: Escavação e carga com escavadeira hidráulica de material de 1ª categoria ou de jazida | D100: Conversão InfoWOrca | E100: m³ | F100: 118,08 | G100: =VLOOKUP(A100,'Orçamento Sintético'!$B$13:$H$155,7,FALSE) -> 1.22 | H100: 144.05 | I100: 0.0002493234128 | J100: 0.9988038188
A101: 97590 | B101: SINAPI | C101: LUMINÁRIA TIPO PLAFON REDONDO COM VIDRO FOSCO, DE SOBREPOR, COM 1 LÂMPADA FLUORESCENTE DE 15 W, SEM REATOR - FORNECIMENTO E INSTALAÇÃO. AF_02/2020 | D101: INEL - INSTALAÇÃO ELÉTRICA/ELETRIFICAÇÃO E ILUMINAÇÃO EXTERNA | E101: UN | F101: 1,0 | G101: =VLOOKUP(A101,'Orçamento Sintético'!$B$13:$H$155,7,FALSE) -> 122.92 | H101: 122.92 | I101: 0.0002127513634 | J101: 0.9990165701
A102: 4986 | B102: ORSE | C102: Carga mecânica de material de 1ª categoria | D102: Carga de Material | E102: m³ | F102: 118,08 | G102: =VLOOKUP(A102,'Orçamento Sintético'!$B$13:$H$155,7,FALSE) -> 0.95 | H102: 112.17 | I102: 0.0001941451386 | J102: 0.9992107153
A103: 91879 | B103: SINAPI | C103: LUVA PARA ELETRODUTO, PVC, ROSCÁVEL, DN 25 MM (3/4"), PARA CIRCUITOS TERMINAIS, INSTALADA EM LAJE - FORNECIMENTO E INSTALAÇÃO. AF_03/2023 | D103: INEL - INSTALAÇÃO ELÉTRICA/ELETRIFICAÇÃO E ILUMINAÇÃO EXTERNA | E103: UN | F103: 14,0 | G103: =VLOOKUP(A103,'Orçamento Sintético'!$B$13:$H$155,7,FALSE) -> 7.15 | H103: 100.1 | I103: 0.0001732542424 | J103: 0.9993839695
A104: 91890 | B104: SINAPI | C104: CURVA 90 GRAUS PARA ELETRODUTO, PVC, ROSCÁVEL, DN 25 MM (3/4"), PARA CIRCUITOS TERMINAIS, INSTALADA EM FORRO - FORNECIMENTO E INSTALAÇÃO. AF_03/2023 | D104: INEL - INSTALAÇÃO ELÉTRICA/ELETRIFICAÇÃO E ILUMINAÇÃO EXTERNA | E104: UN | F104: 7,0 | G104: =VLOOKUP(A104,'Orçamento Sintético'!$B$13:$H$155,7,FALSE) -> 13.97 | H104: 97.79 | I104: 0.0001692560676 | J104: 0.9995532256
A105: 91892 | B105: SINAPI | C105: CURVA 180 GRAUS PARA ELETRODUTO, PVC, ROSCÁVEL, DN 25 MM (3/4"), PARA CIRCUITOS TERMINAIS, INSTALADA EM FORRO - FORNECIMENTO E INSTALAÇÃO. AF_03/2023 | D105: INEL - INSTALAÇÃO ELÉTRICA/ELETRIFICAÇÃO E ILUMINAÇÃO EXTERNA | E105: UN | F105: 4,0 | G105: =VLOOKUP(A105,'Orçamento Sintético'!$B$13:$H$155,7,FALSE) -> 15.3 | H105: 61.2 | I105: 0.0001059256707 | J105: 0.9996591513
A106: 93654 | B106: SINAPI | C106: DISJUNTOR MONOPOLAR TIPO DIN, CORRENTE NOMINAL DE 16A - FORNECIMENTO E INSTALAÇÃO. AF_10/2020 | D106: INEL - INSTALAÇÃO ELÉTRICA/ELETRIFICAÇÃO E ILUMINAÇÃO EXTERNA | E106: UN | F106: 4,0 | G106: =VLOOKUP(A106,'Orçamento Sintético'!$B$13:$H$155,7,FALSE) -> 13.45 | H106: 53.8 | I106: 9.311766474e-05 | J106: 0.9997522689
A107: 89798 | B107: SINAPI | C107: TUBO PVC, SERIE NORMAL, ESGOTO PREDIAL, DN 50 MM, FORNECIDO E INSTALADO EM PRUMADA DE ESGOTO SANITÁRIO OU VENTILAÇÃO. AF_08/2022 | D107: INHI - INSTALAÇÕES HIDROS SANITÁRIAS | E107: M | F107: 3,5 | G107: =VLOOKUP(A107,'Orçamento Sintético'!$B$13:$H$155,7,FALSE) -> 13.36 | H107: 46.76 | I107: 8.093275099e-05 | J107: 0.9998332017
A108: 86883 | B108: SINAPI | C108: SIFÃO DO TIPO FLEXÍVEL EM PVC 1 X 1.1/2 - FORNECIMENTO E INSTALAÇÃO. AF_01/2020 | D108: INHI - INSTALAÇÕES HIDROS SANITÁRIAS | E108: UN | F108: 3,0 | G108: =VLOOKUP(A108,'Orçamento Sintético'!$B$13:$H$155,7,FALSE) -> 13.3 | H108: 39.9 | I108: 6.905938333e-05 | J108: 0.9999022611
A109: 89799 | B109: SINAPI | C109: TUBO PVC, SERIE NORMAL, ESGOTO PREDIAL, DN 75 MM, FORNECIDO E INSTALADO EM PRUMADA DE ESGOTO SANITÁRIO OU VENTILAÇÃO. AF_08/2022 | D109: INHI - INSTALAÇÕES HIDROS SANITÁRIAS | E109: M | F109: 1,35 | G109: =VLOOKUP(A109,'Orçamento Sintético'!$B$13:$H$155,7,FALSE) -> 22.99 | H109: 31.03 | I109: 5.370708433e-05 | J109: 0.9999559682
A110: 93653 | B110: SINAPI | C110: DISJUNTOR MONOPOLAR TIPO DIN, CORRENTE NOMINAL DE 10A - FORNECIMENTO E INSTALAÇÃO. AF_10/2020 | D110: INEL - INSTALAÇÃO ELÉTRICA/ELETRIFICAÇÃO E ILUMINAÇÃO EXTERNA | E110: UN | F110: 2,0 | G110: =VLOOKUP(A110,'Orçamento Sintético'!$B$13:$H$155,7,FALSE) -> 12.72 | H110: 25.44 | I110: 4.403184742e-05 | J110: 1
H112: =SUM(H5:H110) -> 577763.63

Sheet CPUs
C1: Composições Analíticas com Preço Unitário | E1: Bancos | G1: B.D.I. | I1: Encargos Sociais
C2: Espaço Multiuso - Tipo 01 | E2: SINAPI - 08/2024 - Sergipe ORSE - 06/2024 - Sergipe | G2: 23,54% | I2: Não Desonerado: Horista: 112,54% Mensalista: 70,11%
A3: Composições Analíticas com Preço Unitário
A4: Composições Principais
A5: 1.1.1 | B5: Código | C5: Banco | D5: Descrição | E5: Tipo | G5: Und | H5: Quant. | I5: Valor Unit | J5: Total
A6: Composição | B6: 00000003 | C6: Próprio | D6: Mobilização de equipamentos e pessoal (pequenas obras) | E6: CANT - CANTEIRO DE OBRAS | G6: un | H6: 1 | I6: 1309.8 | J6: 1309.8
A7: Composição Auxiliar | B7: 73467 | C7: SINAPI | D7: CAMINHÃO TOCO, PBT 14.300 KG, CARGA ÚTIL MÁX. 9.710 KG, DIST. ENTRE EIXOS 3,56 M, POTÊNCIA 185 CV, INCLUSIVE CARROCERIA FIXA ABERTA DE MADEIRA P/ TRANSPORTE GERAL DE CARGA SECA, DIMEN. APROX. 2,50 X 6,50 X 0,50 M - CHP DIURNO. AF_06/2014 | E7: CHOR - CUSTOS HORÁRIOS DE MÁQUINAS E EQUIPAMENTOS | G7: CHP | H7: 5 | I7: 235.6 | J7: 1178
A8: Insumo | B8: 4415 | C8: ORSE | D8: Veículo leve - Volkswagen:GOL 1000 - automóvel até 100 hp | E8: Equipamento | G8: h | H8: 10 | I8: 13.18 | J8: 131.8
A12: 1.1.2 | B12: Código | C12: Banco | D12: Descrição | E12: Tipo | G12: Und | H12: Quant. | I12: Valor Unit | J12: Total
A13: Composição | B13: 00000004 | C13: Próprio | D13: Desmobilização de equipamentos e pessoal (pequenas obras) | E13: CANT - CANTEIRO DE OBRAS | G13: un | H13: 1 | I13: 746.34 | J13: 746.34
A14: Composição Auxiliar | B14: 73467 | C14: SINAPI | D14: CAMINHÃO TOCO, PBT 14.300 KG, CARGA ÚTIL MÁX. 9.710 KG, DIST. ENTRE EIXOS 3,56 M, POTÊNCIA 185 CV, INCLUSIVE CARROCERIA FIXA ABERTA DE MADEIRA P/ TRANSPORTE GERAL DE CARGA SECA, DIMEN. APROX. 2,50 X 6,50 X 0,50 M - CHP DIURNO. AF_06/2014 | E14: CHOR - CUSTOS HORÁRIOS DE MÁQUINAS E EQUIPAMENTOS | G14: CHP | H14: 3 | I14: 235.6 | J14: 706.8
A15: Insumo | B15: 4415 | C15: ORSE | D15: Veículo leve - Volkswagen:GOL 1000 - automóvel até 100 hp | E15: Equipamento | G15: h | H15: 3 | I15: 13.18 | J15: 39.54
A19: 1.2.1 | B19: Código | C19: Banco | D19: Descrição | E19: Tipo | G19: Und | H19: Quant. | I19: Valor Unit | J19: Total
A20: Composição | B20: 51 | C20: ORSE | D20: Placa de obra em chapa aço galvanizado, instalada - Rev 02_01/2022 | E20: Mobilização / Instalações Provisórias / Desmobilização | G20: m² | H20: 1 | I20: 375.59 | J20: 375.59
A21: Composição Auxiliar | B21: 10549 | C21: ORSE | D21: Encargos Complementares - Servente | E21: Provisórios | G21: h | H21: 2 | I21: 3.79 | J21: 7.58
A22: Composição Auxiliar | B22: 10551 | C22: ORSE | D22: Encargos Complementares - Carpinteiro | E22: Provisórios | G22: h | H22: 1 | I22: 3.69 | J22: 3.69
A23: Insumo | B23: 00001213/SINAPI | C23: ORSE | D23: Carpinteiro de formas (horista) | E23: Mão de Obra | G23: h | H23: 1 | I23: 19.13 | J23: 19.13
A24: Insumo | B24: 00004813/SINAPI | C24: ORSE | D24: Placa de obra (para construcao civil) em chapa galvanizada *n. 22*, adesivada, de *2,4 x 1,2* m (sem postes para fixacao) | E24: Material | G24: m² | H24: 1 | I24: 285 | J24: 285
A25: Insumo | B25: 00005075/SINAPI | C25: ORSE | D25: Prego de aco polido com cabeca 18 x 30 (2 3/4 x 10) | E25: Material | G25: kg | H25: 0.15 | I25: 15.82 | J25: 2.37
A26: Insumo | B26: 00006111/SINAPI | C26: ORSE | D26: Servente de obras (horista) | E26: Mão de Obra | G26: h | H26: 2 | I26: 13.65 | J26: 27.3
A27: Insumo | B27: 1569 | C27: ORSE | D27: Madeira mista serrada (barrote) 6 x 6cm - 0,0036 m3/m (angelim, louro) | E27: Material | G27: m | H27: 4 | I27: 6.75 | J27: 27
A28: Insumo | B28: 6995 | C28: ORSE | D28: Madeira mista serrada (sarrafo) 2,2 x 5,5cm - 0,00121 m³/m | E28: Material | G28: m | H28: 1 | I28: 3.52 | J28: 3.52
A32: 1.3.1 | B32: Código | C32: Banco | D32: Descrição | E32: Tipo | G32: Und | H32: Quant. | I32: Valor Unit | J32: Total
A33: Composição | B33: CODEVASF 122 | C33: Próprio | D33: Administração local de pequenas obras | E33: CANT - CANTEIRO DE OBRAS | G33: und | H33: 1 | I33: 3399.12 | J33: 3399.12
A34: Composição Auxiliar | B34: 90777 | C34: SINAPI | D34: ENGENHEIRO CIVIL DE OBRA JUNIOR COM ENCARGOS COMPLEMENTARES | E34: SEDI - SERVIÇOS DIVERSOS | G34: H | H34: 4 | I34: 120.03 | J34: 480.12
A35: Composição Auxiliar | B35: 90776 | C35: SINAPI | D35: ENCARREGADO GERAL COM ENCARGOS COMPLEMENTARES | E35: SEDI - SERVIÇOS DIVERSOS | G35: H | H35: 60 | I35: 31.92 | J35: 1915.2
A36: Insumo | B36: 5896 | C36: ORSE | D36: Veículo tipo sedan ou pick-up capacidade 0,6 ton | E36: Equipamento | G36: h | H36: 60 | I36: 8.33 | J36: 499.8
A37: Insumo | B37: 1044 | C37: ORSE | D37: Gasolina comum | E37: Material | G37: l | H37: 80 | I37: 6.3 | J37: 504
A41: 1.4.1 | B41: Código | C41: Banco | D41: Descrição | E41: Tipo | G41: Und | H41: Quant. | I41: Valor Unit | J41: Total
A42: Composição | B42: CODEVASF 322 | C42: Próprio | D42: Projeto Executivo (Multiuso) | E42: SERT - SERVIÇOS TÉCNICOS | G42: und | H42: 1 | I42: 18349.95 | J42: 18349.95
A43: Insumo | B43: 14338 | C43: ORSE | D43: Projeto Hidráulico - Água fria. Observação: Apresentar a carta de viabilidadeda DESO. | E43: Serviços | G43: m² | H43: 457.14 | I43: 3.5 | J43: 1599.99
A44: Insumo | B44: 14340 | C44: ORSE | D44: Projeto de Esgoto - Esgoto sanitário com tratamento simples (fossa e filtro, sumidouro ou DAFA). Observação: O cálculo da área equivale à área construída e o projeto deve ser aprovado na ADEMA. | E44: Serviços | G44: m² | H44: 457.14 | I44: 3.5 | J44: 1599.99
A45: Insumo | B45: 14334 | C45: ORSE | D45: Projeto Estrutural - Aço/alumínio/madeira. Observação: Área de projeção. | E45: Serviços | G45: m² | H45: 207.79 | I45: 7.7 | J45: 1599.98
A46: Insumo | B46: 14336 | C46: ORSE | D46: Projeto de Fundações - Fundações rasas | E46: Serviços | G46: m² | H46: 457.14 | I46: 3.5 | J46: 1599.99
A47: Insumo | B47: 7320 | C47: ORSE | D47: Projeto de iluminação de áreas externas (praças, calçadões, orlas, complexo com várias edificações, etc) até 100.000m². | E47: Serviços | G47: m² | H47: 1600 | I47: 1 | J47: 1600
A48: Insumo | B48: 14349 | C48: ORSE | D48: Projeto Elétrico - Edificações comuns, incluindo área urbanizada. | E48: Serviços | G48: m² | H48: 200 | I48: 8 | J48: 1600
A49: Insumo | B49: 6878 | C49: ORSE | D49: Mobilização e desmobilização de pessoal e equipamentos - sondagem a percussão- dmt de 61 a 100 Km de Aracaju | E49: Serviços | G49: Un | H49: 1 | I49: 4100 | J49: 4100
A50: Insumo | B50: 10016 | C50: ORSE | D50: Sondagem a percussão | E50: Serviços | G50: m | H50: 30 | I50: 155 | J50: 4650
A54: 2.1.1 | B54: Código | C54: Banco | D54: Descrição | E54: Tipo | G54: Und | H54: Quant. | I54: Valor Unit | J54: Total
A55: Composição | B55: 98524 | C55: SINAPI | D55: LIMPEZA MANUAL DE VEGETAÇÃO EM TERRENO COM ENXADA. AF_03/2024 | E55: URBA - URBANIZAÇÃO | G55: m² | H55: 1 | I55: 4.35 | J55: 4.35
A56: Composição Auxiliar | B56: 88316 | C56: SINAPI | D56: SERVENTE COM ENCARGOS COMPLEMENTARES | E56: SEDI - SERVIÇOS DIVERSOS | G56: H | H56: 0.2132 | I56: 20.42 | J56: 4.35
A60: 2.2.2 | B60: Código | C60: Banco | D60: Descrição | E60: Tipo | G60: Und | H60: Quant. | I60: Valor Unit | J60: Total
A61: Composição | B61: 3426 | C61: ORSE | D61: Escavação e carga com escavadeira hidráulica de material de 1ª categoria ou de jazida | E61: Conversão InfoWOrca | G61: m³ | H61: 1 | I61: 0.99 | J61: 0.99
A62: Composição Auxiliar | B62: 10549 | C62: ORSE | D62: Encargos Complementares - Servente | E62: Provisórios | G62: h | H62: 0.0069 | I62: 3.79 | J62: 0.02
A63: Insumo | B63: 00006111/SINAPI | C63: ORSE | D63: Servente de obras (horista) | E63: Mão de Obra | G63: h | H63: 0.0069444 | I63: 13.65 | J63: 0.09
A64: Insumo | B64: 4680 | C64: ORSE | D64: Escavadeira hidraúlica sobre esteira, Caterpillar: 320DL - cap 600l p/ longo alcance | E64: Equipamento | G64: h | H64: 0.0069444 | I64: 110.65 | J64: 0.76
A65: Insumo | B65: 54 | C65: ORSE | D65: Encarregado de turma - SICRO | E65: Mão de Obra | G65: h | H65: 0.0069444 | I65: 18.28 | J65: 0.12
A69: 2.2.3 | B69: Código | C69: Banco | D69: Descrição | E69: Tipo | G69: Und | H69: Quant. | I69: Valor Unit | J69: Total
A70: Composição | B70: 4986 | C70: ORSE | D70: Carga mecânica de material de 1ª categoria | E70: Carga de Material | G70: m³ | H70: 1 | I70: 0.77 | J70: 0.77
A71: Composição Auxiliar | B71: 10549 | C71: ORSE | D71: Encargos Complementares - Servente | E71: Provisórios | G71: h | H71: 0.0094 | I71: 3.79 | J71: 0.03
A72: Insumo | B72: 00006111/SINAPI | C72: ORSE | D72: Servente de obras (horista) | E72: Mão de Obra | G72: h | H72: 0.0094 | I72: 13.65 | J72: 0.12
A73: Insumo | B73: 4244 | C73: ORSE | D73: Pa carregadeira sobre pneus Caterpillar - 924 G | E73: Equipamento | G73: h | H73: 0.0047 | I73: 132.74 | J73: 0.62
A77: 2.2.4 | B77: Código | C77: Banco | D77: Descrição | E77: Tipo | G77: Und | H77: Quant. | I77: Valor Unit | J77: Total
A78: Composição | B78: 97914 | C78: SINAPI | D78: TRANSPORTE COM CAMINHÃO BASCULANTE DE 6 M³, EM VIA URBANA PAVIMENTADA, DMT ATÉ 30 KM (UNIDADE: M3XKM). AF_07/2020 | E78: TRAN - TRANSPORTES, CARGAS E DESCARGAS | G78: M3XKM | H78: 1 | I78: 2.79 | J78: 2.79
A79: Composição Auxiliar | B79: 67826 | C79: SINAPI | D79: CAMINHÃO BASCULANTE 6 M3 TOCO, PESO BRUTO TOTAL 16.000 KG, CARGA ÚTIL MÁXIMA 11.130 KG, DISTÂNCIA ENTRE EIXOS 5,36 M, POTÊNCIA 185 CV, INCLUSIVE CAÇAMBA METÁLICA - CHP DIURNO. AF_06/2014 | E79: CHOR - CUSTOS HORÁRIOS DE MÁQUINAS E EQUIPAMENTOS | G79: CHP | H79: 0.0139 | I79: 175.1 | J79: 2.43
A80: Composição Auxiliar | B80: 67827 | C80: SINAPI | D80: CAMINHÃO BASCULANTE 6 M3 TOCO, PESO BRUTO TOTAL 16.000 KG, CARGA ÚTIL MÁXIMA 11.130 KG, DISTÂNCIA ENTRE EIXOS 5,36 M, POTÊNCIA 185 CV, INCLUSIVE CAÇAMBA METÁLICA - CHI DIURNO. AF_06/2014 | E80: CHOR - CUSTOS HORÁRIOS DE MÁQUINAS E EQUIPAMENTOS | G80: CHI | H80: 0.006 | I80: 61.29 | J80: 0.36
A84: 2.2.5 | B84: Código | C84: Banco | D84: Descrição | E84: Tipo | G84: Und | H84: Quant. | I84: Valor Unit | J84: Total
A85: Composição | B85: 71 | C85: ORSE | D85: Aterro manual de áreas, sem aquisição de material, com espalhamento e compactação | E85: Aterros / Reaterros / Compactações | G85: m³ | H85: 1 | I85: 52.32 | J85: 52.32
A86: Composição Auxiliar | B86: 10549 | C86: ORSE | D86: Encargos Complementares - Servente | E86: Provisórios | G86: h | H86: 3 | I86: 3.79 | J86: 11.37
A87: Insumo | B87: 00006111/SINAPI | C87: ORSE | D87: Servente de obras (horista) | E87: Mão de Obra | G87: h | H87: 3 | I87: 13.65 | J87: 40.95
A91: 2.3.1 | B91: Código | C91: Banco | D91: Descrição | E91: Tipo | G91: Und | H91: Quant. | I91: Valor Unit | J91: Total
A92: Composição | B92: 4177 | C92: ORSE | D92: Locação de construção de edificação acima de 1000 m2, inclusive execução de gabarito de madeira | E92: Locação de Edificações | G92: m² | H92: 1 | I92: 5.47 | J92: 5.47
A93: Composição Auxiliar | B93: 10549 | C93: ORSE | D93: Encargos Complementares - Servente | E93: Provisórios | G93: h | H93: 0.04 | I93: 3.79 | J93: 0.15
A94: Composição Auxiliar | B94: 10551 | C94: ORSE | D94: Encargos Complementares - Carpinteiro | E94: Provisórios | G94: h | H94: 0.04 | I94: 3.69 | J94: 0.14
A95: Insumo | B95: 00000345/SINAPI | C95: ORSE | D95: Arame galvanizado 18 bwg, d = 1,24mm (0,009 kg/m) | E95: Material | G95: kg | H95: 0.02 | I95: 27.1 | J95: 0.54
A96: Insumo | B96: 00001213/SINAPI | C96: ORSE | D96: Carpinteiro de formas (horista) | E96: Mão de Obra | G96: h | H96: 0.04 | I96: 19.13 | J96: 0.76
A97: Insumo | B97: 00005067/SINAPI | C97: ORSE | D97: Prego de aco polido com cabeca 16 x 24 (2 1/4 x 12) | E97: Material | G97: kg | H97: 0.012 | I97: 16.86 | J97: 0.2
A98: Insumo | B98: 00006111/SINAPI | C98: ORSE | D98: Servente de obras (horista) | E98: Mão de Obra | G98: h | H98: 0.04 | I98: 13.65 | J98: 0.54
A99: Insumo | B99: 00010567/SINAPI | C99: ORSE | D99: Tabua *2,5 x 23* cm em pinus, mista ou equivalente da regiao - bruta | E99: Material | G99: m | H99: 0.11 | I99: 12.58 | J99: 1.38
A100: Insumo | B100: 1569 | C100: ORSE | D100: Madeira mista serrada (barrote) 6 x 6cm - 0,0036 m3/m (angelim, louro) | E100: Material | G100: m | H100: 0.09 | I100: 6.75 | J100: 0.6
A101: Insumo | B101: 48 | C101: ORSE | D101: Auxiliar topografia - SICRO | E101: Mão de Obra | G101: h | H101: 0.02 | I101: 21.79 | J101: 0.43
A102: Insumo | B102: 70 | C102: ORSE | D102: Topógrafo - SICRO | E102: Mão de Obra | G102: h | H102: 0.02 | I102: 36.96 | J102: 0.73
A106: 2.3.2 | B106: Código | C106: Banco | D106: Descrição | E106: Tipo | G106: Und | H106: Quant. | I106: Valor Unit | J106: Total
A107: Composição | B107: 93358 | C107: SINAPI | D107: ESCAVAÇÃO MANUAL DE VALA COM PROFUNDIDADE MENOR OU IGUAL A 1,30 M. AF_02/2021 | E107: MOVT - MOVIMENTO DE TERRA | G107: m³ | H107: 1 | I107: 80.78 | J107: 80.78
A108: Composição Auxiliar | B108: 88316 | C108: SINAPI | D108: SERVENTE COM ENCARGOS COMPLEMENTARES | E108: SEDI - SERVIÇOS DIVERSOS | G108: H | H108: 3.956 | I108: 20.42 | J108: 80.78
A112: 2.3.3 | B112: Código | C112: Banco | D112: Descrição | E112: Tipo | G112: Und | H112: Quant. | I112: Valor Unit | J112: Total
A113: Composição | B113: 94962 | C113: SINAPI | D113: CONCRETO MAGRO PARA LASTRO, TRAÇO 1:4,5:4,5 (EM MASSA SECA DE CIMENTO/ AREIA MÉDIA/ BRITA 1) - PREPARO MECÂNICO COM BETONEIRA 400 L. AF_05/2021 | E113: FUES - FUNDAÇÕES E ESTRUTURAS | G113: m³ | H113: 1 | I113: 406.18 | J113: 406.18
A114: Composição Auxiliar | B114: 88316 | C114: SINAPI | D114: SERVENTE COM ENCARGOS COMPLEMENTARES | E114: SEDI - SERVIÇOS DIVERSOS | G114: H | H114: 2.3433 | I114: 20.42 | J114: 47.85
A115: Composição Auxiliar | B115: 88377 | C115: SINAPI | D115: OPERADOR DE BETONEIRA ESTACIONÁRIA/MISTURADOR COM ENCARGOS COMPLEMENTARES | E115: SEDI - SERVIÇOS DIVERSOS | G115: H | H115: 1.4811 | I115: 23.84 | J115: 35.3
A116: Composição Auxiliar | B116: 88830 | C116: SINAPI | D116: BETONEIRA CAPACIDADE NOMINAL DE 400 L, CAPACIDADE DE MISTURA 280 L, MOTOR ELÉTRICO TRIFÁSICO POTÊNCIA DE 2 CV, SEM CARREGADOR - CHP DIURNO. AF_10/2014 | E116: CHOR - CUSTOS HORÁRIOS DE MÁQUINAS E EQUIPAMENTOS | G116: CHP | H116: 0.7623 | I116: 1.88 | J116: 1.43
A117: Composição Auxiliar | B117: 88831 | C117: SINAPI | D117: BETONEIRA CAPACIDADE NOMINAL DE 400 L, CAPACIDADE DE MISTURA 280 L, MOTOR ELÉTRICO TRIFÁSICO POTÊNCIA DE 2 CV, SEM CARREGADOR - CHI DIURNO. AF_10/2014 | E117: CHOR - CUSTOS HORÁRIOS DE MÁQUINAS E EQUIPAMENTOS | G117: CHI | H117: 0.7188 | I117: 0.43 | J117: 0.3
A118: Insumo | B118: 00000370 | C118: SINAPI | D118: AREIA MEDIA - POSTO JAZIDA/FORNECEDOR (RETIRADO NA JAZIDA, SEM TRANSPORTE) | E118: Material | G118: m³ | H118: 0.8269 | I118: 110 | J118: 90.95
A119: Insumo | B119: 00001379 | C119: SINAPI | D119: CIMENTO PORTLAND COMPOSTO CP II-32 | E119: Material | G119: KG | H119: 212.0194 | I119: 0.76 | J119: 161.13
A120: Insumo | B120: 00004721 | C120: SINAPI | D120: PEDRA BRITADA N. 1 (9,5 a 19 MM) POSTO PEDREIRA/FORNECEDOR, SEM FRETE | E120: Material | G120: m³ | H120: 0.5782 | I120: 119.72 | J120: 69.22
A124: 2.3.4 | B124: Código | C124: Banco | D124: Descrição | E124: Tipo | G124: Und | H124: Quant. | I124: Valor Unit | J124: Total
A125: Composição | B125: 97086 | C125: SINAPI | D125: FABRICAÇÃO, MONTAGEM E DESMONTAGEM DE FORMA PARA RADIER, PISO DE CONCRETO OU LAJE SOBRE SOLO, EM MADEIRA SERRADA, 4 UTILIZAÇÕES. AF_09/2021 | E125: FUES - FUNDAÇÕES E ESTRUTURAS | G125: m² | H125: 1 | I125: 121.46 | J125: 121.46
A126: Composição Auxiliar | B126: 88239 | C126: SINAPI | D126: AJUDANTE DE CARPINTEIRO COM ENCARGOS COMPLEMENTARES | E126: SEDI - SERVIÇOS DIVERSOS | G126: H | H126: 1.444 | I126: 20.6 | J126: 29.74
A127: Composição Auxiliar | B127: 88262 | C127: SINAPI | D127: CARPINTEIRO DE FORMAS COM ENCARGOS COMPLEMENTARES | E127: SEDI - SERVIÇOS DIVERSOS | G127: H | H127: 2.357 | I127: 25.8 | J127: 60.81
A128: Insumo | B128: 00002692 | C128: SINAPI | D128: DESMOLDANTE PROTETOR PARA FORMAS DE MADEIRA, DE BASE OLEOSA EMULSIONADA EM AGUA | E128: Material | G128: L | H128: 0.017 | I128: 8.31 | J128: 0.14
A129: Insumo | B129: 00004491 | C129: SINAPI | D129: PONTALETE *7,5 X 7,5* CM EM PINUS, MISTA OU EQUIVALENTE DA REGIAO - BRUTA | E129: Material | G129: M | H129: 0.37 | I129: 10.99 | J129: 4.06
A130: Insumo | B130: 00004517 | C130: SINAPI | D130: SARRAFO *2,5 X 7,5* CM EM PINUS, MISTA OU EQUIVALENTE DA REGIAO - BRUTA | E130: Material | G130: M | H130: 0.44 | I130: 3.84 | J130: 1.68
A131: Insumo | B131: 00005068 | C131: SINAPI | D131: PREGO DE ACO POLIDO COM CABECA 17 X 21 (2 X 11) | E131: Material | G131: KG | H131: 0.095 | I131: 17.29 | J131: 1.64
A132: Insumo | B132: 00006193 | C132: SINAPI | D132: TABUA NAO APARELHADA *2,5 X 20* CM, EM MACARANDUBA/MASSARANDUBA, ANGELIM OU EQUIVALENTE DA REGIAO - BRUTA | E132: Material | G132: M | H132: 1.38 | I132: 16.95 | J132: 23.39
A136: 2.3.5 | B136: Código | C136: Banco | D136: Descrição | E136: Tipo | G136: Und | H136: Quant. | I136: Valor Unit | J136: Total
A137: Composição | B137: 96543 | C137: SINAPI | D137: ARMAÇÃO DE BLOCO UTILIZANDO AÇO CA-60 DE 5 MM - MONTAGEM. AF_01/2024 | E137: FUES - FUNDAÇÕES E ESTRUTURAS | G137: KG | H137: 1 | I137: 20.68 | J137: 20.68
A138: Composição Auxiliar | B138: 88238 | C138: SINAPI | D138: AJUDANTE DE ARMADOR COM ENCARGOS COMPLEMENTARES | E138: SEDI - SERVIÇOS DIVERSOS | G138: H | H138: 0.097 | I138: 20.69 | J138: 2
A139: Composição Auxiliar | B139: 88245 | C139: SINAPI | D139: ARMADOR COM ENCARGOS COMPLEMENTARES | E139: SEDI - SERVIÇOS DIVERSOS | G139: H | H139: 0.252 | I139: 25.94 | J139: 6.53
A140: Composição Auxiliar | B140: 92800 | C140: SINAPI | D140: CORTE E DOBRA DE AÇO CA-60, DIÂMETRO DE 5,0 MM. AF_06/2022 | E140: FUES - FUNDAÇÕES E ESTRUTURAS | G140: KG | H140: 1 | I140: 11.28 | J140: 11.28
A141: Insumo | B141: 00039017 | C141: SINAPI | D141: ESPACADOR / DISTANCIADOR CIRCULAR COM ENTRADA LATERAL, EM PLASTICO, PARA VERGALHAO *4,2 A 12,5* MM, COBRIMENTO 20 MM | E141: Material | G141: UN | H141: 1.143 | I141: 0.22 | J141: 0.25
A142: Insumo | B142: 00043132 | C142: SINAPI | D142: ARAME RECOZIDO 16 BWG, D = 1,65 MM (0,016 KG/M) OU 18 BWG, D = 1,25 MM (0,01 KG/M) | E142: Material | G142: KG | H142: 0.025 | I142: 25 | J142: 0.62
A146: 2.3.6 | B146: Código | C146: Banco | D146: Descrição | E146: Tipo | G146: Und | H146: Quant. | I146: Valor Unit | J146: Total
A147: Composição | B147: 96544 | C147: SINAPI | D147: ARMAÇÃO DE BLOCO UTILIZANDO AÇO CA-50 DE 6,3 MM - MONTAGEM. AF_01/2024 | E147: FUES - FUNDAÇÕES E ESTRUTURAS | G147: KG | H147: 1 | I147: 19.03 | J147: 19.03
A148: Composição Auxiliar | B148: 88238 | C148: SINAPI | D148: AJUDANTE DE ARMADOR COM ENCARGOS COMPLEMENTARES | E148: SEDI - SERVIÇOS DIVERSOS | G148: H | H148: 0.075 | I148: 20.69 | J148: 1.55
A149: Composição Auxiliar | B149: 88245 | C149: SINAPI | D149: ARMADOR COM ENCARGOS COMPLEMENTARES | E149: SEDI - SERVIÇOS DIVERSOS | G149: H | H149: 0.196 | I149: 25.94 | J149: 5.08
A150: Composição Auxiliar | B150: 92801 | C150: SINAPI | D150: CORTE E DOBRA DE AÇO CA-50, DIÂMETRO DE 6,3 MM. AF_06/2022 | E150: FUES - FUNDAÇÕES E ESTRUTURAS | G150: KG | H150: 1 | I150: 11.6 | J150: 11.6
A151: Insumo | B151: 00039017 | C151: SINAPI | D151: ESPACADOR / DISTANCIADOR CIRCULAR COM ENTRADA LATERAL, EM PLASTICO, PARA VERGALHAO *4,2 A 12,5* MM, COBRIMENTO 20 MM | E151: Material | G151: UN | H151: 0.856 | I151: 0.22 | J151: 0.18
A152: Insumo | B152: 00043132 | C152: SINAPI | D152: ARAME RECOZIDO 16 BWG, D = 1,65 MM (0,016 KG/M) OU 18 BWG, D = 1,25 MM (0,01 KG/M) | E152: Material | G152: KG | H152: 0.025 | I152: 25 | J152: 0.62
A156: 2.3.7 | B156: Código | C156: Banco | D156: Descrição | E156: Tipo | G156: Und | H156: Quant. | I156: Valor Unit | J156: Total
A157: Composição | B157: 96546 | C157: SINAPI | D157: ARMAÇÃO DE BLOCO UTILIZANDO AÇO CA-50 DE 10 MM - MONTAGEM. AF_01/2024 | E157: FUES - FUNDAÇÕES E ESTRUTURAS | G157: KG | H157: 1 | I157: 15.39 | J157: 15.39
A158: Composição Auxiliar | B158: 88238 | C158: SINAPI | D158: AJUDANTE DE ARMADOR COM ENCARGOS COMPLEMENTARES | E158: SEDI - SERVIÇOS DIVERSOS | G158: H | H158: 0.044 | I158: 20.69 | J158: 0.91
A159: Composição Auxiliar | B159: 88245 | C159: SINAPI | D159: ARMADOR COM ENCARGOS COMPLEMENTARES | E159: SEDI - SERVIÇOS DIVERSOS | G159: H | H159: 0.116 | I159: 25.94 | J159: 3
A160: Composição Auxiliar | B160: 92803 | C160: SINAPI | D160: CORTE E DOBRA DE AÇO CA-50, DIÂMETRO DE 10,0 MM. AF_06/2022 | E160: FUES - FUNDAÇÕES E ESTRUTURAS | G160: KG | H160: 1 | I160: 10.76 | J160: 10.76
A161: Insumo | B161: 00039017 | C161: SINAPI | D161: ESPACADOR / DISTANCIADOR CIRCULAR COM ENTRADA LATERAL, EM PLASTICO, PARA VERGALHAO *4,2 A 12,5* MM, COBRIMENTO 20 MM | E161: Material | G161: UN | H161: 0.48 | I161: 0.22 | J161: 0.1
A162: Insumo | B162: 00043132 | C162: SINAPI | D162: ARAME RECOZIDO 16 BWG, D = 1,65 MM (0,016 KG/M) OU 18 BWG, D = 1,25 MM (0,01 KG/M) | E162: Material | G162: KG | H162: 0.025 | I162: 25 | J162: 0.62
A166: 2.3.8 | B166: Código | C166: Banco | D166: Descrição | E166: Tipo | G166: Und | H166: Quant. | I166: Valor Unit | J166: Total
A167: Composição | B167: 9399 | C167: ORSE | D167: Concreto simples fabricado na obra, fck=25 mpa, lançado e adensado | E167: Concreto Simples | G167: m³ | H167: 1 | I167: 626.77 | J167: 626.77
A168: Composição Auxiliar | B168: 7692 | C168: ORSE | D168: Lançamento de concreto simples fabricado na obra, inclusive adensamento e acabamento em peças da superestrutura | E168: Concreto Simples | G168: m³ | H168: 1 | I168: 48.7 | J168: 48.7
A169: Composição Auxiliar | B169: 9398 | C169: ORSE | D169: Concreto simples fck= 25 MPA (b1/b2), fabricado na obra, sem lançamento e adensamento | E169: Concreto Simples | G169: m³ | H169: 1 | I169: 578.07 | J169: 578.07
A173: 2.3.9 | B173: Código | C173: Banco | D173: Descrição | E173: Tipo | G173: Und | H173: Quant. | I173: Valor Unit | J173: Total
A174: Composição | B174: 93382 | C174: SINAPI | D174: REATERRO MANUAL DE VALAS, COM COMPACTADOR DE SOLOS DE PERCUSSÃO. AF_08/2023 | E174: MOVT - MOVIMENTO DE TERRA | G174: m³ | H174: 1 | I174: 25.09 | J174: 25.09
A175: Composição Auxiliar | B175: 5901 | C175: SINAPI | D175: CAMINHÃO PIPA 10.000 L TRUCADO, PESO BRUTO TOTAL 23.000 KG, CARGA ÚTIL MÁXIMA 15.935 KG, DISTÂNCIA ENTRE EIXOS 4,8 M, POTÊNCIA 230 CV, INCLUSIVE TANQUE DE AÇO PARA TRANSPORTE DE ÁGUA - CHP DIURNO. AF_06/2014 | E175: CHOR - CUSTOS HORÁRIOS DE MÁQUINAS E EQUIPAMENTOS | G175: CHP | H175: 0.0054 | I175: 303.24 | J175: 1.63
A176: Composição Auxiliar | B176: 5903 | C176: SINAPI | D176: CAMINHÃO PIPA 10.000 L TRUCADO, PESO BRUTO TOTAL 23.000 KG, CARGA ÚTIL MÁXIMA 15.935 KG, DISTÂNCIA ENTRE EIXOS 4,8 M, POTÊNCIA 230 CV, INCLUSIVE TANQUE DE AÇO PARA TRANSPORTE DE ÁGUA - CHI DIURNO. AF_06/2014 | E176: CHOR - CUSTOS HORÁRIOS DE MÁQUINAS E EQUIPAMENTOS | G176: CHI | H176: 0.0006 | I176: 71.7 | J176: 0.04
A177: Composição Auxiliar | B177: 88316 | C177: SINAPI | D177: SERVENTE COM ENCARGOS COMPLEMENTARES | E177: SEDI - SERVIÇOS DIVERSOS | G177: H | H177: 0.7866 | I177: 20.42 | J177: 16.06
A178: Composição Auxiliar | B178: 91533 | C178: SINAPI | D178: COMPACTADOR DE SOLOS DE PERCUSSÃO (SOQUETE) COM MOTOR A GASOLINA 4 TEMPOS, POTÊNCIA 4 CV - CHP DIURNO. AF_08/2015 | E178: CHOR - CUSTOS HORÁRIOS DE MÁQUINAS E EQUIPAMENTOS | G178: CHP | H178: 0.1962 | I178: 37.53 | J178: 7.36
A182: 2.4.1 | B182: Código | C182: Banco | D182: Descrição | E182: Tipo | G182: Und | H182: Quant. | I182: Valor Unit | J182: Total
A183: Composição | B183: 103330 | C183: SINAPI | D183: ALVENARIA DE VEDAÇÃO DE BLOCOS CERÂMICOS FURADOS NA HORIZONTAL DE 11,5X19X19 CM (ESPESSURA 11,5 CM) E ARGAMASSA DE ASSENTAMENTO COM PREPARO EM BETONEIRA. AF_12/2021 | E183: PARE - PAREDES/PAINEIS | G183: m² | H183: 1 | I183: 69.54 | J183: 69.54
A184: Composição Auxiliar | B184: 87292 | C184: SINAPI | D184: ARGAMASSA TRAÇO 1:2:8 (EM VOLUME DE CIMENTO, CAL E AREIA MÉDIA ÚMIDA) PARA EMBOÇO/MASSA ÚNICA/ASSENTAMENTO DE ALVENARIA DE VEDAÇÃO, PREPARO MECÂNICO COM BETONEIRA 400 L. AF_08/2019 | E184: SEDI - SERVIÇOS DIVERSOS | G184: m³ | H184: 0.0098 | I184: 601.32 | J184: 5.89
A185: Composição Auxiliar | B185: 88309 | C185: SINAPI | D185: PEDREIRO COM ENCARGOS COMPLEMENTARES | E185: SEDI - SERVIÇOS DIVERSOS | G185: H | H185: 1.2 | I185: 26.15 | J185: 31.38
A186: Composição Auxiliar | B186: 88316 | C186: SINAPI | D186: SERVENTE COM ENCARGOS COMPLEMENTARES | E186: SEDI - SERVIÇOS DIVERSOS | G186: H | H186: 0.6 | I186: 20.42 | J186: 12.25
A187: Insumo | B187: 00034558 | C187: SINAPI | D187: TELA DE ACO SOLDADA GALVANIZADA/ZINCADA PARA ALVENARIA, FIO D = *1,20 A 1,70* MM, MALHA 15 X 15 MM, (C X L) *50 X 10,5* CM | E187: Material | G187: M | H187: 0.42 | I187: 2.84 | J187: 1.19
A188: Insumo | B188: 00037395 | C188: SINAPI | D188: PINO DE ACO COM FURO, HASTE = 27 MM (ACAO DIRETA) | E188: Material | G188: CENTO | H188: 0.01 | I188: 43.74 | J188: 0.43
A189: Insumo | B189: 00038783 | C189: SINAPI | D189: BLOCO CERAMICO / TIJOLO VAZADO PARA ALVENARIA DE VEDACAO, FUROS NA HORIZONTAL DE 11,5 X 19 X 19 CM (L X A X C) | E189: Material | G189: UN | H189: 28.31 | I189: 0.65 | J189: 18.4
A193: 2.4.2 | B193: Código | C193: Banco | D193: Descrição | E193: Tipo | G193: Und | H193: Quant. | I193: Valor Unit | J193: Total
A194: Composição | B194: 89799 | C194: SINAPI | D194: TUBO PVC, SERIE NORMAL, ESGOTO PREDIAL, DN 75 MM, FORNECIDO E INSTALADO EM PRUMADA DE ESGOTO SANITÁRIO OU VENTILAÇÃO. AF_08/2022 | E194: INHI - INSTALAÇÕES HIDROS SANITÁRIAS | G194: M | H194: 1 | I194: 18.61 | J194: 18.61
A195: Composição Auxiliar | B195: 88248 | C195: SINAPI | D195: AUXILIAR DE ENCANADOR OU BOMBEIRO HIDRÁULICO COM ENCARGOS COMPLEMENTARES | E195: SEDI - SERVIÇOS DIVERSOS | G195: H | H195: 0.1524 | I195: 20.1 | J195: 3.06
A196: Composição Auxiliar | B196: 88267 | C196: SINAPI | D196: ENCANADOR OU BOMBEIRO HIDRÁULICO COM ENCARGOS COMPLEMENTARES | E196: SEDI - SERVIÇOS DIVERSOS | G196: H | H196: 0.1524 | I196: 25.39 | J196: 3.86
A197: Insumo | B197: 00009837 | C197: SINAPI | D197: TUBO PVC SERIE NORMAL, DN 75 MM, PARA ESGOTO PREDIAL (NBR 5688) | E197: Material | G197: M | H197: 1.0549 | I197: 11.07 | J197: 11.67
A198: Insumo | B198: 00038383 | C198: SINAPI | D198: LIXA D'AGUA EM FOLHA, GRAO 100 | E198: Material | G198: UN | H198: 0.0085 | I198: 2.52 | J198: 0.02
A202: 2.4.3 | B202: Código | C202: Banco | D202: Descrição | E202: Tipo | G202: Und | H202: Quant. | I202: Valor Unit | J202: Total
A203: Composição | B203: 101963 | C203: SINAPI | D203: LAJE PRÉ-MOLDADA UNIDIRECIONAL, BIAPOIADA, PARA PISO, ENCHIMENTO EM CERÂMICA, VIGOTA CONVENCIONAL, ALTURA TOTAL DA LAJE (ENCHIMENTO+CAPA) = (8+4). AF_11/2020_PA | E203: FUES - FUNDAÇÕES E ESTRUTURAS | G203: m² | H203: 1 | I203: 180.79 | J203: 180.79
A204: Composição Auxiliar | B204: 103674 | C204: SINAPI | D204: CONCRETAGEM DE VIGAS E LAJES, FCK=25 MPA, PARA LAJES PREMOLDADAS COM USO DE BOMBA - LANÇAMENTO, ADENSAMENTO E ACABAMENTO. AF_02/2022_PS | E204: FUES - FUNDAÇÕES E ESTRUTURAS | G204: m³ | H204: 0.054 | I204: 636.14 | J204: 34.35
A205: Composição Auxiliar | B205: 88262 | C205: SINAPI | D205: CARPINTEIRO DE FORMAS COM ENCARGOS COMPLEMENTARES | E205: SEDI - SERVIÇOS DIVERSOS | G205: H | H205: 0.501 | I205: 25.8 | J205: 12.92
A206: Composição Auxiliar | B206: 88316 | C206: SINAPI | D206: SERVENTE COM ENCARGOS COMPLEMENTARES | E206: SEDI - SERVIÇOS DIVERSOS | G206: H | H206: 0.354 | I206: 20.42 | J206: 7.22
A207: Composição Auxiliar | B207: 92273 | C207: SINAPI | D207: FABRICAÇÃO DE ESCORAS DO TIPO PONTALETE, EM MADEIRA, PARA PÉ-DIREITO SIMPLES. AF_09/2020 | E207: FUES - FUNDAÇÕES E ESTRUTURAS | G207: M | H207: 0.97 | I207: 18.62 | J207: 18.06
A208: Composição Auxiliar | B208: 92767 | C208: SINAPI | D208: ARMAÇÃO DE LAJE DE ESTRUTURA CONVENCIONAL DE CONCRETO ARMADO UTILIZANDO AÇO CA-60 DE 4,2 MM - MONTAGEM. AF_06/2022 | E208: FUES - FUNDAÇÕES E ESTRUTURAS | G208: KG | H208: 1.211 | I208: 16.63 | J208: 20.13
A209: Insumo | B209: 00003743 | C209: SINAPI | D209: LAJE PRE-MOLDADA CONVENCIONAL (LAJOTAS + VIGOTAS) PARA PISO, UNIDIRECIONAL, SOBRECARGA DE 200 KG/M2, VAO ATE 3,50 M (SEM COLOCACAO) | E209: Material | G209: m² | H209: 1 | I209: 55.57 | J209: 55.57
A210: Insumo | B210: 00006193 | C210: SINAPI | D210: TABUA NAO APARELHADA *2,5 X 20* CM, EM MACARANDUBA/MASSARANDUBA, ANGELIM OU EQUIVALENTE DA REGIAO - BRUTA | E210: Material | G210: M | H210: 1.87 | I210: 16.95 | J210: 31.69
A211: Insumo | B211: 00040304 | C211: SINAPI | D211: PREGO DE ACO POLIDO COM CABECA DUPLA 17 X 27 (2 1/2 X 11) | E211: Material | G211: KG | H211: 0.04 | I211: 21.34 | J211: 0.85
A215: 2.4.4 | B215: Código | C215: Banco | D215: Descrição | E215: Tipo | G215: Und | H215: Quant. | I215: Valor Unit | J215: Total
A216: Composição | B216: 87894 | C216: SINAPI | D216: CHAPISCO APLICADO EM ALVENARIA (SEM PRESENÇA DE VÃOS) E ESTRUTURAS DE CONCRETO DE FACHADA, COM COLHER DE PEDREIRO. ARGAMASSA TRAÇO 1:3 COM PREPARO EM BETONEIRA 400L. AF_10/2022 | E216: REVE - REVESTIMENTO E TRATAMENTO DE SUPERFÍCIES | G216: m² | H216: 1 | I216: 6.56 | J216: 6.56
A217: Composição Auxiliar | B217: 87313 | C217: SINAPI | D217: ARGAMASSA TRAÇO 1:3 (EM VOLUME DE CIMENTO E AREIA GROSSA ÚMIDA) PARA CHAPISCO CONVENCIONAL, PREPARO MECÂNICO COM BETONEIRA 400 L. AF_08/2019 | E217: SEDI - SERVIÇOS DIVERSOS | G217: m³ | H217: 0.0037 | I217: 536.27 | J217: 1.98
A218: Composição Auxiliar | B218: 88309 | C218: SINAPI | D218: PEDREIRO COM ENCARGOS COMPLEMENTARES | E218: SEDI - SERVIÇOS DIVERSOS | G218: H | H218: 0.1394 | I218: 26.15 | J218: 3.64
A219: Composição Auxiliar | B219: 88316 | C219: SINAPI | D219: SERVENTE COM ENCARGOS COMPLEMENTARES | E219: SEDI - SERVIÇOS DIVERSOS | G219: H | H219: 0.0465 | I219: 20.42 | J219: 0.94
A223: 2.4.5 | B223: Código | C223: Banco | D223: Descrição | E223: Tipo | G223: Und | H223: Quant. | I223: Valor Unit | J223: Total
A224: Composição | B224: 87529 | C224: SINAPI | D224: MASSA ÚNICA, EM ARGAMASSA TRAÇO 1:2:8, PREPARO MECÂNICO, APLICADA MANUALMENTE EM PAREDES INTERNAS DE AMBIENTES COM ÁREA ENTRE 5M² E 10M², E = 17,5MM, COM TALISCAS. AF_03/2024 | E224: REVE - REVESTIMENTO E TRATAMENTO DE SUPERFÍCIES | G224: m² | H224: 1 | I224: 35.45 | J224: 35.45
A225: Composição Auxiliar | B225: 87292 | C225: SINAPI | D225: ARGAMASSA TRAÇO 1:2:8 (EM VOLUME DE CIMENTO, CAL E AREIA MÉDIA ÚMIDA) PARA EMBOÇO/MASSA ÚNICA/ASSENTAMENTO DE ALVENARIA DE VEDAÇÃO, PREPARO MECÂNICO COM BETONEIRA 400 L. AF_08/2019 | E225: SEDI - SERVIÇOS DIVERSOS | G225: m³ | H225: 0.0304 | I225: 601.32 | J225: 18.28
A226: Composição Auxiliar | B226: 88309 | C226: SINAPI | D226: PEDREIRO COM ENCARGOS COMPLEMENTARES | E226: SEDI - SERVIÇOS DIVERSOS | G226: H | H226: 0.4724 | I226: 26.15 | J226: 12.35
A227: Composição Auxiliar | B227: 88316 | C227: SINAPI | D227: SERVENTE COM ENCARGOS COMPLEMENTARES | E227: SEDI - SERVIÇOS DIVERSOS | G227: H | H227: 0.2362 | I227: 20.42 | J227: 4.82
A231: 2.5.1 | B231: Código | C231: Banco | D231: Descrição | E231: Tipo | G231: Und | H231: Quant. | I231: Valor Unit | J231: Total
A232: Composição | B232: 96622 | C232: SINAPI | D232: LASTRO COM MATERIAL GRANULAR, APLICADO EM PISOS OU LAJES SOBRE SOLO, ESPESSURA DE *5 CM*. AF_01/2024 | E232: FUES - FUNDAÇÕES E ESTRUTURAS | G232: m³ | H232: 1 | I232: 232.84 | J232: 232.84
A233: Composição Auxiliar | B233: 88309 | C233: SINAPI | D233: PEDREIRO COM ENCARGOS COMPLEMENTARES | E233: SEDI - SERVIÇOS DIVERSOS | G233: H | H233: 1.942 | I233: 26.15 | J233: 50.78
A234: Composição Auxiliar | B234: 88316 | C234: SINAPI | D234: SERVENTE COM ENCARGOS COMPLEMENTARES | E234: SEDI - SERVIÇOS DIVERSOS | G234: H | H234: 0.765 | I234: 20.42 | J234: 15.62
A235: Composição Auxiliar | B235: 91277 | C235: SINAPI | D235: PLACA VIBRATÓRIA REVERSÍVEL COM MOTOR 4 TEMPOS A GASOLINA, FORÇA CENTRÍFUGA DE 25 KN (2500 KGF), POTÊNCIA 5,5 CV - CHP DIURNO. AF_08/2015 | E235: CHOR - CUSTOS HORÁRIOS DE MÁQUINAS E EQUIPAMENTOS | G235: CHP | H235: 0.032 | I235: 10.64 | J235: 0.34
A236: Composição Auxiliar | B236: 91278 | C236: SINAPI | D236: PLACA VIBRATÓRIA REVERSÍVEL COM MOTOR 4 TEMPOS A GASOLINA, FORÇA CENTRÍFUGA DE 25 KN (2500 KGF), POTÊNCIA 5,5 CV - CHI DIURNO. AF_08/2015 | E236: CHOR - CUSTOS HORÁRIOS DE MÁQUINAS E EQUIPAMENTOS | G236: CHI | H236: 0.03 | I236: 0.71 | J236: 0.02
A237: Insumo | B237: 00004718 | C237: SINAPI | D237: PEDRA BRITADA N. 2 (19 A 38 MM) POSTO PEDREIRA/FORNECEDOR, SEM FRETE | E237: Material | G237: m³ | H237: 1.38 | I237: 120.35 | J237: 166.08
A241: 2.5.2 | B241: Código | C241: Banco | D241: Descrição | E241: Tipo | G241: Und | H241: Quant. | I241: Valor Unit | J241: Total
A242: Composição | B242: 94994 | C242: SINAPI | D242: EXECUÇÃO DE PASSEIO (CALÇADA) OU PISO DE CONCRETO COM CONCRETO MOLDADO IN LOCO, FEITO EM OBRA, ACABAMENTO CONVENCIONAL, ESPESSURA 8 CM, ARMADO. AF_08/2022 | E242: PISO - PISOS | G242: m² | H242: 1 | I242: 92.7 | J242: 92.7
A243: Composição Auxiliar | B243: 88262 | C243: SINAPI | D243: CARPINTEIRO DE FORMAS COM ENCARGOS COMPLEMENTARES | E243: SEDI - SERVIÇOS DIVERSOS | G243: H | H243: 0.1301 | I243: 25.8 | J243: 3.35
A244: Composição Auxiliar | B244: 88309 | C244: SINAPI | D244: PEDREIRO COM ENCARGOS COMPLEMENTARES | E244: SEDI - SERVIÇOS DIVERSOS | G244: H | H244: 0.1882 | I244: 26.15 | J244: 4.92
A245: Composição Auxiliar | B245: 88316 | C245: SINAPI | D245: SERVENTE COM ENCARGOS COMPLEMENTARES | E245: SEDI - SERVIÇOS DIVERSOS | G245: H | H245: 0.3183 | I245: 20.42 | J245: 6.49
A246: Composição Auxiliar | B246: 94964 | C246: SINAPI | D246: CONCRETO FCK = 20MPA, TRAÇO 1:2,7:3 (EM MASSA SECA DE CIMENTO/ AREIA MÉDIA/ BRITA 1) - PREPARO MECÂNICO COM BETONEIRA 400 L. AF_05/2021 | E246: FUES - FUNDAÇÕES E ESTRUTURAS | G246: m³ | H246: 0.0985 | I246: 490.73 | J246: 48.33
A247: Insumo | B247: 00002692 | C247: SINAPI | D247: DESMOLDANTE PROTETOR PARA FORMAS DE MADEIRA, DE BASE OLEOSA EMULSIONADA EM AGUA | E247: Material | G247: L | H247: 0.0017 | I247: 8.31 | J247: 0.01
A248: Insumo | B248: 00004509 | C248: SINAPI | D248: SARRAFO *2,5 X 10* CM EM PINUS, MISTA OU EQUIVALENTE DA REGIAO - BRUTA | E248: Material | G248: M | H248: 0.25 | I248: 5.58 | J248: 1.39
A249: Insumo | B249: 00004517 | C249: SINAPI | D249: SARRAFO *2,5 X 7,5* CM EM PINUS, MISTA OU EQUIVALENTE DA REGIAO - BRUTA | E249: Material | G249: M | H249: 0.2 | I249: 3.84 | J249: 0.76
A250: Insumo | B250: 00005068 | C250: SINAPI | D250: PREGO DE ACO POLIDO COM CABECA 17 X 21 (2 X 11) | E250: Material | G250: KG | H250: 0.024 | I250: 17.29 | J250: 0.41
A251: Insumo | B251: 00007156 | C251: SINAPI | D251: TELA DE ACO SOLDADA NERVURADA, CA-60, Q-196, (3,11 KG/M2), DIAMETRO DO FIO = 5,0 MM, LARGURA = 2,45 M, ESPACAMENTO DA MALHA = 10 X 10 CM | E251: Material | G251: m² | H251: 1.0816 | I251: 25 | J251: 27.04
A255: 2.5.3 | B255: Código | C255: Banco | D255: Descrição | E255: Tipo | G255: Und | H255: Quant. | I255: Valor Unit | J255: Total
A256: Composição | B256: 3641 | C256: ORSE | D256: Acabamento de superfície de piso de concreto com polimento mecânico com acabadora simples - Rev 02 | E256: Pavimentações Externas | G256: m² | H256: 1 | I256: 3.93 | J256: 3.93
A257: Composição Auxiliar | B257: 10549 | C257: ORSE | D257: Encargos Complementares - Servente | E257: Provisórios | G257: h | H257: 0.1333 | I257: 3.79 | J257: 0.5
A258: Insumo | B258: 00006111/SINAPI | C258: ORSE | D258: Servente de obras (horista) | E258: Mão de Obra | G258: h | H258: 0.1333333 | I258: 13.65 | J258: 1.81
A259: Insumo | B259: 12950 | C259: ORSE | D259: Operador de equipamento leve - SICRO | E259: Mão de Obra | G259: h | H259: 0.0888889 | I259: 14.5 | J259: 1.28
A260: Insumo | B260: 2871 | C260: ORSE | D260: Aluguel de máquina acabadora de superfície de concreto (trifásica) com 1 jogo de pás e disco de acabamento | E260: Equipamento | G260: h | H260: 0.0444444 | I260: 7.71 | J260: 0.34
A264: 2.6.1 | B264: Código | C264: Banco | D264: Descrição | E264: Tipo | G264: Und | H264: Quant. | I264: Valor Unit | J264: Total
A265: Composição | B265: 4555 | C265: ORSE | D265: Meio-fio pré moldado de concreto simples (0,12 x 0,30 x 1,00m), rejuntado comargamassa de cimento e areia no traço 1:3 | E265: Meios-Fios e Guias | G265: m | H265: 1 | I265: 44.35 | J265: 44.35
A266: Composição Auxiliar | B266: 10549 | C266: ORSE | D266: Encargos Complementares - Servente | E266: Provisórios | G266: h | H266: 0.36 | I266: 3.79 | J266: 1.36
A267: Composição Auxiliar | B267: 10550 | C267: ORSE | D267: Encargos Complementares - Pedreiro | E267: Provisórios | G267: h | H267: 0.18 | I267: 3.66 | J267: 0.65
A268: Composição Auxiliar | B268: 1903 | C268: ORSE | D268: Argamassa cimento e areia traço t-1 (1:3) - 1 saco cimento 50kg / 3 padiolas areia dim. 0.35 x 0.45 x 0.23 m - Confecção mecânica e transporte | E268: Argamassas | G268: m³ | H268: 0.001 | I268: 541.27 | J268: 0.54
A269: Insumo | B269: 00004750/SINAPI | C269: ORSE | D269: Pedreiro (horista) | E269: Mão de Obra | G269: h | H269: 0.18 | I269: 19.11 | J269: 3.43
A270: Insumo | B270: 00006111/SINAPI | C270: ORSE | D270: Servente de obras (horista) | E270: Mão de Obra | G270: h | H270: 0.36 | I270: 13.65 | J270: 4.91
A271: Insumo | B271: 1611 | C271: ORSE | D271: Meio fio pré-moldado concreto (0,12 x 0,30 x 1,00m) | E271: Material | G271: m | H271: 1 | I271: 33.46 | J271: 33.46
A275: 2.6.2 | B275: Código | C275: Banco | D275: Descrição | E275: Tipo | G275: Und | H275: Quant. | I275: Valor Unit | J275: Total
A276: Composição | B276: 94991 | C276: SINAPI | D276: EXECUÇÃO DE PASSEIO (CALÇADA) OU PISO DE CONCRETO COM CONCRETO MOLDADO IN LOCO, USINADO C20, ACABAMENTO CONVENCIONAL, NÃO ARMADO. AF_08/2022 | E276: PISO - PISOS | G276: m³ | H276: 1 | I276: 693.61 | J276: 693.61
A277: Composição Auxiliar | B277: 88262 | C277: SINAPI | D277: CARPINTEIRO DE FORMAS COM ENCARGOS COMPLEMENTARES | E277: SEDI - SERVIÇOS DIVERSOS | G277: H | H277: 1.6268 | I277: 25.8 | J277: 41.97
A278: Composição Auxiliar | B278: 88309 | C278: SINAPI | D278: PEDREIRO COM ENCARGOS COMPLEMENTARES | E278: SEDI - SERVIÇOS DIVERSOS | G278: H | H278: 0.156 | I278: 26.15 | J278: 4.07
A279: Composição Auxiliar | B279: 88316 | C279: SINAPI | D279: SERVENTE COM ENCARGOS COMPLEMENTARES | E279: SEDI - SERVIÇOS DIVERSOS | G279: H | H279: 1.7828 | I279: 20.42 | J279: 36.4
A280: Insumo | B280: 00002692 | C280: SINAPI | D280: DESMOLDANTE PROTETOR PARA FORMAS DE MADEIRA, DE BASE OLEOSA EMULSIONADA EM AGUA | E280: Material | G280: L | H280: 0.0213 | I280: 8.31 | J280: 0.17
A281: Insumo | B281: 00004509 | C281: SINAPI | D281: SARRAFO *2,5 X 10* CM EM PINUS, MISTA OU EQUIVALENTE DA REGIAO - BRUTA | E281: Material | G281: M | H281: 3.125 | I281: 5.58 | J281: 17.43
A282: Insumo | B282: 00004517 | C282: SINAPI | D282: SARRAFO *2,5 X 7,5* CM EM PINUS, MISTA OU EQUIVALENTE DA REGIAO - BRUTA | E282: Material | G282: M | H282: 2.5 | I282: 3.84 | J282: 9.6
A283: Insumo | B283: 00005068 | C283: SINAPI | D283: PREGO DE ACO POLIDO COM CABECA 17 X 21 (2 X 11) | E283: Material | G283: KG | H283: 0.2994 | I283: 17.29 | J283: 5.17
A284: Insumo | B284: 00034492 | C284: SINAPI | D284: CONCRETO USINADO BOMBEAVEL, CLASSE DE RESISTENCIA C20, COM BRITA 0 E 1, SLUMP = 100 +/- 20 MM, EXCLUI SERVICO DE BOMBEAMENTO (NBR 8953) | E284: Material | G284: m³ | H284: 1.2315 | I284: 470 | J284: 578.8
... 2046 more rows

Sheet Memória multiuso
C1: Ministério da Integração e do Desenvolvimento Regional - MIDR
C2: Companhia de Desenvovimento dos Vales do São Francisco e do Parnaíba
C3: 4ª Gerência Regional de Infraestrutura
A4: MEMÓRIA DE CÁLCULOS DOS QUANTITATIVOS
A5: OBRA: | B5: CONSTRUÇÃO DE 01 (UM) ESPAÇO MULTIUSO
A6: DESCRIÇÃO DOS SERVIÇOS | E6: UNID | F6: C Á L C U L O | L6: DIMENSÕES | M6: COMPRIMENTO M | N6: LARGURA M | O6: ÁREA M2
A7: LIMPEZA/REGULARIZAÇÃO | E7: M2 | F7: WC | H7: ESPAÇO | J7: TOTAL | L7: TERRENO | M7: =(32.89+39.85+3.32)/2 -> 38.03 | N7: =(34.37) -> 34.37 | O7: 1465.47
A8: ÁREA CONSTRUÍDA | E8: M2 | F8: 16.5 | H8: =1056.97 -> 1056.97 | J8: =F8+H8 -> 1073.47 | L8: QUADRA | M8: 32.43 | N8: 20.47 | O8: =M8*N8 -> 663.8421
L9: ARQUIBANCADA | M9: 7.75 | N9: 1.1 | O9: =M9*N9 -> 8.525
A10: TOTAL LIMPEZA/REGULARIZAÇÃO | J10: =ROUND(SUM(J8:J9),2) -> 1073.47 | L10: BANHEIROS | M10: 3.5 | N10: 5.3 | O10: 18.55
A12: MOVIMENTAÇÃO DE TERRA | F12: UNIDADE | G12: QUANTIDADE
A13: VOLUME ATERRO | F13: M³ | G13: =J8*0.1 -> 107.347
A14: EMPRESTIMO DE JAZIDA | F14: M³ | G14: =G13*1.1 -> 118.0817
A15: COMPACTAÇÃO TERRENO | F15: M³ | G15: =G13 -> 107.347
A16: TRANSPORTE (DMT=5KM) | F16: M³xKM | G16: =G14*1.2*15 -> 2125.4706
A18: LOCAÇÃO | E18: M | F18: COMPRIMENTO | H18: LARGURA | J18: TOTAL
A19: PERÍMETRO PARA LOCAÇÃO | E19: M | F19: 1 | H19: 170 | J19: =ROUND(F19*H19,2) -> 170
A21: ESCAVAÇÃO MANUAL | E21: M3 | F21: EXTENSÃO | G21: LARGURA | H21: PROFUND | I21: VEZES | J21: VOLUME
A22: SAPATA - MURETA | E22: M3 | F22: =(0.5+0.1) -> 0.6 | G22: =(0.5+0.1) -> 0.6 | H22: =0.05+0.5+0.3 -> 0.85 | I22: =7+12+7+12 -> 38 | J22: =ROUND(F22*G22*H22*I22,2) -> 11.63
A23: SAPATA CORRIDA - ARQUIBANCADA | E23: M3 | F23: =(7.75*3)+(1.1*4) -> 27.65 | G23: =0.35 -> 0.35 | H23: =0.05+0.4 -> 0.45 | I23: 2 | J23: =ROUND(F23*G23*H23*I23,2) -> 8.71
A24: SAPATA - ESTRURUA METÁLICA | E24: M3 | F24: 1.5 | G24: 1.5 | H24: 2 | I24: 4 | J24: =ROUND(F24*G24*H24*I24,2) -> 18
A25: TOTAL ESCAVAÇÃO MANUAL | J25: =ROUND(SUM(J22:J24),2) -> 38.34
A27: CONCRETO MAGRO | E27: M3 | F27: EXTENSÃO | G27: LARGURA | H27: PROFUND | I27: VEZES | J27: VOLUME
A28: SAPATA - MURETA | E28: M3 | F28: 0.5 | G28: 0.5 | H28: 0.05 | I28: =7+12+7+12 -> 38 | J28: =F28*G28*H28*I28 -> 0.475
A29: SAPATA CORRIDA - ARQUIBANCADA | E29: M3 | F29: =(7.75*3)+(1.1*4) -> 27.65 | G29: =0.25 -> 0.25 | H29: 0.05 | I29: 2 | J29: =F29*G29*H29*I29 -> 0.69125
A30: SAPATA CORRIDA - ESTRUTURA METÁLICA | E30: M3 | F30: 1 | G30: 1 | H30: 0.05 | I30: 4 | J30: =F30*G30*H30*I30 -> 0.2
A31: TOTAL CONCRETO MAGRO | J31: =SUM(J28:J30) -> 1.36625
A33: FORMAS PARA CONCRETO ARMADO | E33: M2 | F33: EXTENSÃO | G33: LARGURA | H33: VOLUME | I33: QUANT | J33: ÁREA
A34: FORMA DE MADEIRA (11M² POR M³ DE CONCRETO) | E34: M2 | H34: =J66 -> 27.12 | I34: 11 | J34: =H34*I34 -> 298.32
A35: TOTAL FORMAS PARA CONCRETO ARMADO | J35: =ROUND(SUM(J34:J34),2) -> 298.32
A37: FERRAGEM | D37: FERRO | E37: KG | F37: QUANT | G37: COMP | H37: VEZES | I37: PESO/M | J37: PESO | M37: FERRO | N37: PESO
A38: MURETA | B38: SAPATA | D38: 5 | E38: KG | F38: 10 | G38: 0.75 | H38: =7+12+7+12 -> 38 | I38: =VLOOKUP(D38,$M$38:$N$40,2,FALSE) -> 0.154 | J38: =ROUND(F38*G38*H38*I38,2) -> 43.89 | M38: 5 | N38: 0.154
B39: CINTAMENTO | D39: 6.3 | E39: KG | F39: 4 | G39: =32.43+20.47+32.43+20.47 -> 105.8 | H39: 1 | I39: =VLOOKUP(D39,$M$38:$N$40,2,FALSE) -> 0.245 | J39: =ROUND(F39*G39*H39*I39,2) -> 103.68 | M39: 6.3 | N39: 0.245
B40: CINTAMENTO | D40: 5 | E40: KG | F40: =(G39/0.2)+1 -> 530 | G40: 0.75 | H40: 1 | I40: 0.154 | J40: 61.22 | M40: 8 | N40: 0.395
B41: PILAR | D41: 6.3 | E41: KG | F41: 4 | G41: 1.4 | H41: =7+12+7+12 -> 38 | I41: 0.245 | J41: 52.14
B42: PILAR | D42: 5 | E42: KG | F42: =G41/0.2 -> 7 | G42: 0.45 | H42: =7+12+7+12 -> 38 | I42: 0.154 | J42: 18.43
A43: ARQUIBANCADA | B43: SAPATA CORRIDA (LANCE HOR.) | D43: 6.3 | E43: KG | F43: 4 | G43: 7.75 | H43: 6 | I43: 0.245 | J43: 45.57
D44: 5 | E44: KG | F44: =ROUNDUP(G43/0.2+1,0) -> 40 | G44: 1.15 | H44: 6 | I44: 0.154 | J44: 42.5
B45: SAPATA CORRIDA (LANCE VERT.) | D45: 6.3 | E45: KG | F45: 4 | G45: 1.1 | H45: 8 | I45: 0.245 | J45: 8.62
D46: 5 | E46: KG | F46: =ROUNDUP(G45/0.2+1,0) -> 7 | G46: 1.15 | H46: 8 | I46: 0.154 | J46: 9.92
B47: PILAR 01 | D47: 6.3 | E47: KG | F47: 4 | G47: 0.75 | H47: 8 | I47: 0.245 | J47: 5.88
B48: PILAR 01 | D48: 5 | E48: KG | F48: =ROUNDUP(G47/0.2+1,0) -> 5 | G48: 0.45 | H48: 8 | I48: 0.154 | J48: 2.77
B49: PILAR 02 | D49: 6.3 | E49: KG | F49: 4 | G49: 1.15 | H49: 16 | I49: 0.245 | J49: 18.03
B50: PILAR 02 | D50: 5 | E50: KG | F50: =ROUNDUP(G49/0.2+1,0) -> 7 | G50: 0.45 | H50: 16 | I50: 0.154 | J50: 7.76
A51: ESTRUTURA METÁLICA | B51: PESCOÇO-SAPATAS | D51: 10 | E51: KG | F51: 8 | G51: 1.5 | H51: 4 | I51: 0.617 | J51: 29.62
B52: PESCOÇO-SAPATAS | D52: 5 | E52: KG | F52: 10 | G52: 1.9 | H52: 4 | I52: 0.154 | J52: =ROUND(F52*G52*H52*I52,2) -> 11.7
A53: TOTAL FERRAGEM | D53: 5 | E53: KG | J53: =SUMIF($D$38:$D$52,D53,$J$38:$J$52) -> 198.19
D54: 6.3 | E54: KG | J54: =SUMIF($D$38:$D$52,D54,$J$38:$J$52) -> 233.92
D55: 10 | E55: KG | J55: =SUMIF($D$38:$D$52,D55,$J$38:$J$52) -> 29.62
A57: CONCRETO ESTRUTURAL FCK= 25MPA | E57: M3 | F57: EXTENSÃO / VOLUME | G57: LARGURA | H57: PROFUND | I57: VEZES | J57: VOLUME
A58: SAPATA - MURETA | E58: M3 | F58: =0.5 -> 0.5 | G58: 0.5 | H58: 0.15 | I58: =7+12+7+12 -> 38 | J58: =F58*G58*H58*I58 -> 1.425
A59: CINTAMENTO - MURETA | E59: M3 | F59: =G39 -> 105.8 | G59: 0.15 | H59: 0.3 | I59: 1 | J59: =F59*G59*H59*I59 -> 4.761
A60: PILAR - MURETA | E60: M3 | F60: 0.15 | G60: 0.15 | H60: 1.25 | I60: =7+12+7+12 -> 38 | J60: 1.06875
A61: SAPATA CORRIDA - ARQUIBANCADAS | E61: M3 | F61: =(7.75*3+1.1*4) -> 27.65 | G61: 0.25 | H61: 0.4 | I61: 2 | J61: 5.53
A62: PILAR - ARQUIBANCADA | E62: M3 | F62: 0.15 | G62: 0.15 | H62: 0.33 | I62: 8 | J62: 0.0594
A63: PILAR - ARQUIBANCADA | E63: M3 | F63: 0.15 | G63: 0.15 | H63: 0.78 | I63: 16 | J63: 0.2808
A64: SAPATA - ESTRUTURA METÁLICA | E64: M3 | F64: 1.5 | G64: 1.5 | H64: 1.5 | I64: 4 | J64: =F64*G64*H64*I64 -> 13.5
A65: PESCOÇO - ESTRUTURA METÁLICA | E65: M3 | F65: 0.5 | G65: 0.5 | H65: 0.5 | I65: 4 | J65: =F65*G65*H65*I65 -> 0.5
A66: TOTAL CONCRETO ESTRUTURAL FCK= 25MPA | J66: =ROUND(SUM(J58:J65),2) -> 27.12
A68: REATERRO | E68: UNI | F68: DESCRIÇÃO | J68: VOLUME
A69: VOLUME ESCAVADO | E69: M3 | F69: Total escavação manual, intem acima | J69: =J25 -> 38.34
A70: VOLUME CONCRETO FUNDAÇÃO - ATÉ O TERRENO NATURAL | E70: M3 | F70: Total volume concreto fundações | J70: =J58+J59+J61 -> 11.716
A71: VOLUME CONCRETO MAGRO | E71: M3 | F71: total concreto magro, item abaixo | J71: =J31 -> 1.36625
A72: TOTAL REATERRO | J72: =J69-J70-J71 -> 25.25775
A74: ALVENARIA, 1/2 VEZ, EM TIJOLO CERÂMICO | E74: M2 | F74: EXTENSÃO | G74: ALTURA | H74: PROFUND | I74: VEZES | J74: ÁREA
A75: MURETA | E75: M2 | F75: =(32.43+20.47+32.43+20.47) -> 105.8 | G75: 0.6 | I75: 1 | J75: =F75*G75*I75 -> 63.48
A76: ARQUIBANCADA | E76: M2 | F76: =7.75 -> 7.75 | G76: 0.33 | I76: 2 | J76: =F76*G76*I76 -> 5.115
A77: ARQUIBANCADA | E77: M2 | F77: =7.75 -> 7.75 | G77: 0.78 | I77: 4 | J77: 24.18
A78: ARQUIBANCADA - LATERAL | E78: M2 | F78: 0.4 | G78: =0.45-0.12 -> 0.33 | I78: 4 | J78: 0.528
A79: ARQUIBANCADA - LATERAL | E79: M2 | F79: 0.25 | G79: =0.9-0.12 -> 0.78 | I79: 4 | J79: 0.78
A80: TOTAL ALVENARIA EM TIJOLO CERÂMICO | J80: =ROUND(SUM(J75:J79),2) -> 94.08
A82: TUBO PVC DN 75 MM PARA DRENAGEM | E82: M | F82: EXTENSÃO | I82: VEZES | J82: EXTENSÃO TOTAL
A83: TUBO PVC DN 75 MM PARA DRENAGEM | E83: M | F83: 0.15 | I83: 9 | J83: =F83*I83 -> 1.35
A85: LAJE - ARQUIBANCADA | E85: M2 | F85: EXTENSÃO | G85: LARGURA | H85: PROFUND | I85: VEZES | J85: ÁREA
A86: LAJE PRÉ-MOLDADA | E86: M2 | F86: =7.75 -> 7.75 | G86: =0.55+0.6 -> 1.15 | I86: 2 | J86: =F86*G86*I86 -> 17.825
A88: CHAPISCO | E88: M2 | F88: EXTENSÃO | G88: LARGURA | H88: DESCONTO | I88: VEZES | J88: ÁREA
A89: MURETA | E89: M2 | F89: =$F$75 -> 105.8 | G89: 0.6 | H89: =7.75*0.6*2 -> 9.3 | I89: 2 | J89: =F89*G89*I89-H89 -> 117.66
A90: MURETA | E90: M2 | F90: =$F$75 -> 105.8 | G90: 0.15 | I90: 1 | J90: =F90*G90*I90 -> 15.87
A91: ARQUIBANCADA FRENTE | E91: M2 | F91: =7.75 -> 7.75 | G91: =0.45-0.12 -> 0.33 | I91: 4 | J91: 10.23
A92: ARQUIBANCADA FUNDO | E92: M2 | F92: =7.75 -> 7.75 | G92: =0.9-0.6 -> 0.3 | I92: 2 | J92: =F92*G92*I92 -> 4.65
A93: ARQUIBANCADA - LATERAL | E93: M2 | F93: 0.55 | G93: =0.45-0.12 -> 0.33 | I93: 4 | J93: 0.726
A94: ARQUIBANCADA - LATERAL | E94: M2 | F94: 0.55 | G94: =0.9-0.12 -> 0.78 | I94: 4 | J94: 1.716
A95: TOTAL CHAPISCO | J95: =ROUND(SUM(J89:J94),2) -> 150.85
A97: REBOCO | E97: M2 | F97: EXTENSÃO | G97: LARGURA | H97: PROFUND | I97: VEZES | J97: ÁREA
A98: ÁREA DE CHAPISCO | E98: M2 | J98: =J95 -> 150.85
A99: TOTAL REBOCO | J99: =ROUND(SUM(J98:J98),2) -> 150.85
A101: PISOS | F101: QUANT | G101: ÁREA | H101: PROFUND | I101: VEZES | J101: VOLUME / ÁREA
A102: LASTRO DE BRITA 2 - QUADRA MULTIEVENTOS | E102: M3 | F102: 1 | G102: =((32.43-0.15-0.15)*(20.47-0.15-0.15))-((7.75*1.1)*2) -> 631.0121 | H102: 0.05 | I102: 1 | J102: =ROUND(F102*G102*H102*I102,2) -> 31.55
A103: PISO EM CONCRETO, e=8cm - QUADRA MULTIEVENTOS | E103: M2 | F103: 1 | G103: =G102 -> 631.0121 | I103: 1 | J103: =ROUND(F103*G103*I103,2) -> 631.01
A104: ACABAMENTO MECÂNICO | E104: M2 | F104: 1 | G104: =G103 -> 631.0121 | I104: 1 | J104: =ROUND(F104*G104*I104,2) -> 631.01
A106: MEIO-FIO | E106: M | J106: EXTENSÃO
A107: CONTORNO CALÇADA | E107: M | J107: =34.48+71.56+29.64 -> 135.68
A108: TOTAL MEIO-FIO | J108: =SUM(J107:J107) -> 135.68
A110: PISOS | F110: QUANT | G110: ÁREA | H110: PROFUND | I110: VEZES | J110: VOLUME / ÁREA
A111: CALÇADA EM CONCRETO 15 MPA, E=5CM - ÁREA EXTERNA | E111: M3 | F111: 1 | G111: =374.03 -> 374.03 | H111: 0.05 | I111: 1 | J111: =ROUND(G111*H111*I111,2) -> 18.7
A113: BICICLETÁRIO EM TUBO DE AÇO GALVANIZADO DN 50mm | E113: UN | J113: UNIDADE
A114: BICICLETÁRIO EM TUBO DE AÇO GALVANIZADO DN 50mm | E114: UN | J114: 10
A116: GUARDA CORPO EM TUBO DE AÇO | E116: UN | J116: EXTENSÃO
A117: CORRIMÃO DUPLA ALTURA | E117: M | J117: =(2.88+2+2.88)+(4.96+1.5)*2 -> 20.68
A119: ESTRUTURA DE ALAMBRADO | E119: M2 | F119: EXTENSÃO | H119: ALTURA | I119: VEZES | J119: ÁREA
A120: ALAMBRADO | E120: M2 | J120: =((20.47*2.4)*2)+((3*2.4)*4)+((3*1.5)*4)+((3*0.9/2)*4)+(2*32.43-6*4)*1.5 -> 211.746
A121: PORTÃO DO ALAMBRADO | E121: M2 | F121: 2 | H121: 2.1 | I121: 3 | J121: =ROUND(F121*H121*I121,2) -> 12.6
A122: TOTAL ALAMBRADO | E122: M2 | F122: =J120+J121 -> 224.346
A124: PINTURA LATEX ACRILICO | E124: M2 | F124: EXTENSÃO | G124: LARGURA | H124: DESCONTO | I124: VEZES | J124: ÁREA
A125: MURETA (LATERAL) | E125: M2 | F125: =$F$75 -> 105.8 | G125: 0.6 | H125: =7.75*0.6*2 -> 9.3 | I125: 2 | J125: =F125*G125*I125-H125 -> 117.66
A126: MURETA (HORIZONTAL) | E126: M2 | F126: =$F$75 -> 105.8 | G126: 0.15 | I126: 1 | J126: =F126*G126*I126 -> 15.87
A127: ARQUIBANCADA FRENTE | E127: M2 | F127: =7.75 -> 7.75 | G127: 0.33 | I127: 4 | J127: 10.23
A128: ARQUIBANCADA FUNDO | E128: M2 | F128: =7.75 -> 7.75 | G128: =0.3-0.12 -> 0.18 | I128: 2 | J128: 2.79
A129: ARQUIBANCADA - LATERAL | E129: M2 | F129: 0.55 | G129: =0.45 -> 0.45 | I129: 4 | J129: 0.99
A130: ARQUIBANCADA - LATERAL | E130: M2 | F130: 0.55 | G130: =0.9 -> 0.9 | I130: 4 | J130: 1.98
A131: DEMARCAÇÃO ACESSO CADEIRANTES | E131: M2 | F131: =(2.25+1.25)/2 -> 1.75 | G131: 1.51 | I131: 2 | J131: 5.285
A132: TOTAL PINTURA LATEX ACRILICO | J132: =SUM(J125:J131) -> 154.805
A134: PINTURA ESMALTE | E134: M2 | F134: ÁREA | H134: DESCONTO | I134: VEZES | J134: ÁREA TOTAL
A135: ALAMBRADO | E135: M2 | F135: =J120 -> 211.746 | H135: 0.5 | I135: 2 | J135: =F135*I135*H135 -> 211.746
A136: PORTÃO DO ALAMBRADO | E136: M2 | F136: =J121 -> 12.6 | H136: 0.5 | I136: 2 | J136: =F136*I136*H136 -> 12.6
A137: BICICLETÁRIO (10 UNIDADES) | E137: M2 | F137: =(50/1000)*3.14*(0.75+1+0.75) -> 0.3925 | I137: 10 | J137: =F137*I137 -> 3.925
A138: CORRIMÃO DUPLA ALTURA | E138: M2 | F138: =(40/1000)*3.14*(4.96+1.5)*2*2+(60/1000)*(2.88+2+2.88)*2 -> 4.176704 | J138: =F138 -> 4.176704
A139: TOTAL ESMALTE | J139: =SUM(J135:J138) -> 232.447704
A141: COBERTURA METÁLICA | E141: M2 | F141: COMPRIMENTO | H141: LARGURA | J141: TOTAL
A142: ÁREA DE COBERTURA | E142: M2 | F142: 22 | H142: 8 | J142: =(ROUND(F142*H142,2)) -> 176
A144: ESTRUTURA METÁLICA | E144: T | F144: PESO | J144: TOTAL
A145: PESO DA ESTRUTURA | E145: T | F145: 6000 | J145: =F145 -> 6000
A146: TOTAL | J146: =SUM(J145:J145) -> 6000

Sheet Memória banheiros
A6: MEMÓRIA DE CÁLCULO DOS BANHEIROS
A7: Obejto: Reforma do Colégio JEMB | B7: CONSTRUÇÃO DE 01 (UM) ESPAÇO MULTIEVENTOS
C10: Ministério da Integração e do Desenvolvimento Regional - MIDR
C11: Companhia de Desenvovimento dos Vales do São Francisco e do Parnaíba
C12: 4ª Gerência Regional de Infraestrutura
A13: MEMÓRIA DE CÁLCULOS DOS QUANTITATIVOS DOS BANHEIROS
A14: OBRA: | B14: CONSTRUÇÃO DE 01 (UM) ESPAÇO MULTIUSO
A15: ÍTEM | B15: SERVIÇOS | C15: UNID. | D15: QUANT. | E15: COMPR. (m) | F15: LARGURA (m) | G15: ALTURA (m) | H15: ÁREA (m²) | I15: VOLUME (m³) | J15: SUBTRAIR | K15: TOTAL | L15: OBSERVAÇÕES
A18: 1.0 | B18: INFRAESTRUTURA
A20: 1.1 | B20: Escavação manual de vala, exceto rocha até 1,5m | C20: m³ | D20: 1 | E20: =5.3*2+3.2*4 -> 23.4 | F20: 0.4 | G20: 0.4 | I20: =ROUND(E20*F20*G20,2) -> 3.74 | J20: 0 | K20: =IF(C20="m²",ROUND((D20*H20-J20),2),IF(C20="m³",ROUND((D20*I20-J20),2),IF(C20="m",ROUND((D20*E20-J20),2),D20))) -> 3.74
A21: 1.1 | B21: Escavação manual de vala, exceto rocha até 1,5m | C21: m³ | D21: 8 | E21: 0.5 | F21: 0.5 | G21: 0.5 | I21: =ROUND(E21*F21*G21,3) -> 0.125 | J21: 0 | K21: =IF(C21="m²",ROUND((D21*H21-J21),2),IF(C21="m³",ROUND((D21*I21-J21),2),IF(C21="m",ROUND((D21*E21-J21),2),D21))) -> 1
K22: =SUM(K20:K21) -> 4.74
A24: 1.3 | B24: Alvenaria Fundação pedra argamassada | C24: m³ | D24: 1 | E24: =E20 -> 23.4 | F24: 0.4 | G24: 0.4 | H24: 0 | I24: =ROUND(E24*F24*G24,2) -> 3.74 | J24: 0 | K24: =IF(C24="m²",ROUND((D24*H24-J24),2),IF(C24="m³",ROUND((D24*I24-J24),2),IF(C24="m",ROUND((D24*E24-J24),2),D24))) -> 3.74
K25: =SUM(K24) -> 3.74
A27: 1.5 | B27: Concreto sapata para pilares | C27: m³ | D27: =D21 -> 8 | E27: 0.5 | F27: 0.5 | G27: 0.5 | I27: =ROUND(E27*F27*G27,3) -> 0.125 | J27: 0 | K27: =IF(C27="m²",ROUND((D27*H27-J27),2),IF(C27="m³",ROUND((D27*I27-J27),2),IF(C27="m",ROUND((D27*E27-J27),2),D27))) -> 1
K28: =SUM(K27:K27) -> 1
A30: 2.0 | B30: ESTRUTURA DE VEDAÇÃO/SUSTENTAÇÃO
A32: 2.1 | B32: Alvenaria de tijolo cerâmico furado | C32: m² | D32: 1 | E32: =3.2+5.3+3.2 -> 11.7 | F32: 0 | G32: 4.3 | H32: =E32*G32 -> 50.31 | I32: =ROUND(E32*F32*G32,2) -> 0 | J32: =3*1.2*0.5 -> 1.8 | K32: =ROUND((D32*H32-J32),2) -> 48.51
A33: 2.1 | B33: Alvenaria de tijolo cerâmico furado | C33: =C32 -> m² | D33: 1 | E33: 5.3 | F33: 0 | G33: 4.3 | H33: =E33*G33 -> 22.79 | I33: 0 | J33: =0.9*2.1 -> 1.89 | K33: =ROUND((D33*H33-J33),2) -> 20.9
A34: 2.1 | B34: Alvenaria de tijolo cerâmico furado | C34: =C32 -> m² | D34: 2 | E34: 3.2 | F34: 0 | G34: 2.68 | H34: 8.576 | I34: 0 | J34: =0.8*2.1*2 -> 3.36 | K34: 13.79
K35: =SUM(K32:K34) -> 83.2
A37: 2.2 | B37: Concreto Fck=25Mpa para pilares | C37: m³ | D37: 8 | E37: 0.115 | F37: 0.15 | G37: 4.3 | H37: 0 | I37: =ROUND(E37*F37*G37,2) -> 0.07 | J37: 0 | K37: =IF(C37="m²",ROUND((D37*H37-J37),2),IF(C37="m³",ROUND((D37*I37-J37),2),IF(C37="m",ROUND((D37*E37-J37),2),D37))) -> 0.56
K38: =SUM(K37:K37) -> 0.56
A40: 2.4 | B40: Concreto Fck=25Mpa para cintas superiores | C40: m³ | D40: 1 | E40: =E20 -> 23.4 | F40: 0.115 | G40: 0.19 | H40: 0 | I40: =ROUND(E40*F40*G40,2) -> 0.51 | J40: 0 | K40: =IF(C40="m²",ROUND((D40*H40-J40),2),IF(C40="m³",ROUND((D40*I40-J40),2),IF(C40="m",ROUND((D40*E40-J40),2),D40))) -> 0.51
K41: =SUM(K40:K40) -> 0.51
A43: 2.5 | B43: Concreto Fck=25Mpa para cintas superiores (chapim) | C43: m³ | D43: 1 | E43: =5.3*2+3.2*2 -> 17 | F43: 0.115 | G43: 0.14 | H43: 0 | I43: =ROUND(E43*F43*G43,2) -> 0.27 | J43: 0 | K43: =IF(C43="m²",ROUND((D43*H43-J43),2),IF(C43="m³",ROUND((D43*I43-J43),2),IF(C43="m",ROUND((D43*E43-J43),2),D43))) -> 0.27
K44: =SUM(K43:K43) -> 0.27
A46: 2.6 | B46: Concreto Fck=25Mpa para cintas superiores (bordo da laje) | C46: m³ | D46: 2 | E46: 3.5 | F46: 0.115 | G46: 0.5 | H46: 0 | I46: =ROUND(E46*F46*G46,2) -> 0.2 | J46: 0 | K46: =IF(C46="m²",ROUND((D46*H46-J46),2),IF(C46="m³",ROUND((D46*I46-J46),2),IF(C46="m",ROUND((D46*E46-J46),2),D46))) -> 0.4
K47: =SUM(K46:K46) -> 0.4
A49: 2.7 | B49: Armadura Aço CA-50 p/ 1m³ de concreto | C49: Kg | D49: 100 | E49: 0 | F49: 0 | G49: 0 | H49: 0 | I49: =K38+K41+K44+K47 -> 1.74 | J49: 0 | K49: =ROUND(D49*I49,2) -> 174
K50: =SUM(K49:K49) -> 174
A52: 2.8 | B52: Forma de madeira | C52: m² | D52: 10 | E52: 0 | F52: 0 | G52: 0 | H52: 0 | I52: =I49 -> 1.74 | J52: 0 | K52: =ROUND(D52*I52,2) -> 17.4 | L52: soma dos volumes de concreto
K53: =SUM(K52:K52) -> 17.4
A55: 3.0 | B55: REVESTIMENTO DE PAREDES
A57: 3.1 | B57: Chapisco rustico traco 1:3 (cimento e areia grossa), espessura 2cm, preparo manual da argamassa | C57: m² | D57: 2 | H57: =K32 -> 48.51 | I57: =ROUND(E57*F57*G57,2) -> 0 | J57: 0 | K57: =IF(C57="m²",ROUND((D57*H57-J57),2),IF(C57="m³",ROUND((D57*I57-J57),2),IF(C57="m",ROUND((D57*E57-J57),2),D57))) -> 97.02
A58: 3.1 | B58: Chapisco rustico traco 1:3 (cimento e areia grossa), espessura 2cm, preparo manual da argamassa | C58: =C57 -> m² | D58: 2 | H58: =K33 -> 20.9 | I58: 0 | J58: 0 | K58: 41.8
A59: 3.1 | B59: Chapisco rustico traco 1:3 (cimento e areia grossa), espessura 2cm, preparo manual da argamassa | C59: =C57 -> m² | D59: 2 | H59: =K34 -> 13.79 | I59: 0 | J59: 0 | K59: 27.58
K60: =SUM(K57:K59) -> 166.4
A62: 3.2 | B62: Reboco | C62: m² | D62: 1 | H62: =K60 -> 166.4 | I62: =ROUND(E62*F62*G62,2) -> 0 | J62: =K68 -> 55.83 | K62: =H62-J62 -> 110.57
K63: =SUM(K62:K62) -> 110.57
A65: 3.4 | B65: Emboço traço 1:2:8 (cimento, cal e areia) | C65: m² | D65: 4 | E65: 3.2 | F65: 0 | G65: 2.4 | H65: =IF(G65=0,ROUND((E65*F65),2),IF(F65=0,ROUND((E65*G65),2),IF(E65=0,ROUND((F65*G65),2),ROUND((E65*F65),2)))) -> 7.68 | I65: =ROUND(E65*F65*G65,2) -> 0 | J65: =2*0.8*2.1 -> 3.36 | K65: =IF(C65="m²",ROUND((D65*H65-J65),2),IF(C65="m³",ROUND((D65*I65-J65),2),IF(C65="m",ROUND((D65*E65-J65),2),D65))) -> 27.36
A66: 3.4 | B66: Emboço traço 1:2:8 (cimento, cal e areia) | C66: =C65 -> m² | D66: 2 | E66: =1.5+1.7+1.5 -> 4.7 | F66: 0 | G66: 2.4 | H66: =IF(G66=0,ROUND((E66*F66),2),IF(F66=0,ROUND((E66*G66),2),IF(E66=0,ROUND((F66*G66),2),ROUND((E66*F66),2)))) -> 11.28 | I66: =ROUND(E66*F66*G66,2) -> 0 | J66: =3*1.2*0.5+0.9*2.1 -> 3.69 | K66: =IF(C66="m²",ROUND((D66*H66-J66),2),IF(C66="m³",ROUND((D66*I66-J66),2),IF(C66="m",ROUND((D66*E66-J66),2),D66))) -> 18.87
A67: 3.4 | B67: Emboço traço 1:2:8 (cimento, cal e areia) | C67: =C65 -> m² | D67: 2 | E67: 2 | F67: 0 | G67: 2.4 | H67: =IF(G67=0,ROUND((E67*F67),2),IF(F67=0,ROUND((E67*G67),2),IF(E67=0,ROUND((F67*G67),2),ROUND((E67*F67),2)))) -> 4.8 | I67: =ROUND(E67*F67*G67,2) -> 0 | J67: 0 | K67: =IF(C67="m²",ROUND((D67*H67-J67),2),IF(C67="m³",ROUND((D67*I67-J67),2),IF(C67="m",ROUND((D67*E67-J67),2),D67))) -> 9.6
K68: =SUM(K65:K67) -> 55.83
A70: 3.5 | B70: Revestimento ceramico em parede | C70: m² | D70: 1 | F70: 0 | H70: =K68 -> 55.83 | I70: =ROUND(E70*F70*G70,2) -> 0 | J70: 0 | K70: =IF(C70="m²",ROUND((D70*H70-J70),2),IF(C70="m³",ROUND((D70*I70-J70),2),IF(C70="m",ROUND((D70*E70-J70),2),D70))) -> 55.83
K71: =SUM(K70:K70) -> 55.83
A73: 4.0 | B73: PAVIMENTAÇÃO
A75: 4.3 | B75: Piso cerâmico | C75: m² | D75: 1 | H75: =4.8+4.8+3.4 -> 13 | I75: =ROUND(E75*F75*G75,2) -> 0 | J75: 0 | K75: =IF(C75="m²",ROUND((D75*H75-J75),2),IF(C75="m³",ROUND((D75*I75-J75),2),IF(C75="m",ROUND((D75*E75-J75),2),D75))) -> 13
K76: =SUM(K75:K75) -> 13
A78: 4.4 | B78: Soleira em granito | C78: m | D78: 2 | E78: 0.8 | K78: =IF(C78="m²",ROUND((D78*H78-J78),2),IF(C78="m³",ROUND((D78*I78-J78),2),IF(C78="m",ROUND((D78*E78-J78),2),D78))) -> 1.6
A79: 4.4 | B79: Soleira em granito | C79: =C78 -> m | D79: 1 | E79: 0.9 | K79: =IF(C79="m²",ROUND((D79*H79-J79),2),IF(C79="m³",ROUND((D79*I79-J79),2),IF(C79="m",ROUND((D79*E79-J79),2),D79))) -> 0.9
K80: =SUM(K78:K79) -> 2.5
A82: 5.0 | B82: COBERTURA
A84: 5.1 | B84: Forro de gesso | C84: m | D84: 1 | E84: 5 | F84: 3.2 | H84: =ROUND(E84*F84,2) -> 16 | K84: =D84*H84 -> 16
K85: =SUM(K84:K84) -> 16
A87: 5.2 | B87: Laje pré-moldada (para caixa d'água) | C87: m² | D87: 1 | E87: 5 | F87: 3.2 | H87: =ROUND(E87*F87,2) -> 16 | K87: =D87*H87 -> 16
K88: =SUM(K87:K87) -> 16
A90: 5.4 | B90: Trama metalica | C90: m² | D90: 1 | E90: 5 | F90: 3.2 | H90: =ROUND(E90*F90,2) -> 16 | K90: =D90*H90 -> 16
K91: =SUM(K90:K90) -> 16
A93: 5.5 | B93: Telha de aço | C93: m² | D93: 1 | E93: 5 | F93: 3.2 | H93: =ROUND(E93*F93,2) -> 16 | K93: =D93*H93 -> 16
K94: =SUM(K93:K93) -> 16
A96: 5.6 | B96: Rufo | C96: m | D96: 1 | E96: =5+2.35*2 -> 9.7 | K96: =D96*E96 -> 9.7
K97: =SUM(K96:K96) -> 9.7
A99: 5.7 | B99: Calha de zinco | C99: m | D99: 1 | E99: 5 | K99: =D99*E99 -> 5
K100: =SUM(K99) -> 5
A102: 6.0 | B102: PINTURA
A104: 6.1 | B104: Aplicação de selador | C104: m² | D104: 1 | H104: =K63 -> 110.57 | K104: =H104 -> 110.57
K105: =SUM(K104:K104) -> 110.57
A107: 6.2 | B107: Pintura em textura lisa | C107: m² | H107: =K97 -> 9.7 | K107: =H107 -> 9.7
K108: =SUM(K107:K107) -> 9.7
A110: 6.3 | B110: Pintura esmalte sintético em esquadrias de ferro | C110: m² | D110: 1 | E110: 0 | F110: 0.9 | G110: 2.1 | H110: =IF(G110=0,ROUND((E110*F110),2),IF(F110=0,ROUND((E110*G110),2),IF(E110=0,ROUND((F110*G110),2),ROUND((E110*F110),2)))) -> 1.89 | I110: =ROUND(E110*F110*G110,2) -> 0 | J110: 0 | K110: =IF(C110="m²",ROUND((D110*H110-J110),2),IF(C110="m³",ROUND((D110*I110-J110),2),IF(C110="m",ROUND((D110*E110-J110),2),D110))) -> 1.89
A111: 6.3 | B111: Pintura esmalte sintético em esquadrias de ferro | C111: =C110 -> m² | D111: 2 | E111: 0 | F111: 0.8 | G111: 2.1 | H111: =IF(G111=0,ROUND((E111*F111),2),IF(F111=0,ROUND((E111*G111),2),IF(E111=0,ROUND((F111*G111),2),ROUND((E111*F111),2)))) -> 1.68 | I111: =ROUND(E111*F111*G111,2) -> 0 | J111: 0 | K111: =IF(C111="m²",ROUND((D111*H111-J111),2),IF(C111="m³",ROUND((D111*I111-J111),2),IF(C111="m",ROUND((D111*E111-J111),2),D111))) -> 3.36
A112: 6.3 | B112: Pintura esmalte sintético em esquadrias de ferro | C112: =C110 -> m² | D112: 1 | E112: 0 | F112: 0.6 | G112: 0.6 | H112: =IF(G112=0,ROUND((E112*F112),2),IF(F112=0,ROUND((E112*G112),2),IF(E112=0,ROUND((F112*G112),2),ROUND((E112*F112),2)))) -> 0.36 | I112: =ROUND(E112*F112*G112,2) -> 0 | J112: 0 | K112: =IF(C112="m²",ROUND((D112*H112-J112),2),IF(C112="m³",ROUND((D112*I112-J112),2),IF(C112="m",ROUND((D112*E112-J112),2),D112))) -> 0.36
K113: =SUM(K110:K112) -> 5.61
A115: 8.0 | B115: INSTALAÇÕES HIDRÁULICAS
A117: 8.1 | B117: Pontos de água | C117: und | D117: 7 | E117: 0 | F117: 0 | G117: 0 | H117: 0 | I117: =ROUND(E117*F117*G117,2) -> 0 | J117: 0 | K117: =IF(C117="m²",ROUND((D117*H117-J117),2),IF(C117="m³",ROUND((D117*I117-J117),2),IF(C117="m",ROUND((D117*E117-J117),2),D117))) -> 7
K118: =SUM(K117:K117) -> 7
A120: 8.2 | B120: Torneira para pia | C120: und | D120: 3 | E120: 0 | F120: 0 | G120: 0 | H120: 0 | I120: =ROUND(E120*F120*G120,2) -> 0 | J120: 0 | K120: =IF(C120="m²",ROUND((D120*H120-J120),2),IF(C120="m³",ROUND((D120*I120-J120),2),IF(C120="m",ROUND((D120*E120-J120),2),D120))) -> 3
K121: =SUM(K120:K120) -> 3
A123: 8.3 | B123: Lavatório de louça branco suspenso | C123: und | D123: 3 | E123: 0 | F123: 0 | G123: 0 | H123: 0 | I123: =ROUND(E123*F123*G123,2) -> 0 | J123: 0 | K123: =IF(C123="m²",ROUND((D123*H123-J123),2),IF(C123="m³",ROUND((D123*I123-J123),2),IF(C123="m",ROUND((D123*E123-J123),2),D123))) -> 3
K124: =SUM(K123:K123) -> 3
A126: 8.4 | B126: Sifão do tipo flexível | C126: und | D126: 3 | E126: 0 | F126: 0 | G126: 0 | H126: 0 | I126: =ROUND(E126*F126*G126,2) -> 0 | J126: 0 | K126: =IF(C126="m²",ROUND((D126*H126-J126),2),IF(C126="m³",ROUND((D126*I126-J126),2),IF(C126="m",ROUND((D126*E126-J126),2),D126))) -> 3
K127: =SUM(K126:K126) -> 3
A129: 8.5 | B129: Kit de acessórios para banheiro | C129: und | D129: 1 | E129: 0 | F129: 0 | G129: 0 | H129: 0 | I129: =ROUND(E129*F129*G129,2) -> 0 | J129: 0 | K129: =IF(C129="m²",ROUND((D129*H129-J129),2),IF(C129="m³",ROUND((D129*I129-J129),2),IF(C129="m",ROUND((D129*E129-J129),2),D129))) -> 1
K130: =SUM(K129:K129) -> 1
A132: 8.6 | B132: Registro de pressão 1/2" - incl. Conexões | C132: und | D132: 3 | E132: 0 | F132: 0 | G132: 0 | H132: 0 | I132: =ROUND(E132*F132*G132,2) -> 0 | J132: 0 | K132: =IF(C132="m²",ROUND((D132*H132-J132),2),IF(C132="m³",ROUND((D132*I132-J132),2),IF(C132="m",ROUND((D132*E132-J132),2),D132))) -> 3
K133: =SUM(K132:K132) -> 3
A135: 8.7 | B135: Caixa d'água em polietileno, 500 litros, com acessórios | C135: und | D135: 1 | E135: 0 | F135: 0 | G135: 0 | H135: 0 | I135: =ROUND(E135*F135*G135,2) -> 0 | J135: 0 | K135: =IF(C135="m²",ROUND((D135*H135-J135),2),IF(C135="m³",ROUND((D135*I135-J135),2),IF(C135="m",ROUND((D135*E135-J135),2),D135))) -> 1
K136: =SUM(K135:K135) -> 1
A138: 8.7 | B138: tubo PVC | C138: und | D138: 50 | E138: 0 | F138: 0 | G138: 0 | H138: 0 | I138: =ROUND(E138*F138*G138,2) -> 0 | J138: 0 | K138: =IF(C138="m²",ROUND((D138*H138-J138),2),IF(C138="m³",ROUND((D138*I138-J138),2),IF(C138="m",ROUND((D138*E138-J138),2),D138))) -> 50
K139: =SUM(K138:K138) -> 50
A141: 9.0 | B141: INSTALAÇÕES SANITÁRIAS
A143: 9.1 | B143: Pontos de esgoto | C143: und | D143: 4 | E143: 24.5 | F143: 0.5 | G143: 0.6 | H143: 0 | I143: =ROUND(E143*F143*G143,2) -> 7.35 | J143: 0 | K143: =IF(C143="m²",ROUND((D143*H143-J143),2),IF(C143="m³",ROUND((D143*I143-J143),2),IF(C143="m",ROUND((D143*E143-J143),2),D143))) -> 4
K144: =SUM(K143:K143) -> 4
A146: 9.2 | B146: Vaso sanitário com caixa acoplada | C146: und | D146: 2 | E146: 24.5 | F146: 0.5 | G146: 0.6 | H146: 0 | I146: =ROUND(E146*F146*G146,2) -> 7.35 | J146: 0 | K146: =IF(C146="m²",ROUND((D146*H146-J146),2),IF(C146="m³",ROUND((D146*I146-J146),2),IF(C146="m",ROUND((D146*E146-J146),2),D146))) -> 2
K147: =SUM(K146:K146) -> 2
A149: 9.3 | B149: Vaso sanitário com caixa acoplada PCD | C149: und | D149: 1 | E149: 24.5 | F149: 0.5 | G149: 0.6 | H149: 0 | I149: =ROUND(E149*F149*G149,2) -> 7.35 | J149: 0 | K149: =IF(C149="m²",ROUND((D149*H149-J149),2),IF(C149="m³",ROUND((D149*I149-J149),2),IF(C149="m",ROUND((D149*E149-J149),2),D149))) -> 1
K150: =SUM(K149:K149) -> 1
A152: 9.4 | B152: Caixa Sinfonada em PVC (100 x 100 x 50)mm | C152: und | D152: 3 | E152: 24.5 | F152: 0.5 | G152: 0.6 | H152: 0 | I152: =ROUND(E152*F152*G152,2) -> 7.35 | J152: 0 | K152: =IF(C152="m²",ROUND((D152*H152-J152),2),IF(C152="m³",ROUND((D152*I152-J152),2),IF(C152="m",ROUND((D152*E152-J152),2),D152))) -> 3
K153: =SUM(K152:K152) -> 3
A155: 9.5 | B155: Tanque séptico circular em concreto D=1,88m e h=2,50m | C155: und | D155: 1 | E155: 24.5 | F155: 0.5 | G155: 0.6 | H155: 0 | I155: =ROUND(E155*F155*G155,2) -> 7.35 | J155: 0 | K155: =IF(C155="m²",ROUND((D155*H155-J155),2),IF(C155="m³",ROUND((D155*I155-J155),2),IF(C155="m",ROUND((D155*E155-J155),2),D155))) -> 1
K156: =SUM(K155:K155) -> 1
A158: 9.6 | B158: Sumidouro retangular de alvenaria (1,60 x 5,80 x 3,0)m | C158: und | D158: 1 | E158: 24.5 | F158: 0.5 | G158: 0.6 | H158: 0 | I158: =ROUND(E158*F158*G158,2) -> 7.35 | J158: 0 | K158: =IF(C158="m²",ROUND((D158*H158-J158),2),IF(C158="m³",ROUND((D158*I158-J158),2),IF(C158="m",ROUND((D158*E158-J158),2),D158))) -> 1
K159: =SUM(K158:K158) -> 1
A161: 10.0 | B161: ESQUADRIAS
A163: 10.1 | B163: Porta em chapa de metalon de 0,90m x 2,10m | C163: m² | D163: 1 | E163: 0 | F163: 0.9 | G163: 2.1 | H163: =IF(G163=0,ROUND((E163*F163),2),IF(F163=0,ROUND((E163*G163),2),IF(E163=0,ROUND((F163*G163),2),ROUND((E163*F163),2)))) -> 1.89 | I163: =ROUND(E163*F163*G163,2) -> 0 | J163: 0 | K163: =IF(C163="m²",ROUND((D163*H163-J163),2),IF(C163="m³",ROUND((D163*I163-J163),2),IF(C163="m",ROUND((D163*E163-J163),2),D163))) -> 1.89
K164: =SUM(K163:K163) -> 1.89
A166: 10.2 | B166: Porta em chapa de metalon de 0,80m x 2,10m | C166: m² | D166: 2 | E166: 0 | F166: 0.8 | G166: 2.1 | H166: =IF(G166=0,ROUND((E166*F166),2),IF(F166=0,ROUND((E166*G166),2),IF(E166=0,ROUND((F166*G166),2),ROUND((E166*F166),2)))) -> 1.68 | I166: =ROUND(E166*F166*G166,2) -> 0 | J166: 0 | K166: =IF(C166="m²",ROUND((D166*H166-J166),2),IF(C166="m³",ROUND((D166*I166-J166),2),IF(C166="m",ROUND((D166*E166-J166),2),D166))) -> 3.36
K167: =SUM(K166:K166) -> 3.36
A169: 10.3 | B169: Elemento vazado pré-moldado 1200x500/1600 | C169: m² | D169: 3 | E169: 0 | F169: 1.2 | G169: 0.6 | H169: =IF(G169=0,ROUND((E169*F169),2),IF(F169=0,ROUND((E169*G169),2),IF(E169=0,ROUND((F169*G169),2),ROUND((E169*F169),2)))) -> 0.72 | I169: =ROUND(E169*F169*G169,2) -> 0 | J169: 0 | K169: =IF(C169="m²",ROUND((D169*H169-J169),2),IF(C169="m³",ROUND((D169*I169-J169),2),IF(C169="m",ROUND((D169*E169-J169),2),D169))) -> 2.16
K170: =SUM(K169:K169) -> 2.16
A172: 10.4 | B172: Porta em chapa de metalon de 0,60m x 0,60m/2800 | C172: m² | D172: 1 | E172: 0 | F172: 0.6 | G172: 0.6 | H172: =IF(G172=0,ROUND((E172*F172),2),IF(F172=0,ROUND((E172*G172),2),IF(E172=0,ROUND((F172*G172),2),ROUND((E172*F172),2)))) -> 0.36 | I172: =ROUND(E172*F172*G172,2) -> 0 | J172: 0 | K172: =IF(C172="m²",ROUND((D172*H172-J172),2),IF(C172="m³",ROUND((D172*I172-J172),2),IF(C172="m",ROUND((D172*E172-J172),2),D172))) -> 0.36
K173: =SUM(K172:K172) -> 0.36
A175: 11.0 | B175: SERVIÇOS COMPLEMENTARES
A177: 11.1 | B177: Kit acessibilidae para banheiro | C177: und | D177: 1 | E177: 0 | F177: 0 | G177: 0 | H177: =IF(G177=0,ROUND((E177*F177),2),IF(F177=0,ROUND((E177*G177),2),IF(E177=0,ROUND((F177*G177),2),ROUND((E177*F177),2)))) -> 0 | I177: =ROUND(E177*F177*G177,2) -> 0 | J177: 0 | K177: =IF(C177="m²",ROUND((D177*H177-J177),2),IF(C177="m³",ROUND((D177*I177-J177),2),IF(C177="m",ROUND((D177*E177-J177),2),D177))) -> 1
K178: =SUM(K177:K177) -> 1
